Department Family,Entity,Date,Expense Type,Expense Area,Supplier,Transaction Number,AP Amount,Supplier Postcode
Department of Health,NHS Sheffield CCG,31/01/2022,Clinical&Medical-Voluntary Sector,CHILD AND ADOLESCENT MENTAL HEALTH,SHEFFIELD FUTURES,39151615,21333.34,S1 4GE
Department of Health,NHS Sheffield CCG,31/01/2022,Computer Hardware Purch,PRIMARY CARE IT,PHOENIX SOFTWARE LTD,39351775,32692.59,YO42 1NS
Department of Health,NHS Sheffield CCG,31/01/2022,Computer Hardware Purch,PRIMARY CARE IT,PHOENIX SOFTWARE LTD,39351775,6538.52,YO42 1NS
Department of Health,NHS Sheffield CCG,31/01/2022,C&M- PCN DES CARE COORDINATOR,PRC DELEGATED CO-COMMISSIONING,PRIMARY CARE SHEFFIELD LTD,39362798,1331.92,S9 4EU
Department of Health,NHS Sheffield CCG,31/01/2022,C&M-GMS C&M-APMS PCN DES Physician Assoc,PRC DELEGATED CO-COMMISSIONING,PRIMARY CARE SHEFFIELD LTD,39362798,8520.08,S9 4EU
Department of Health,NHS Sheffield CCG,31/01/2022,C&M-GMS PCN DES Clin Pharmacist,PRC DELEGATED CO-COMMISSIONING,PRIMARY CARE SHEFFIELD LTD,39362798,24969.61,S9 4EU
Department of Health,NHS Sheffield CCG,31/01/2022,C&M-GMS PCN DES Soc Prescribing,PRC DELEGATED CO-COMMISSIONING,PRIMARY CARE SHEFFIELD LTD,39362798,8453.42,S9 4EU
Department of Health,NHS Sheffield CCG,31/01/2022,C&M-PCN DES Adult Mental Health Practitioner,PRC DELEGATED CO-COMMISSIONING,PRIMARY CARE SHEFFIELD LTD,39362798,1509.14,S9 4EU
Department of Health,NHS Sheffield CCG,31/01/2022,C&M-PCN DES PHARMACY TECHNICIANS,PRC DELEGATED CO-COMMISSIONING,PRIMARY CARE SHEFFIELD LTD,39362798,8331.72,S9 4EU
Department of Health,NHS Sheffield CCG,31/01/2022,Participation Fees,BEREAVEMENT SERVICE,SOUTH WEST YORKSHIRE PARTNERSHIP NHS FOUNDATION TRUST,39369149,38571.18,WF1 3SP
Department of Health,NHS Sheffield CCG,31/01/2022,Clinical&Medical-Voluntary Sector,MENTAL HEALTH SERVICES - COLLABORATIVE COMMISSIONING,SHEFFIELD MIND,39369197,25608.83,S11 8AL
Department of Health,NHS Sheffield CCG,31/01/2022,C&M-OES Childrens Schemes,LOCAL ENHANCED SERVICES,PRIMARY EYECARE SERVICES LTD,39369305,1325,M4 6LN
Department of Health,NHS Sheffield CCG,31/01/2022,C&M-OES Glaucoma,LOCAL ENHANCED SERVICES,PRIMARY EYECARE SERVICES LTD,39369305,1540,M4 6LN
Department of Health,NHS Sheffield CCG,31/01/2022,C&M-OES Intra-ocular Ocular Hypertn,LOCAL ENHANCED SERVICES,PRIMARY EYECARE SERVICES LTD,39369305,140,M4 6LN
Department of Health,NHS Sheffield CCG,31/01/2022,C&M-OES PEARS,LOCAL ENHANCED SERVICES,PRIMARY EYECARE SERVICES LTD,39369305,29940,M4 6LN
Department of Health,NHS Sheffield CCG,31/01/2022,Clinical&Medical-Serv Recd-F Trsts,BEREAVEMENT SERVICE,SHEFFIELD TEACHING HOSPITALS NHS FOUNDATION TRUST,39372531,43000,S5 7AU
Department of Health,NHS Sheffield CCG,31/01/2022,Services From Local Authorities,MENTAL HEALTH SERVICES - COLLABORATIVE COMMISSIONING,SHEFFIELD CITY COUNCIL,39372535,40904.88,S1 2HH
Department of Health,NHS Sheffield CCG,31/01/2022,C&M-GMS PCN DES Clin Pharmacist,PRC DELEGATED CO-COMMISSIONING,PRIMARY CARE SHEFFIELD LTD,39372576,15266.55,S9 4EU
Department of Health,NHS Sheffield CCG,31/01/2022,C&M-GMS PCN DES Home/RR paramedic,PRC DELEGATED CO-COMMISSIONING,PRIMARY CARE SHEFFIELD LTD,39372576,4429.4,S9 4EU
Department of Health,NHS Sheffield CCG,31/01/2022,C&M-GMS PCN DES Physiotherapist,PRC DELEGATED CO-COMMISSIONING,PRIMARY CARE SHEFFIELD LTD,39372576,4667.5,S9 4EU
Department of Health,NHS Sheffield CCG,31/01/2022,C&M-GMS PCN DES Soc Prescribing,PRC DELEGATED CO-COMMISSIONING,PRIMARY CARE SHEFFIELD LTD,39372576,3055.24,S9 4EU
Department of Health,NHS Sheffield CCG,31/01/2022,C&M-PCN DES PHARMACY TECHNICIANS,PRC DELEGATED CO-COMMISSIONING,PRIMARY CARE SHEFFIELD LTD,39372576,2996.21,S9 4EU
Department of Health,NHS Sheffield CCG,31/01/2022,C&M-APMS DES Immediate&1st Response,LOCAL ENHANCED SERVICES,PRIMARY CARE SHEFFIELD LTD,39372779,28980,S12 3GH
Department of Health,NHS Sheffield CCG,31/01/2022,C&M-GMS C&M-APMS PCN DES Physician Assoc,PRC DELEGATED CO-COMMISSIONING,PRIMARY CARE SHEFFIELD LTD,39372798,14955.69,S9 4EU
Department of Health,NHS Sheffield CCG,31/01/2022,C&M-GMS PCN DES Clin Pharmacist,PRC DELEGATED CO-COMMISSIONING,PRIMARY CARE SHEFFIELD LTD,39372798,15026.98,S9 4EU
Department of Health,NHS Sheffield CCG,31/01/2022,C&M-GMS PCN DES Physiotherapist,PRC DELEGATED CO-COMMISSIONING,PRIMARY CARE SHEFFIELD LTD,39372798,2059.24,S9 4EU
Department of Health,NHS Sheffield CCG,31/01/2022,C&M-GMS PCN DES Soc Prescribing,PRC DELEGATED CO-COMMISSIONING,PRIMARY CARE SHEFFIELD LTD,39372798,2333.33,S9 4EU
Department of Health,NHS Sheffield CCG,31/01/2022,C&M-PCN DES Adult Mental Health Practitioner,PRC DELEGATED CO-COMMISSIONING,PRIMARY CARE SHEFFIELD LTD,39372798,2264.25,S9 4EU
Department of Health,NHS Sheffield CCG,31/01/2022,C&M-PCN DES PHARMACY TECHNICIANS,PRC DELEGATED CO-COMMISSIONING,PRIMARY CARE SHEFFIELD LTD,39372798,5220.6,S9 4EU
Department of Health,NHS Sheffield CCG,31/01/2022,Clinical&Medical-Serv Recd-F Trsts,BEREAVEMENT SERVICE,ROTHERHAM NHS FOUNDATION TRUST,39388525,39265.67,S60 2UD
Department of Health,NHS Sheffield CCG,31/01/2022,Hcare Srv Rec Fdtn Trust-Non Contract,ACUTE COMMISSIONING,SHEFFIELD TEACHING HOSPITALS NHS FOUNDATION TRUST,39388535,34000,S5 7AU
Department of Health,NHS Sheffield CCG,31/01/2022,C&M-APMS DES Extended Hours Access,GP FORWARD VIEW,PRIMARY CARE SHEFFIELD LTD,39396990,82000,S9 4EU
Department of Health,NHS Sheffield CCG,31/01/2022,Participation Fees,BEREAVEMENT SERVICE,ROTHERHAM METROPOLITAN BOROUGH COUNCIL,39396996,54500,S60 1AE
Department of Health,NHS Sheffield CCG,31/01/2022,Clinical&Medical-Commercial Sector,PATIENT TRANSPORT,PREMIER CARE DIRECT LTD,39397002,112480.55,DN4 5NU
Department of Health,NHS Sheffield CCG,31/01/2022,Clinical&Medical-Independent Sector,BEREAVEMENT SERVICE,PRIMARY CARE SHEFFIELD LTD,39397007,120000,S12 3GH
Department of Health,NHS Sheffield CCG,31/01/2022,Cont Care-Physical Disab (65+),CHC ADULT FULLY FUNDED,ABBEYCARE NURSING,39397027,59238.52,S35 9YY
Department of Health,NHS Sheffield CCG,31/01/2022,Voids and Subsidies,PRC DELEGATED CO-COMMISSIONING,COMMUNITY HEALTH PARTNERSHIPS LTD,39397030,39478.29,M1 3LD
Department of Health,NHS Sheffield CCG,31/01/2022,Voids and Subsidies,RECHARGES NHS PROPERTY SERVICES LTD,COMMUNITY HEALTH PARTNERSHIPS LTD,39397030,112844.21,M1 3LD
Department of Health,NHS Sheffield CCG,31/01/2022,Computer Software/License,IM&T,NHS KIRKLEES CCG,39397034,64030,WF3 1WE
Department of Health,NHS Sheffield CCG,31/01/2022,Other Gen Supplies & Srv,COMMISSIONING,NHS KIRKLEES CCG,39397034,30936,WF3 1WE
Department of Health,NHS Sheffield CCG,31/01/2022,Clinical&Medical-Serv Recd-F Trsts,BEREAVEMENT SERVICE,SHEFFIELD TEACHING HOSPITALS NHS FOUNDATION TRUST,39397039,100000,S5 7AU
Department of Health,NHS Sheffield CCG,31/01/2022,Clinical&Medical-Serv Recd-F Trsts,BEREAVEMENT SERVICE,SHEFFIELD TEACHING HOSPITALS NHS FOUNDATION TRUST,39397041,115056,S5 7AU
Department of Health,NHS Sheffield CCG,31/01/2022,Clinical&Medical-Serv Recd-F Trsts,BEREAVEMENT SERVICE,SHEFFIELD HEALTH & SOCIAL CARE NHS FOUNDATION TRUST,39397043,57528,S10 3TH
Department of Health,NHS Sheffield CCG,31/01/2022,Clinical&Medical-Independent Sector,ACUTE COMMISSIONING,SPAMEDICA LTD,39397045,111340.67,BL1 1HU
Department of Health,NHS Sheffield CCG,31/01/2022,C&M-GMS LES Basket of Procedures,LOCAL ENHANCED SERVICES,PRIMARY CARE SHEFFIELD LTD,39397047,53558.33,S12 3GH
Department of Health,NHS Sheffield CCG,31/01/2022,C&M- PCN DES CARE COORDINATOR,PRC DELEGATED CO-COMMISSIONING,PRIMARY CARE SHEFFIELD LTD,39397050,2266.52,S9 4EU
Department of Health,NHS Sheffield CCG,31/01/2022,C&M-GMS C&M-APMS PCN DES Physician Assoc,PRC DELEGATED CO-COMMISSIONING,PRIMARY CARE SHEFFIELD LTD,39397050,3347.01,S9 4EU
Department of Health,NHS Sheffield CCG,31/01/2022,C&M-GMS PCN DES Clin Pharmacist,PRC DELEGATED CO-COMMISSIONING,PRIMARY CARE SHEFFIELD LTD,39397050,11398.53,S9 4EU
Department of Health,NHS Sheffield CCG,31/01/2022,C&M-GMS PCN DES Home/RR paramedic,PRC DELEGATED CO-COMMISSIONING,PRIMARY CARE SHEFFIELD LTD,39397050,4557.85,S9 4EU
Department of Health,NHS Sheffield CCG,31/01/2022,C&M-GMS PCN DES Physiotherapist,PRC DELEGATED CO-COMMISSIONING,PRIMARY CARE SHEFFIELD LTD,39397050,5220.71,S9 4EU
Department of Health,NHS Sheffield CCG,31/01/2022,C&M-GMS PCN DES Soc Prescribing,PRC DELEGATED CO-COMMISSIONING,PRIMARY CARE SHEFFIELD LTD,39397050,5616.6,S9 4EU
Department of Health,NHS Sheffield CCG,31/01/2022,C&M-PCN DES Adult Mental Health Practitioner,PRC DELEGATED CO-COMMISSIONING,PRIMARY CARE SHEFFIELD LTD,39397050,2264.25,S9 4EU
Department of Health,NHS Sheffield CCG,31/01/2022,C&M-PCN DES OCCUPATIONAL THERAPISTS,PRC DELEGATED CO-COMMISSIONING,PRIMARY CARE SHEFFIELD LTD,39397050,4267.1,S9 4EU
Department of Health,NHS Sheffield CCG,31/01/2022,C&M-PCN DES PHARMACY TECHNICIANS,PRC DELEGATED CO-COMMISSIONING,PRIMARY CARE SHEFFIELD LTD,39397050,6071.34,S9 4EU
Department of Health,NHS Sheffield CCG,31/01/2022,Cont Care-Physical Disab (<65),CHC ADULT FULLY FUNDED,RICHMOND HEIGHTS (SPRING) LTD,39401659,113915.75,CA3 0JW
Department of Health,NHS Sheffield CCG,31/01/2022,Cont Care-Physical Disab (<65),CHC ADULT FULLY FUNDED,YOUR CARE PROVIDER,39401682,125357.75,S73 0HQ
Department of Health,NHS Sheffield CCG,31/01/2022,C&M-PMS Contract Value,PRC DELEGATED CO-COMMISSIONING,WOODSEATS MEDICAL CENTRE,39425669,88102.47,S8 0SH
Department of Health,NHS Sheffield CCG,31/01/2022,C&M-PMS DES Learn Dsblty Hlth Chk,PRC DELEGATED CO-COMMISSIONING,WOODSEATS MEDICAL CENTRE,39425669,280,S8 0SH
Department of Health,NHS Sheffield CCG,31/01/2022,C&M-PMS LONG COVID ES,PRC DELEGATED CO-COMMISSIONING,WOODSEATS MEDICAL CENTRE,39425669,443.06,S8 0SH
Department of Health,NHS Sheffield CCG,31/01/2022,C&M-PMS PCN DES Participation,PRC DELEGATED CO-COMMISSIONING,WOODSEATS MEDICAL CENTRE,39425669,1531.95,S8 0SH
Department of Health,NHS Sheffield CCG,31/01/2022,C&M-PMS PCO Other,PRC DELEGATED CO-COMMISSIONING,WOODSEATS MEDICAL CENTRE,39425669,654.9,S8 0SH
Department of Health,NHS Sheffield CCG,31/01/2022,C&M-PMS Prem Notional Rent,PRC DELEGATED CO-COMMISSIONING,WOODSEATS MEDICAL CENTRE,39425669,11666.67,S8 0SH
Department of Health,NHS Sheffield CCG,31/01/2022,C&M-PMS Prem Rates,PRC DELEGATED CO-COMMISSIONING,WOODSEATS MEDICAL CENTRE,39425669,2611,S8 0SH
Department of Health,NHS Sheffield CCG,31/01/2022,C&M-PMS QOF Aspiration,PRC DELEGATED CO-COMMISSIONING,WOODSEATS MEDICAL CENTRE,39425669,10133.24,S8 0SH
Department of Health,NHS Sheffield CCG,31/01/2022,C&M-PMS WEIGHT MANAGEMENT SERVICE,PRC DELEGATED CO-COMMISSIONING,WOODSEATS MEDICAL CENTRE,39425669,57.5,S8 0SH
Department of Health,NHS Sheffield CCG,31/01/2022,C&M-APMS Contract Value,PRC DELEGATED CO-COMMISSIONING,CLOVER CITY PRACTICE,39426565,33923.53,S9 4QH
Department of Health,NHS Sheffield CCG,31/01/2022,C&M-APMS LONG COVID ES,PRC DELEGATED CO-COMMISSIONING,CLOVER CITY PRACTICE,39426565,206.81,S9 4QH
Department of Health,NHS Sheffield CCG,31/01/2022,C&M-APMS PCN DES Participation,PRC DELEGATED CO-COMMISSIONING,CLOVER CITY PRACTICE,39426565,592.77,S9 4QH
Department of Health,NHS Sheffield CCG,31/01/2022,C&M-APMS PCO Locum Susp Drs,PRC DELEGATED CO-COMMISSIONING,CLOVER CITY PRACTICE,39426565,3503.04,S9 4QH
Department of Health,NHS Sheffield CCG,31/01/2022,C&M-APMS QOF Aspiration,PRC DELEGATED CO-COMMISSIONING,CLOVER CITY PRACTICE,39426565,2087.76,S9 4QH
Department of Health,NHS Sheffield CCG,31/01/2022,C&M-APMS WEIGHT MANAGEMENT SERVICE,PRC DELEGATED CO-COMMISSIONING,CLOVER CITY PRACTICE,39426565,23,S9 4QH
Department of Health,NHS Sheffield CCG,31/01/2022,C&M-PMS Contract Value,PRC DELEGATED CO-COMMISSIONING,WINCOBANK MEDICAL CENTRE,39426569,66792.6,S9 1DJ
Department of Health,NHS Sheffield CCG,31/01/2022,C&M-PMS LONG COVID ES,PRC DELEGATED CO-COMMISSIONING,WINCOBANK MEDICAL CENTRE,39426569,315.76,S9 1DJ
Department of Health,NHS Sheffield CCG,31/01/2022,C&M-PMS Out of Hours Opt Outs,PRC DELEGATED CO-COMMISSIONING,WINCOBANK MEDICAL CENTRE,39426569,14.65,S9 1DJ
Department of Health,NHS Sheffield CCG,31/01/2022,C&M-PMS PCN DES Participation,PRC DELEGATED CO-COMMISSIONING,WINCOBANK MEDICAL CENTRE,39426569,1191.11,S9 1DJ
Department of Health,NHS Sheffield CCG,31/01/2022,C&M-PMS Prem Healthcentre Rent,PRC DELEGATED CO-COMMISSIONING,WINCOBANK MEDICAL CENTRE,39426569,47262.38,S9 1DJ
Department of Health,NHS Sheffield CCG,31/01/2022,C&M-PMS QOF Aspiration,PRC DELEGATED CO-COMMISSIONING,WINCOBANK MEDICAL CENTRE,39426569,6971.47,S9 1DJ
Department of Health,NHS Sheffield CCG,31/01/2022,C&M-PMS Contract Value,PRC DELEGATED CO-COMMISSIONING,FOXHILL MEDICAL CENTRE SHEFFIELD,39426573,53906.01,S6 1GA
Department of Health,NHS Sheffield CCG,31/01/2022,C&M-PMS DES Learn Dsblty Hlth Chk,PRC DELEGATED CO-COMMISSIONING,FOXHILL MEDICAL CENTRE SHEFFIELD,39426573,980,S6 1GA
Department of Health,NHS Sheffield CCG,31/01/2022,C&M-PMS LONG COVID ES,PRC DELEGATED CO-COMMISSIONING,FOXHILL MEDICAL CENTRE SHEFFIELD,39426573,247.09,S6 1GA
Department of Health,NHS Sheffield CCG,31/01/2022,C&M-PMS Out of Hours Opt Outs,PRC DELEGATED CO-COMMISSIONING,FOXHILL MEDICAL CENTRE SHEFFIELD,39426573,31.58,S6 1GA
Department of Health,NHS Sheffield CCG,31/01/2022,C&M-PMS PCN DES Participation,PRC DELEGATED CO-COMMISSIONING,FOXHILL MEDICAL CENTRE SHEFFIELD,39426573,965.57,S6 1GA
Department of Health,NHS Sheffield CCG,31/01/2022,C&M-PMS PCO Other,PRC DELEGATED CO-COMMISSIONING,FOXHILL MEDICAL CENTRE SHEFFIELD,39426573,392.5,S6 1GA
Department of Health,NHS Sheffield CCG,31/01/2022,C&M-PMS Prem Healthcentre Rent,PRC DELEGATED CO-COMMISSIONING,FOXHILL MEDICAL CENTRE SHEFFIELD,39426573,48823.57,S6 1GA
Department of Health,NHS Sheffield CCG,31/01/2022,C&M-PMS QOF Aspiration,PRC DELEGATED CO-COMMISSIONING,FOXHILL MEDICAL CENTRE SHEFFIELD,39426573,6019.72,S6 1GA
Department of Health,NHS Sheffield CCG,31/01/2022,C&M-PMS Contract Value,PRC DELEGATED CO-COMMISSIONING,WOODHOUSE HEALTH CENTRE,39426577,104188.79,S13 7LY
Department of Health,NHS Sheffield CCG,31/01/2022,C&M-PMS DES Learn Dsblty Hlth Chk,PRC DELEGATED CO-COMMISSIONING,WOODHOUSE HEALTH CENTRE,39426577,420,S13 7LY
Department of Health,NHS Sheffield CCG,31/01/2022,C&M-PMS LONG COVID ES,PRC DELEGATED CO-COMMISSIONING,WOODHOUSE HEALTH CENTRE,39426577,501.18,S13 7LY
Department of Health,NHS Sheffield CCG,31/01/2022,C&M-PMS Out of Hours Opt Outs,PRC DELEGATED CO-COMMISSIONING,WOODHOUSE HEALTH CENTRE,39426577,49.87,S13 7LY
Department of Health,NHS Sheffield CCG,31/01/2022,C&M-PMS PCN DES Participation,PRC DELEGATED CO-COMMISSIONING,WOODHOUSE HEALTH CENTRE,39426577,1880.78,S13 7LY
Department of Health,NHS Sheffield CCG,31/01/2022,C&M-PMS PCO Locum Adop/Pat/Mat,PRC DELEGATED CO-COMMISSIONING,WOODHOUSE HEALTH CENTRE,39426577,8757.6,S13 7LY
Department of Health,NHS Sheffield CCG,31/01/2022,C&M-PMS PCO Other,PRC DELEGATED CO-COMMISSIONING,WOODHOUSE HEALTH CENTRE,39426577,743.9,S13 7LY
Department of Health,NHS Sheffield CCG,31/01/2022,C&M-PMS Prem Notional Rent,PRC DELEGATED CO-COMMISSIONING,WOODHOUSE HEALTH CENTRE,39426577,6889.58,S13 7LY
Department of Health,NHS Sheffield CCG,31/01/2022,C&M-PMS Prem Rates,PRC DELEGATED CO-COMMISSIONING,WOODHOUSE HEALTH CENTRE,39426577,1459,S13 7LY
Department of Health,NHS Sheffield CCG,31/01/2022,C&M-PMS QOF Aspiration,PRC DELEGATED CO-COMMISSIONING,WOODHOUSE HEALTH CENTRE,39426577,15023.58,S13 7LY
Department of Health,NHS Sheffield CCG,31/01/2022,C&M-PMS WEIGHT MANAGEMENT SERVICE,PRC DELEGATED CO-COMMISSIONING,WOODHOUSE HEALTH CENTRE,39426577,80.5,S13 7LY
Department of Health,NHS Sheffield CCG,31/01/2022,ME-PMS GP Pension AVCs,PRC DELEGATED CO-COMMISSIONING,WOODHOUSE HEALTH CENTRE,39426577,1363.18,S13 7LY
Department of Health,NHS Sheffield CCG,31/01/2022,ME-PMS GP Pension ERs Adjs - PMS,PRC DELEGATED CO-COMMISSIONING,WOODHOUSE HEALTH CENTRE,39426577,14840.19,S13 7LY
Department of Health,NHS Sheffield CCG,31/01/2022,ME-PMS GP Pension ERs-PMS,PRC DELEGATED CO-COMMISSIONING,WOODHOUSE HEALTH CENTRE,39426577,11744.36,S13 7LY
Department of Health,NHS Sheffield CCG,31/01/2022,C&M-PMS Contract Value,PRC DELEGATED CO-COMMISSIONING,GLEADLESS MEDICAL CENTRE,39426584,71125.01,S14 1PQ
Department of Health,NHS Sheffield CCG,31/01/2022,C&M-PMS LONG COVID ES,PRC DELEGATED CO-COMMISSIONING,GLEADLESS MEDICAL CENTRE,39426584,365.6,S14 1PQ
Department of Health,NHS Sheffield CCG,31/01/2022,C&M-PMS Out of Hours Opt Outs,PRC DELEGATED CO-COMMISSIONING,GLEADLESS MEDICAL CENTRE,39426584,89.13,S14 1PQ
Department of Health,NHS Sheffield CCG,31/01/2022,C&M-PMS PCN DES Participation,PRC DELEGATED CO-COMMISSIONING,GLEADLESS MEDICAL CENTRE,39426584,1285.55,S14 1PQ
Department of Health,NHS Sheffield CCG,31/01/2022,C&M-PMS PCO Other,PRC DELEGATED CO-COMMISSIONING,GLEADLESS MEDICAL CENTRE,39426584,556.4,S14 1PQ
Department of Health,NHS Sheffield CCG,31/01/2022,C&M-PMS Prem Notional Rent,PRC DELEGATED CO-COMMISSIONING,GLEADLESS MEDICAL CENTRE,39426584,6885.42,S14 1PQ
Department of Health,NHS Sheffield CCG,31/01/2022,C&M-PMS Prem Rates,PRC DELEGATED CO-COMMISSIONING,GLEADLESS MEDICAL CENTRE,39426584,1210,S14 1PQ
Department of Health,NHS Sheffield CCG,31/01/2022,C&M-PMS QOF Aspiration,PRC DELEGATED CO-COMMISSIONING,GLEADLESS MEDICAL CENTRE,39426584,8062.34,S14 1PQ
Department of Health,NHS Sheffield CCG,31/01/2022,C&M- PCN DES CARE COORDINATOR,PRC DELEGATED CO-COMMISSIONING,JAUNTY SPRINGS HEALTH CENTRE,39426587,5421.04,S12 3DZ
Department of Health,NHS Sheffield CCG,31/01/2022,C&M-PCN DES DIETICIANS,PRC DELEGATED CO-COMMISSIONING,JAUNTY SPRINGS HEALTH CENTRE,39426587,4609.42,S12 3DZ
Department of Health,NHS Sheffield CCG,31/01/2022,C&M-PCN DES OCCUPATIONAL THERAPISTS,PRC DELEGATED CO-COMMISSIONING,JAUNTY SPRINGS HEALTH CENTRE,39426587,3390.67,S12 3DZ
Department of Health,NHS Sheffield CCG,31/01/2022,C&M-PCN DES PHARMACY TECHNICIANS,PRC DELEGATED CO-COMMISSIONING,JAUNTY SPRINGS HEALTH CENTRE,39426587,5867.95,S12 3DZ
Department of Health,NHS Sheffield CCG,31/01/2022,C&M-PCN-PMS DES Leadership Payment,PRC DELEGATED CO-COMMISSIONING,JAUNTY SPRINGS HEALTH CENTRE,39426587,4475.67,S12 3DZ
Department of Health,NHS Sheffield CCG,31/01/2022,C&M-PMS Contract Value,PRC DELEGATED CO-COMMISSIONING,JAUNTY SPRINGS HEALTH CENTRE,39426587,32965,S12 3DZ
Department of Health,NHS Sheffield CCG,31/01/2022,C&M-PMS DES Extended Hours Access,PRC DELEGATED CO-COMMISSIONING,JAUNTY SPRINGS HEALTH CENTRE,39426587,4196.88,S12 3DZ
Department of Health,NHS Sheffield CCG,31/01/2022,C&M-PMS DES Learn Dsblty Hlth Chk,PRC DELEGATED CO-COMMISSIONING,JAUNTY SPRINGS HEALTH CENTRE,39426587,560,S12 3DZ
Department of Health,NHS Sheffield CCG,31/01/2022,C&M-PMS LONG COVID ES,PRC DELEGATED CO-COMMISSIONING,JAUNTY SPRINGS HEALTH CENTRE,39426587,157.14,S12 3DZ
Department of Health,NHS Sheffield CCG,31/01/2022,C&M-PMS Out of Hours Opt Outs,PRC DELEGATED CO-COMMISSIONING,JAUNTY SPRINGS HEALTH CENTRE,39426587,5.14,S12 3DZ
Department of Health,NHS Sheffield CCG,31/01/2022,C&M-PMS PCN DES Clin Pharmacist,PRC DELEGATED CO-COMMISSIONING,JAUNTY SPRINGS HEALTH CENTRE,39426587,9427.22,S12 3DZ
Department of Health,NHS Sheffield CCG,31/01/2022,C&M-PMS PCN DES Clinical Director,PRC DELEGATED CO-COMMISSIONING,JAUNTY SPRINGS HEALTH CENTRE,39426587,2145.07,S12 3DZ
Department of Health,NHS Sheffield CCG,31/01/2022,C&M-PMS PCN DES PCN support,LOCAL ENHANCED SERVICES,JAUNTY SPRINGS HEALTH CENTRE,39426587,4371.75,S12 3DZ
Department of Health,NHS Sheffield CCG,31/01/2022,C&M-PMS PCN DES Participation,PRC DELEGATED CO-COMMISSIONING,JAUNTY SPRINGS HEALTH CENTRE,39426587,593.33,S12 3DZ
Department of Health,NHS Sheffield CCG,31/01/2022,C&M-PMS PCN DES Physiotherapist,PRC DELEGATED CO-COMMISSIONING,JAUNTY SPRINGS HEALTH CENTRE,39426587,3152.49,S12 3DZ
Department of Health,NHS Sheffield CCG,31/01/2022,C&M-PMS PCN DES Soc Prescribing,PRC DELEGATED CO-COMMISSIONING,JAUNTY SPRINGS HEALTH CENTRE,39426587,2534.46,S12 3DZ
Department of Health,NHS Sheffield CCG,31/01/2022,C&M-PMS PCO Other,PRC DELEGATED CO-COMMISSIONING,JAUNTY SPRINGS HEALTH CENTRE,39426587,267.9,S12 3DZ
Department of Health,NHS Sheffield CCG,31/01/2022,C&M-PMS Prem Notional Rent,PRC DELEGATED CO-COMMISSIONING,JAUNTY SPRINGS HEALTH CENTRE,39426587,3208.33,S12 3DZ
Department of Health,NHS Sheffield CCG,31/01/2022,C&M-PMS Prem Rates,PRC DELEGATED CO-COMMISSIONING,JAUNTY SPRINGS HEALTH CENTRE,39426587,848,S12 3DZ
Department of Health,NHS Sheffield CCG,31/01/2022,C&M-PMS QOF Aspiration,PRC DELEGATED CO-COMMISSIONING,JAUNTY SPRINGS HEALTH CENTRE,39426587,4210.91,S12 3DZ
Department of Health,NHS Sheffield CCG,31/01/2022,C&M-PMS WEIGHT MANAGEMENT SERVICE,PRC DELEGATED CO-COMMISSIONING,JAUNTY SPRINGS HEALTH CENTRE,39426587,23,S12 3DZ
Department of Health,NHS Sheffield CCG,31/01/2022,C&M-PMS Contract Value,PRC DELEGATED CO-COMMISSIONING,HACKENTHORPE MEDICAL CENTRE,39426593,51630.22,S12 4LA
Department of Health,NHS Sheffield CCG,31/01/2022,C&M-PMS DES Learn Dsblty Hlth Chk,PRC DELEGATED CO-COMMISSIONING,HACKENTHORPE MEDICAL CENTRE,39426593,140,S12 4LA
Department of Health,NHS Sheffield CCG,31/01/2022,C&M-PMS LONG COVID ES,PRC DELEGATED CO-COMMISSIONING,HACKENTHORPE MEDICAL CENTRE,39426593,277.63,S12 4LA
Department of Health,NHS Sheffield CCG,31/01/2022,C&M-PMS Out of Hours Opt Outs,PRC DELEGATED CO-COMMISSIONING,HACKENTHORPE MEDICAL CENTRE,39426593,26.89,S12 4LA
Department of Health,NHS Sheffield CCG,31/01/2022,C&M-PMS PCN DES Participation,PRC DELEGATED CO-COMMISSIONING,HACKENTHORPE MEDICAL CENTRE,39426593,930.28,S12 4LA
Department of Health,NHS Sheffield CCG,31/01/2022,C&M-PMS PCO Other,PRC DELEGATED CO-COMMISSIONING,HACKENTHORPE MEDICAL CENTRE,39426593,434.8,S12 4LA
Department of Health,NHS Sheffield CCG,31/01/2022,C&M-PMS Prem Notional Rent,PRC DELEGATED CO-COMMISSIONING,HACKENTHORPE MEDICAL CENTRE,39426593,5325.01,S12 4LA
Department of Health,NHS Sheffield CCG,31/01/2022,C&M-PMS Prem Rates,PRC DELEGATED CO-COMMISSIONING,HACKENTHORPE MEDICAL CENTRE,39426593,861,S12 4LA
Department of Health,NHS Sheffield CCG,31/01/2022,C&M-PMS Prem Water Rates,PRC DELEGATED CO-COMMISSIONING,HACKENTHORPE MEDICAL CENTRE,39426593,176.58,S12 4LA
Department of Health,NHS Sheffield CCG,31/01/2022,C&M-PMS QOF Aspiration,PRC DELEGATED CO-COMMISSIONING,HACKENTHORPE MEDICAL CENTRE,39426593,7164.43,S12 4LA
Department of Health,NHS Sheffield CCG,31/01/2022,C&M-PMS WEIGHT MANAGEMENT SERVICE,PRC DELEGATED CO-COMMISSIONING,HACKENTHORPE MEDICAL CENTRE,39426593,34.5,S12 4LA
Department of Health,NHS Sheffield CCG,31/01/2022,C&M-PMS Contract Value,PRC DELEGATED CO-COMMISSIONING,MANCHESTER ROAD SURGERY SHEFFIELD,39426598,35732.27,S10 5PN
Department of Health,NHS Sheffield CCG,31/01/2022,C&M-PMS LONG COVID ES,PRC DELEGATED CO-COMMISSIONING,MANCHESTER ROAD SURGERY SHEFFIELD,39426598,201.08,S10 5PN
Department of Health,NHS Sheffield CCG,31/01/2022,C&M-PMS Out of Hours Opt Outs,PRC DELEGATED CO-COMMISSIONING,MANCHESTER ROAD SURGERY SHEFFIELD,39426598,3.31,S10 5PN
Department of Health,NHS Sheffield CCG,31/01/2022,C&M-PMS PCN DES Participation,PRC DELEGATED CO-COMMISSIONING,MANCHESTER ROAD SURGERY SHEFFIELD,39426598,637.95,S10 5PN
Department of Health,NHS Sheffield CCG,31/01/2022,C&M-PMS Prem Cost Rent,PRC DELEGATED CO-COMMISSIONING,MANCHESTER ROAD SURGERY SHEFFIELD,39426598,3077.32,S10 5PN
Department of Health,NHS Sheffield CCG,31/01/2022,C&M-PMS Prem Notional Rent,PRC DELEGATED CO-COMMISSIONING,MANCHESTER ROAD SURGERY SHEFFIELD,39426598,442.92,S10 5PN
Department of Health,NHS Sheffield CCG,31/01/2022,C&M-PMS Prem Rates,PRC DELEGATED CO-COMMISSIONING,MANCHESTER ROAD SURGERY SHEFFIELD,39426598,986,S10 5PN
Department of Health,NHS Sheffield CCG,31/01/2022,C&M-PMS Prem Water Rates,PRC DELEGATED CO-COMMISSIONING,MANCHESTER ROAD SURGERY SHEFFIELD,39426598,407.67,S10 5PN
Department of Health,NHS Sheffield CCG,31/01/2022,C&M-PMS QOF Aspiration,PRC DELEGATED CO-COMMISSIONING,MANCHESTER ROAD SURGERY SHEFFIELD,39426598,4335.38,S10 5PN
Department of Health,NHS Sheffield CCG,31/01/2022,C&M-PMS WEIGHT MANAGEMENT SERVICE,PRC DELEGATED CO-COMMISSIONING,MANCHESTER ROAD SURGERY SHEFFIELD,39426598,34.5,S10 5PN
Department of Health,NHS Sheffield CCG,31/01/2022,C&M-PMS Contract Value,PRC DELEGATED CO-COMMISSIONING,MANOR & PARK GROUP PRACTICE,39426601,73769.76,S2 1QU
Department of Health,NHS Sheffield CCG,31/01/2022,C&M-PMS LONG COVID ES,PRC DELEGATED CO-COMMISSIONING,MANOR & PARK GROUP PRACTICE,39426601,351.25,S2 1QU
Department of Health,NHS Sheffield CCG,31/01/2022,C&M-PMS Out of Hours Opt Outs,PRC DELEGATED CO-COMMISSIONING,MANOR & PARK GROUP PRACTICE,39426601,74.82,S2 1QU
Department of Health,NHS Sheffield CCG,31/01/2022,C&M-PMS PCN DES Participation,PRC DELEGATED CO-COMMISSIONING,MANOR & PARK GROUP PRACTICE,39426601,1333.57,S2 1QU
Department of Health,NHS Sheffield CCG,31/01/2022,C&M-PMS Prem Notional Rent,PRC DELEGATED CO-COMMISSIONING,MANOR & PARK GROUP PRACTICE,39426601,9112.5,S2 1QU
Department of Health,NHS Sheffield CCG,31/01/2022,C&M-PMS QOF Aspiration,PRC DELEGATED CO-COMMISSIONING,MANOR & PARK GROUP PRACTICE,39426601,6833.28,S2 1QU
Department of Health,NHS Sheffield CCG,31/01/2022,C&M-PMS Contract Value,PRC DELEGATED CO-COMMISSIONING,MEADOWHEAD GROUP PRACTICE,39426604,165813.99,S8 7RL
Department of Health,NHS Sheffield CCG,31/01/2022,C&M-PMS DES Learn Dsblty Hlth Chk,PRC DELEGATED CO-COMMISSIONING,MEADOWHEAD GROUP PRACTICE,39426604,280,S8 7RL
Department of Health,NHS Sheffield CCG,31/01/2022,C&M-PMS LONG COVID ES,PRC DELEGATED CO-COMMISSIONING,MEADOWHEAD GROUP PRACTICE,39426604,764.3,S8 7RL
Department of Health,NHS Sheffield CCG,31/01/2022,C&M-PMS PCN DES Participation,PRC DELEGATED CO-COMMISSIONING,MEADOWHEAD GROUP PRACTICE,39426604,2652.53,S8 7RL
Department of Health,NHS Sheffield CCG,31/01/2022,C&M-PMS Prem Actual Rent,PRC DELEGATED CO-COMMISSIONING,MEADOWHEAD GROUP PRACTICE,39426604,3358.33,S8 7RL
Department of Health,NHS Sheffield CCG,31/01/2022,C&M-PMS Prem Cost Rent,PRC DELEGATED CO-COMMISSIONING,MEADOWHEAD GROUP PRACTICE,39426604,3647.42,S8 7RL
Department of Health,NHS Sheffield CCG,31/01/2022,C&M-PMS Prem Healthcentre Rent,PRC DELEGATED CO-COMMISSIONING,MEADOWHEAD GROUP PRACTICE,39426604,42600.17,S8 7RL
Department of Health,NHS Sheffield CCG,31/01/2022,C&M-PMS Prem Notional Rent,PRC DELEGATED CO-COMMISSIONING,MEADOWHEAD GROUP PRACTICE,39426604,5666.67,S8 7RL
Department of Health,NHS Sheffield CCG,31/01/2022,C&M-PMS Prem Rates,PRC DELEGATED CO-COMMISSIONING,MEADOWHEAD GROUP PRACTICE,39426604,798,S8 7RL
Department of Health,NHS Sheffield CCG,31/01/2022,C&M-PMS QOF Aspiration,PRC DELEGATED CO-COMMISSIONING,MEADOWHEAD GROUP PRACTICE,39426604,18549.4,S8 7RL
Department of Health,NHS Sheffield CCG,31/01/2022,C&M-PMS WEIGHT MANAGEMENT SERVICE,PRC DELEGATED CO-COMMISSIONING,MEADOWHEAD GROUP PRACTICE,39426604,80.5,S8 7RL
Department of Health,NHS Sheffield CCG,31/01/2022,C&M-PMS Contract Value,PRC DELEGATED CO-COMMISSIONING,MEADOWHEAD GROUP PRACTICE,39426606,-751.85,S8 7RL
Department of Health,NHS Sheffield CCG,31/01/2022,C&M-PMS GP Statutory Levy,PRC DELEGATED CO-COMMISSIONING,MEADOWHEAD GROUP PRACTICE,39426606,-656.95,S8 7RL
Department of Health,NHS Sheffield CCG,31/01/2022,C&M-PMS Out of Hours Opt Outs,PRC DELEGATED CO-COMMISSIONING,MEADOWHEAD GROUP PRACTICE,39426606,-7789.5,S8 7RL
Department of Health,NHS Sheffield CCG,31/01/2022,C&M-PMS Prem Actual Rent,PRC DELEGATED CO-COMMISSIONING,MEADOWHEAD GROUP PRACTICE,39426606,-3358.33,S8 7RL
Department of Health,NHS Sheffield CCG,31/01/2022,C&M-PMS Prem Cost Rent,PRC DELEGATED CO-COMMISSIONING,MEADOWHEAD GROUP PRACTICE,39426606,-3647.42,S8 7RL
Department of Health,NHS Sheffield CCG,31/01/2022,C&M-PMS Prem Healthcentre Rent,PRC DELEGATED CO-COMMISSIONING,MEADOWHEAD GROUP PRACTICE,39426606,-767.14,S8 7RL
Department of Health,NHS Sheffield CCG,31/01/2022,ME-PMS GP Pension ERs Adjs - PMS,PRC DELEGATED CO-COMMISSIONING,MEADOWHEAD GROUP PRACTICE,39426606,-647.1,S8 7RL
Department of Health,NHS Sheffield CCG,31/01/2022,ME-PMS GP Pension ERs-PMS,PRC DELEGATED CO-COMMISSIONING,MEADOWHEAD GROUP PRACTICE,39426606,-8345.19,S8 7RL
Department of Health,NHS Sheffield CCG,31/01/2022,C&M-PMS Contract Value,PRC DELEGATED CO-COMMISSIONING,NETHERGREEN SURGERY,39426608,68701.27,S11 7EJ
Department of Health,NHS Sheffield CCG,31/01/2022,C&M-PMS DES Learn Dsblty Hlth Chk,PRC DELEGATED CO-COMMISSIONING,NETHERGREEN SURGERY,39426608,140,S11 7EJ
Department of Health,NHS Sheffield CCG,31/01/2022,C&M-PMS LONG COVID ES,PRC DELEGATED CO-COMMISSIONING,NETHERGREEN SURGERY,39426608,382.79,S11 7EJ
Department of Health,NHS Sheffield CCG,31/01/2022,C&M-PMS PCN DES Participation,PRC DELEGATED CO-COMMISSIONING,NETHERGREEN SURGERY,39426608,1216.05,S11 7EJ
Department of Health,NHS Sheffield CCG,31/01/2022,C&M-PMS Prem Cost Rent,PRC DELEGATED CO-COMMISSIONING,NETHERGREEN SURGERY,39426608,5057.33,S11 7EJ
Department of Health,NHS Sheffield CCG,31/01/2022,C&M-PMS Prem Rates,PRC DELEGATED CO-COMMISSIONING,NETHERGREEN SURGERY,39426608,1285,S11 7EJ
Department of Health,NHS Sheffield CCG,31/01/2022,C&M-PMS QOF Aspiration,PRC DELEGATED CO-COMMISSIONING,NETHERGREEN SURGERY,39426608,7008.62,S11 7EJ
Department of Health,NHS Sheffield CCG,31/01/2022,C&M-PMS Contract Value,PRC DELEGATED CO-COMMISSIONING,MOSBOROUGH HEALTH CENTRE,39426612,53726.94,S20 5BQ
Department of Health,NHS Sheffield CCG,31/01/2022,C&M-PMS LONG COVID ES,PRC DELEGATED CO-COMMISSIONING,MOSBOROUGH HEALTH CENTRE,39426612,286.99,S20 5BQ
Department of Health,NHS Sheffield CCG,31/01/2022,C&M-PMS Out of Hours Opt Outs,PRC DELEGATED CO-COMMISSIONING,MOSBOROUGH HEALTH CENTRE,39426612,7.89,S20 5BQ
Department of Health,NHS Sheffield CCG,31/01/2022,C&M-PMS PCN DES Participation,PRC DELEGATED CO-COMMISSIONING,MOSBOROUGH HEALTH CENTRE,39426612,972.62,S20 5BQ
Department of Health,NHS Sheffield CCG,31/01/2022,C&M-PMS PCO Other,PRC DELEGATED CO-COMMISSIONING,MOSBOROUGH HEALTH CENTRE,39426612,447.8,S20 5BQ
Department of Health,NHS Sheffield CCG,31/01/2022,C&M-PMS Prem Notional Rent,PRC DELEGATED CO-COMMISSIONING,MOSBOROUGH HEALTH CENTRE,39426612,4541.67,S20 5BQ
Department of Health,NHS Sheffield CCG,31/01/2022,C&M-PMS Prem Rates,PRC DELEGATED CO-COMMISSIONING,MOSBOROUGH HEALTH CENTRE,39426612,711,S20 5BQ
Department of Health,NHS Sheffield CCG,31/01/2022,C&M-PMS QOF Aspiration,PRC DELEGATED CO-COMMISSIONING,MOSBOROUGH HEALTH CENTRE,39426612,6344.52,S20 5BQ
Department of Health,NHS Sheffield CCG,31/01/2022,C&M-PMS WEIGHT MANAGEMENT SERVICE,PRC DELEGATED CO-COMMISSIONING,MOSBOROUGH HEALTH CENTRE,39426612,46,S20 5BQ
Department of Health,NHS Sheffield CCG,31/01/2022,C&M-PMS Contract Value,PRC DELEGATED CO-COMMISSIONING,MOSBOROUGH HEALTH CENTRE,39426614,-445.96,S20 5BQ
Department of Health,NHS Sheffield CCG,31/01/2022,C&M-PMS GP Statutory Levy,PRC DELEGATED CO-COMMISSIONING,MOSBOROUGH HEALTH CENTRE,39426614,-242.03,S20 5BQ
Department of Health,NHS Sheffield CCG,31/01/2022,C&M-PMS Out of Hours Opt Outs,PRC DELEGATED CO-COMMISSIONING,MOSBOROUGH HEALTH CENTRE,39426614,-2532.59,S20 5BQ
Department of Health,NHS Sheffield CCG,31/01/2022,C&M-PMS Prem Notional Rent,PRC DELEGATED CO-COMMISSIONING,MOSBOROUGH HEALTH CENTRE,39426614,-339.58,S20 5BQ
Department of Health,NHS Sheffield CCG,31/01/2022,ME-PMS GP Pension ERs Adjs - PMS,PRC DELEGATED CO-COMMISSIONING,MOSBOROUGH HEALTH CENTRE,39426614,-539.25,S20 5BQ
Department of Health,NHS Sheffield CCG,31/01/2022,ME-PMS GP Pension ERs-PMS,PRC DELEGATED CO-COMMISSIONING,MOSBOROUGH HEALTH CENTRE,39426614,-4338.3,S20 5BQ
Department of Health,NHS Sheffield CCG,31/01/2022,C&M-PMS Contract Value,PRC DELEGATED CO-COMMISSIONING,RUSTLINGS ROAD MEDICAL CENTRE,39426617,31169.58,S11 7AB
Department of Health,NHS Sheffield CCG,31/01/2022,C&M-PMS LONG COVID ES,PRC DELEGATED CO-COMMISSIONING,RUSTLINGS ROAD MEDICAL CENTRE,39426617,193.13,S11 7AB
Department of Health,NHS Sheffield CCG,31/01/2022,C&M-PMS PCN DES Participation,PRC DELEGATED CO-COMMISSIONING,RUSTLINGS ROAD MEDICAL CENTRE,39426617,544.7,S11 7AB
Department of Health,NHS Sheffield CCG,31/01/2022,C&M-PMS PCO Other,PRC DELEGATED CO-COMMISSIONING,RUSTLINGS ROAD MEDICAL CENTRE,39426617,317.8,S11 7AB
Department of Health,NHS Sheffield CCG,31/01/2022,C&M-PMS Prem Notional Rent,PRC DELEGATED CO-COMMISSIONING,RUSTLINGS ROAD MEDICAL CENTRE,39426617,1341.67,S11 7AB
Department of Health,NHS Sheffield CCG,31/01/2022,C&M-PMS QOF Aspiration,PRC DELEGATED CO-COMMISSIONING,RUSTLINGS ROAD MEDICAL CENTRE,39426617,3139.32,S11 7AB
Department of Health,NHS Sheffield CCG,31/01/2022,C&M-PMS Contract Value,PRC DELEGATED CO-COMMISSIONING,RICHMOND MEDICAL CENTRE,39426620,74080.58,S13 8NA
Department of Health,NHS Sheffield CCG,31/01/2022,C&M-PMS DES Learn Dsblty Hlth Chk,PRC DELEGATED CO-COMMISSIONING,RICHMOND MEDICAL CENTRE,39426620,280,S13 8NA
Department of Health,NHS Sheffield CCG,31/01/2022,C&M-PMS LONG COVID ES,PRC DELEGATED CO-COMMISSIONING,RICHMOND MEDICAL CENTRE,39426620,380.03,S13 8NA
Department of Health,NHS Sheffield CCG,31/01/2022,C&M-PMS PCN DES Participation,PRC DELEGATED CO-COMMISSIONING,RICHMOND MEDICAL CENTRE,39426620,1317.91,S13 8NA
Department of Health,NHS Sheffield CCG,31/01/2022,C&M-PMS PCO Other,PRC DELEGATED CO-COMMISSIONING,RICHMOND MEDICAL CENTRE,39426620,576.4,S13 8NA
Department of Health,NHS Sheffield CCG,31/01/2022,C&M-PMS Prem Notional Rent,PRC DELEGATED CO-COMMISSIONING,RICHMOND MEDICAL CENTRE,39426620,6429.17,S13 8NA
Department of Health,NHS Sheffield CCG,31/01/2022,C&M-PMS Prem Rates,PRC DELEGATED CO-COMMISSIONING,RICHMOND MEDICAL CENTRE,39426620,1098,S13 8NA
Department of Health,NHS Sheffield CCG,31/01/2022,C&M-PMS QOF Aspiration,PRC DELEGATED CO-COMMISSIONING,RICHMOND MEDICAL CENTRE,39426620,8858.87,S13 8NA
Department of Health,NHS Sheffield CCG,31/01/2022,C&M-PMS WEIGHT MANAGEMENT SERVICE,PRC DELEGATED CO-COMMISSIONING,RICHMOND MEDICAL CENTRE,39426620,46,S13 8NA
Department of Health,NHS Sheffield CCG,31/01/2022,C&M-PMS Contract Value,PRC DELEGATED CO-COMMISSIONING,SELBORNE ROAD MEDICAL CENTRE,39426624,20344.32,S10 5ND
Department of Health,NHS Sheffield CCG,31/01/2022,C&M-PMS DES Learn Dsblty Hlth Chk,PRC DELEGATED CO-COMMISSIONING,SELBORNE ROAD MEDICAL CENTRE,39426624,420,S10 5ND
Department of Health,NHS Sheffield CCG,31/01/2022,C&M-PMS LONG COVID ES,PRC DELEGATED CO-COMMISSIONING,SELBORNE ROAD MEDICAL CENTRE,39426624,108.13,S10 5ND
Department of Health,NHS Sheffield CCG,31/01/2022,C&M-PMS Out of Hours Opt Outs,PRC DELEGATED CO-COMMISSIONING,SELBORNE ROAD MEDICAL CENTRE,39426624,8.8,S10 5ND
Department of Health,NHS Sheffield CCG,31/01/2022,C&M-PMS PCN DES Participation,PRC DELEGATED CO-COMMISSIONING,SELBORNE ROAD MEDICAL CENTRE,39426624,363.66,S10 5ND
Department of Health,NHS Sheffield CCG,31/01/2022,C&M-PMS PCO Other,PRC DELEGATED CO-COMMISSIONING,SELBORNE ROAD MEDICAL CENTRE,39426624,200.5,S10 5ND
Department of Health,NHS Sheffield CCG,31/01/2022,C&M-PMS Prem Notional Rent,PRC DELEGATED CO-COMMISSIONING,SELBORNE ROAD MEDICAL CENTRE,39426624,1735.42,S10 5ND
Department of Health,NHS Sheffield CCG,31/01/2022,C&M-PMS Prem Rates,PRC DELEGATED CO-COMMISSIONING,SELBORNE ROAD MEDICAL CENTRE,39426624,611,S10 5ND
Department of Health,NHS Sheffield CCG,31/01/2022,C&M-PMS QOF Aspiration,PRC DELEGATED CO-COMMISSIONING,SELBORNE ROAD MEDICAL CENTRE,39426624,2229.73,S10 5ND
Department of Health,NHS Sheffield CCG,31/01/2022,C&M-PMS Contract Value,PRC DELEGATED CO-COMMISSIONING,OWLTHORPE MEDICAL CENTRE,39426627,34600.51,S20 6PD
Department of Health,NHS Sheffield CCG,31/01/2022,C&M-PMS LONG COVID ES,PRC DELEGATED CO-COMMISSIONING,OWLTHORPE MEDICAL CENTRE,39426627,178.78,S20 6PD
Department of Health,NHS Sheffield CCG,31/01/2022,C&M-PMS Out of Hours Opt Outs,PRC DELEGATED CO-COMMISSIONING,OWLTHORPE MEDICAL CENTRE,39426627,8.44,S20 6PD
Department of Health,NHS Sheffield CCG,31/01/2022,C&M-PMS PCN DES Participation,PRC DELEGATED CO-COMMISSIONING,OWLTHORPE MEDICAL CENTRE,39426627,625.13,S20 6PD
Department of Health,NHS Sheffield CCG,31/01/2022,C&M-PMS PCO Locum Adop/Pat/Mat,PRC DELEGATED CO-COMMISSIONING,OWLTHORPE MEDICAL CENTRE,39426627,7355,S20 6PD
Department of Health,NHS Sheffield CCG,31/01/2022,C&M-PMS Prem Actual Rent,PRC DELEGATED CO-COMMISSIONING,OWLTHORPE MEDICAL CENTRE,39426627,7539.58,S20 6PD
Department of Health,NHS Sheffield CCG,31/01/2022,C&M-PMS Prem Rates,PRC DELEGATED CO-COMMISSIONING,OWLTHORPE MEDICAL CENTRE,39426627,1023,S20 6PD
Department of Health,NHS Sheffield CCG,31/01/2022,C&M-PMS Prem Water Rates,PRC DELEGATED CO-COMMISSIONING,OWLTHORPE MEDICAL CENTRE,39426627,36.01,S20 6PD
Department of Health,NHS Sheffield CCG,31/01/2022,C&M-PMS QOF Aspiration,PRC DELEGATED CO-COMMISSIONING,OWLTHORPE MEDICAL CENTRE,39426627,4236.51,S20 6PD
Department of Health,NHS Sheffield CCG,31/01/2022,C&M-PMS WEIGHT MANAGEMENT SERVICE,PRC DELEGATED CO-COMMISSIONING,OWLTHORPE MEDICAL CENTRE,39426627,34.5,S20 6PD
Department of Health,NHS Sheffield CCG,31/01/2022,C&M-PCN-PMS DES Leadership Payment,PRC DELEGATED CO-COMMISSIONING,FORGE HEALTH GROUP,39426632,7538.67,S3 9DL
Department of Health,NHS Sheffield CCG,31/01/2022,C&M-PMS Contract Value,PRC DELEGATED CO-COMMISSIONING,FORGE HEALTH GROUP,39426632,129487.87,S3 9DL
Department of Health,NHS Sheffield CCG,31/01/2022,C&M-PMS DES Extended Hours Access,PRC DELEGATED CO-COMMISSIONING,FORGE HEALTH GROUP,39426632,6820.92,S3 9DL
Department of Health,NHS Sheffield CCG,31/01/2022,C&M-PMS LONG COVID ES,PRC DELEGATED CO-COMMISSIONING,FORGE HEALTH GROUP,39426632,608.56,S3 9DL
Department of Health,NHS Sheffield CCG,31/01/2022,C&M-PMS PCN DES Clinical Director,PRC DELEGATED CO-COMMISSIONING,FORGE HEALTH GROUP,39426632,3486.25,S3 9DL
Department of Health,NHS Sheffield CCG,31/01/2022,C&M-PMS PCN DES PCN support,LOCAL ENHANCED SERVICES,FORGE HEALTH GROUP,39426632,7105.13,S3 9DL
Department of Health,NHS Sheffield CCG,31/01/2022,C&M-PMS PCN DES Participation,PRC DELEGATED CO-COMMISSIONING,FORGE HEALTH GROUP,39426632,2294.59,S3 9DL
Department of Health,NHS Sheffield CCG,31/01/2022,C&M-PMS Prem Healthcentre Rent,PRC DELEGATED CO-COMMISSIONING,FORGE HEALTH GROUP,39426632,35542.67,S3 9DL
Department of Health,NHS Sheffield CCG,31/01/2022,C&M-PMS Prem Notional Rent,PRC DELEGATED CO-COMMISSIONING,FORGE HEALTH GROUP,39426632,9891.67,S3 9DL
Department of Health,NHS Sheffield CCG,31/01/2022,C&M-PMS Prem Water Rates,PRC DELEGATED CO-COMMISSIONING,FORGE HEALTH GROUP,39426632,225.03,S3 9DL
Department of Health,NHS Sheffield CCG,31/01/2022,C&M-PMS QOF Aspiration,PRC DELEGATED CO-COMMISSIONING,FORGE HEALTH GROUP,39426632,12932.51,S3 9DL
Department of Health,NHS Sheffield CCG,31/01/2022,ME-PMS GP Pension ERs-PMS,PRC DELEGATED CO-COMMISSIONING,FORGE HEALTH GROUP,39426632,88.87,S3 9DL
Department of Health,NHS Sheffield CCG,31/01/2022,C&M-PMS Contract Value,PRC DELEGATED CO-COMMISSIONING,FORGE HEALTH GROUP,39426634,-650.39,S3 9DL
Department of Health,NHS Sheffield CCG,31/01/2022,C&M-PMS GP Statutory Levy,PRC DELEGATED CO-COMMISSIONING,FORGE HEALTH GROUP,39426634,-531.48,S3 9DL
Department of Health,NHS Sheffield CCG,31/01/2022,C&M-PMS Out of Hours Opt Outs,PRC DELEGATED CO-COMMISSIONING,FORGE HEALTH GROUP,39426634,-6087.93,S3 9DL
Department of Health,NHS Sheffield CCG,31/01/2022,ME-PMS GP Pension ERs Adjs - PMS,PRC DELEGATED CO-COMMISSIONING,FORGE HEALTH GROUP,39426634,-431.4,S3 9DL
Department of Health,NHS Sheffield CCG,31/01/2022,ME-PMS GP Pension ERs-PMS,PRC DELEGATED CO-COMMISSIONING,FORGE HEALTH GROUP,39426634,-18180.36,S3 9DL
Department of Health,NHS Sheffield CCG,31/01/2022,C&M-PMS Contract Value,PRC DELEGATED CO-COMMISSIONING,PORTER BROOK MEDICAL CENTRE,39426635,173319.08,S11 8HN
Department of Health,NHS Sheffield CCG,31/01/2022,C&M-PMS DES Learn Dsblty Hlth Chk,PRC DELEGATED CO-COMMISSIONING,PORTER BROOK MEDICAL CENTRE,39426635,840,S11 8HN
Department of Health,NHS Sheffield CCG,31/01/2022,C&M-PMS LONG COVID ES,PRC DELEGATED CO-COMMISSIONING,PORTER BROOK MEDICAL CENTRE,39426635,1189.1,S11 8HN
Department of Health,NHS Sheffield CCG,31/01/2022,C&M-PMS Out of Hours Opt Outs,PRC DELEGATED CO-COMMISSIONING,PORTER BROOK MEDICAL CENTRE,39426635,147.99,S11 8HN
Department of Health,NHS Sheffield CCG,31/01/2022,C&M-PMS PCN DES Participation,PRC DELEGATED CO-COMMISSIONING,PORTER BROOK MEDICAL CENTRE,39426635,3019.37,S11 8HN
Department of Health,NHS Sheffield CCG,31/01/2022,C&M-PMS PCO Other,PRC DELEGATED CO-COMMISSIONING,PORTER BROOK MEDICAL CENTRE,39426635,1695.4,S11 8HN
Department of Health,NHS Sheffield CCG,31/01/2022,C&M-PMS Prem Actual Rent,PRC DELEGATED CO-COMMISSIONING,PORTER BROOK MEDICAL CENTRE,39426635,1666.67,S11 8HN
Department of Health,NHS Sheffield CCG,31/01/2022,C&M-PMS Prem Notional Rent,PRC DELEGATED CO-COMMISSIONING,PORTER BROOK MEDICAL CENTRE,39426635,11600.01,S11 8HN
Department of Health,NHS Sheffield CCG,31/01/2022,C&M-PMS Prem Rates,PRC DELEGATED CO-COMMISSIONING,PORTER BROOK MEDICAL CENTRE,39426635,1812,S11 8HN
Department of Health,NHS Sheffield CCG,31/01/2022,C&M-PMS QOF Aspiration,PRC DELEGATED CO-COMMISSIONING,PORTER BROOK MEDICAL CENTRE,39426635,11138.7,S11 8HN
Department of Health,NHS Sheffield CCG,31/01/2022,C&M-PMS Contract Value,PRC DELEGATED CO-COMMISSIONING,PORTER BROOK MEDICAL CENTRE,39426637,-4011.43,S11 8HN
Department of Health,NHS Sheffield CCG,31/01/2022,C&M-PMS GP Statutory Levy,PRC DELEGATED CO-COMMISSIONING,PORTER BROOK MEDICAL CENTRE,39426637,-1018.99,S11 8HN
Department of Health,NHS Sheffield CCG,31/01/2022,C&M-PMS Out of Hours Opt Outs,PRC DELEGATED CO-COMMISSIONING,PORTER BROOK MEDICAL CENTRE,39426637,-8136.91,S11 8HN
Department of Health,NHS Sheffield CCG,31/01/2022,C&M-PMS Prem Notional Rent,PRC DELEGATED CO-COMMISSIONING,PORTER BROOK MEDICAL CENTRE,39426637,-1666.67,S11 8HN
Department of Health,NHS Sheffield CCG,31/01/2022,ME-PMS GP Pension ERs-PMS,PRC DELEGATED CO-COMMISSIONING,PORTER BROOK MEDICAL CENTRE,39426637,-14802.75,S11 8HN
Department of Health,NHS Sheffield CCG,31/01/2022,C&M-PMS Contract Value,PRC DELEGATED CO-COMMISSIONING,PAGE HALL MEDICAL CENTRE,39426639,61402.14,S4 8GB
Department of Health,NHS Sheffield CCG,31/01/2022,C&M-PMS DES Learn Dsblty Hlth Chk,PRC DELEGATED CO-COMMISSIONING,PAGE HALL MEDICAL CENTRE,39426639,560,S4 8GB
Department of Health,NHS Sheffield CCG,31/01/2022,C&M-PMS LONG COVID ES,PRC DELEGATED CO-COMMISSIONING,PAGE HALL MEDICAL CENTRE,39426639,328.42,S4 8GB
Department of Health,NHS Sheffield CCG,31/01/2022,C&M-PMS Out of Hours Opt Outs,PRC DELEGATED CO-COMMISSIONING,PAGE HALL MEDICAL CENTRE,39426639,18.53,S4 8GB
Department of Health,NHS Sheffield CCG,31/01/2022,C&M-PMS PCN DES Participation,PRC DELEGATED CO-COMMISSIONING,PAGE HALL MEDICAL CENTRE,39426639,1099.51,S4 8GB
Department of Health,NHS Sheffield CCG,31/01/2022,C&M-PMS PCO Other,PRC DELEGATED CO-COMMISSIONING,PAGE HALL MEDICAL CENTRE,39426639,504.9,S4 8GB
Department of Health,NHS Sheffield CCG,31/01/2022,C&M-PMS Prem Notional Rent,PRC DELEGATED CO-COMMISSIONING,PAGE HALL MEDICAL CENTRE,39426639,4833.33,S4 8GB
Department of Health,NHS Sheffield CCG,31/01/2022,C&M-PMS Prem Rates,PRC DELEGATED CO-COMMISSIONING,PAGE HALL MEDICAL CENTRE,39426639,848,S4 8GB
Department of Health,NHS Sheffield CCG,31/01/2022,C&M-PMS Prem Water Rates,PRC DELEGATED CO-COMMISSIONING,PAGE HALL MEDICAL CENTRE,39426639,162.69,S4 8GB
Department of Health,NHS Sheffield CCG,31/01/2022,C&M-PMS QOF Aspiration,PRC DELEGATED CO-COMMISSIONING,PAGE HALL MEDICAL CENTRE,39426639,5333.21,S4 8GB
Department of Health,NHS Sheffield CCG,31/01/2022,C&M-PMS WEIGHT MANAGEMENT SERVICE,PRC DELEGATED CO-COMMISSIONING,PAGE HALL MEDICAL CENTRE,39426639,46,S4 8GB
Department of Health,NHS Sheffield CCG,31/01/2022,ME-PMS GP Pension ERs-PMS,PRC DELEGATED CO-COMMISSIONING,PAGE HALL MEDICAL CENTRE,39426639,217.63,S4 8GB
Department of Health,NHS Sheffield CCG,31/01/2022,C&M-PMS Contract Value,PRC DELEGATED CO-COMMISSIONING,BURNGREAVE SURGERY,39426647,60317.12,S3 9DA
Department of Health,NHS Sheffield CCG,31/01/2022,C&M-PMS DES Learn Dsblty Hlth Chk,PRC DELEGATED CO-COMMISSIONING,BURNGREAVE SURGERY,39426647,840,S3 9DA
Department of Health,NHS Sheffield CCG,31/01/2022,C&M-PMS LONG COVID ES,PRC DELEGATED CO-COMMISSIONING,BURNGREAVE SURGERY,39426647,284.06,S3 9DA
Department of Health,NHS Sheffield CCG,31/01/2022,C&M-PMS Out of Hours Opt Outs,PRC DELEGATED CO-COMMISSIONING,BURNGREAVE SURGERY,39426647,23.69,S3 9DA
Department of Health,NHS Sheffield CCG,31/01/2022,C&M-PMS PCN DES Participation,PRC DELEGATED CO-COMMISSIONING,BURNGREAVE SURGERY,39426647,1072.06,S3 9DA
Department of Health,NHS Sheffield CCG,31/01/2022,C&M-PMS Prem Notional Rent,PRC DELEGATED CO-COMMISSIONING,BURNGREAVE SURGERY,39426647,6622.92,S3 9DA
Department of Health,NHS Sheffield CCG,31/01/2022,C&M-PMS Prem Rates,PRC DELEGATED CO-COMMISSIONING,BURNGREAVE SURGERY,39426647,2340,S3 9DA
Department of Health,NHS Sheffield CCG,31/01/2022,C&M-PMS QOF Aspiration,PRC DELEGATED CO-COMMISSIONING,BURNGREAVE SURGERY,39426647,5671.9,S3 9DA
Department of Health,NHS Sheffield CCG,31/01/2022,C&M-PMS Contract Value,PRC DELEGATED CO-COMMISSIONING,BURNCROSS SURGERY,39426652,127123.64,S35 1RN
Department of Health,NHS Sheffield CCG,31/01/2022,C&M-PMS DES Learn Dsblty Hlth Chk,PRC DELEGATED CO-COMMISSIONING,BURNCROSS SURGERY,39426652,840,S35 1RN
Department of Health,NHS Sheffield CCG,31/01/2022,C&M-PMS LONG COVID ES,PRC DELEGATED CO-COMMISSIONING,BURNCROSS SURGERY,39426652,618.33,S35 1RN
Department of Health,NHS Sheffield CCG,31/01/2022,C&M-PMS PCN DES Participation,PRC DELEGATED CO-COMMISSIONING,BURNCROSS SURGERY,39426652,2296.43,S35 1RN
Department of Health,NHS Sheffield CCG,31/01/2022,C&M-PMS Prem Notional Rent,PRC DELEGATED CO-COMMISSIONING,BURNCROSS SURGERY,39426652,14919.67,S35 1RN
Department of Health,NHS Sheffield CCG,31/01/2022,C&M-PMS QOF Aspiration,PRC DELEGATED CO-COMMISSIONING,BURNCROSS SURGERY,39426652,16606.07,S35 1RN
Department of Health,NHS Sheffield CCG,31/01/2022,C&M-PMS WEIGHT MANAGEMENT SERVICE,PRC DELEGATED CO-COMMISSIONING,BURNCROSS SURGERY,39426652,34.5,S35 1RN
Department of Health,NHS Sheffield CCG,31/01/2022,C&M-APMS Contract Value,PRC DELEGATED CO-COMMISSIONING,CLOVER GROUP PRACTICE,39426655,126839.56,S9 4QH
Department of Health,NHS Sheffield CCG,31/01/2022,C&M-APMS DES Learn Dsblty Hlth Chk,PRC DELEGATED CO-COMMISSIONING,CLOVER GROUP PRACTICE,39426655,140,S9 4QH
Department of Health,NHS Sheffield CCG,31/01/2022,C&M-APMS LONG COVID ES,PRC DELEGATED CO-COMMISSIONING,CLOVER GROUP PRACTICE,39426655,620.35,S9 4QH
Department of Health,NHS Sheffield CCG,31/01/2022,C&M-APMS OOH Opt Outs,PRC DELEGATED CO-COMMISSIONING,CLOVER GROUP PRACTICE,39426655,692.85,S9 4QH
Department of Health,NHS Sheffield CCG,31/01/2022,C&M-APMS PCN DES Participation,PRC DELEGATED CO-COMMISSIONING,CLOVER GROUP PRACTICE,39426655,2290.04,S9 4QH
Department of Health,NHS Sheffield CCG,31/01/2022,C&M-APMS Prem Actual Rent,PRC DELEGATED CO-COMMISSIONING,CLOVER GROUP PRACTICE,39426655,5169.68,S9 4QH
Department of Health,NHS Sheffield CCG,31/01/2022,C&M-APMS Prem Healthcentre Rent,PRC DELEGATED CO-COMMISSIONING,CLOVER GROUP PRACTICE,39426655,51020.3,S9 4QH
Department of Health,NHS Sheffield CCG,31/01/2022,C&M-APMS Prem Notional Rent,PRC DELEGATED CO-COMMISSIONING,CLOVER GROUP PRACTICE,39426655,2804.17,S9 4QH
Department of Health,NHS Sheffield CCG,31/01/2022,C&M-APMS QOF Aspiration,PRC DELEGATED CO-COMMISSIONING,CLOVER GROUP PRACTICE,39426655,9965.6,S9 4QH
Department of Health,NHS Sheffield CCG,31/01/2022,C&M-APMS WEIGHT MANAGEMENT SERVICE,PRC DELEGATED CO-COMMISSIONING,CLOVER GROUP PRACTICE,39426655,23,S9 4QH
Department of Health,NHS Sheffield CCG,31/01/2022,C&M-PMS Contract Value,PRC DELEGATED CO-COMMISSIONING,BIRLEY HEALTH CENTRE,39426661,68411.49,S12 3BP
Department of Health,NHS Sheffield CCG,31/01/2022,C&M-PMS DES Learn Dsblty Hlth Chk,PRC DELEGATED CO-COMMISSIONING,BIRLEY HEALTH CENTRE,39426661,840,S12 3BP
Department of Health,NHS Sheffield CCG,31/01/2022,C&M-PMS LONG COVID ES,PRC DELEGATED CO-COMMISSIONING,BIRLEY HEALTH CENTRE,39426661,353.32,S12 3BP
Department of Health,NHS Sheffield CCG,31/01/2022,C&M-PMS PCN DES Participation,PRC DELEGATED CO-COMMISSIONING,BIRLEY HEALTH CENTRE,39426661,1224.59,S12 3BP
Department of Health,NHS Sheffield CCG,31/01/2022,C&M-PMS Prem Notional Rent,PRC DELEGATED CO-COMMISSIONING,BIRLEY HEALTH CENTRE,39426661,7600.58,S12 3BP
Department of Health,NHS Sheffield CCG,31/01/2022,C&M-PMS Prem Rates,PRC DELEGATED CO-COMMISSIONING,BIRLEY HEALTH CENTRE,39426661,895,S12 3BP
Department of Health,NHS Sheffield CCG,31/01/2022,C&M-PMS QOF Aspiration,PRC DELEGATED CO-COMMISSIONING,BIRLEY HEALTH CENTRE,39426661,8434.07,S12 3BP
Department of Health,NHS Sheffield CCG,31/01/2022,C&M-PMS Contract Value,PRC DELEGATED CO-COMMISSIONING,SLOAN MEDICAL CENTRE,39426665,103402.46,S8 0YH
Department of Health,NHS Sheffield CCG,31/01/2022,C&M-PMS DES Learn Dsblty Hlth Chk,PRC DELEGATED CO-COMMISSIONING,SLOAN MEDICAL CENTRE,39426665,2940,S8 0YH
Department of Health,NHS Sheffield CCG,31/01/2022,C&M-PMS LONG COVID ES,PRC DELEGATED CO-COMMISSIONING,SLOAN MEDICAL CENTRE,39426665,556.21,S8 0YH
Department of Health,NHS Sheffield CCG,31/01/2022,C&M-PMS Out of Hours Opt Outs,PRC DELEGATED CO-COMMISSIONING,SLOAN MEDICAL CENTRE,39426665,5.59,S8 0YH
Department of Health,NHS Sheffield CCG,31/01/2022,C&M-PMS PCN DES Participation,PRC DELEGATED CO-COMMISSIONING,SLOAN MEDICAL CENTRE,39426665,1849.06,S8 0YH
Department of Health,NHS Sheffield CCG,31/01/2022,C&M-PMS PCO Locum Adop/Pat/Mat,PRC DELEGATED CO-COMMISSIONING,SLOAN MEDICAL CENTRE,39426665,8030,S8 0YH
Department of Health,NHS Sheffield CCG,31/01/2022,C&M-PMS PCO Other,PRC DELEGATED CO-COMMISSIONING,SLOAN MEDICAL CENTRE,39426665,819.8,S8 0YH
Department of Health,NHS Sheffield CCG,31/01/2022,C&M-PMS Prem Actual Rent,PRC DELEGATED CO-COMMISSIONING,SLOAN MEDICAL CENTRE,39426665,47912.5,S8 0YH
Department of Health,NHS Sheffield CCG,31/01/2022,C&M-PMS Prem Notional Rent,PRC DELEGATED CO-COMMISSIONING,SLOAN MEDICAL CENTRE,39426665,747.5,S8 0YH
Department of Health,NHS Sheffield CCG,31/01/2022,C&M-PMS QOF Aspiration,PRC DELEGATED CO-COMMISSIONING,SLOAN MEDICAL CENTRE,39426665,11094.95,S8 0YH
Department of Health,NHS Sheffield CCG,31/01/2022,C&M-PMS WEIGHT MANAGEMENT SERVICE,PRC DELEGATED CO-COMMISSIONING,SLOAN MEDICAL CENTRE,39426665,46,S8 0YH
Department of Health,NHS Sheffield CCG,31/01/2022,C&M-PMS Contract Value,PRC DELEGATED CO-COMMISSIONING,SLOAN MEDICAL CENTRE,39426667,-645.33,S8 0YH
Department of Health,NHS Sheffield CCG,31/01/2022,C&M-PMS GP Statutory Levy,PRC DELEGATED CO-COMMISSIONING,SLOAN MEDICAL CENTRE,39426667,-479.99,S8 0YH
Department of Health,NHS Sheffield CCG,31/01/2022,C&M-PMS Out of Hours Opt Outs,PRC DELEGATED CO-COMMISSIONING,SLOAN MEDICAL CENTRE,39426667,-4872.24,S8 0YH
Department of Health,NHS Sheffield CCG,31/01/2022,ME-PMS GP Pension ERs-PMS,PRC DELEGATED CO-COMMISSIONING,SLOAN MEDICAL CENTRE,39426667,-7523.55,S8 0YH
Department of Health,NHS Sheffield CCG,31/01/2022,C&M-PMS Contract Value,PRC DELEGATED CO-COMMISSIONING,SOTHALL MEDICAL CENTRE,39426669,75689.4,S20 1HQ
Department of Health,NHS Sheffield CCG,31/01/2022,C&M-PMS DES Learn Dsblty Hlth Chk,PRC DELEGATED CO-COMMISSIONING,SOTHALL MEDICAL CENTRE,39426669,280,S20 1HQ
Department of Health,NHS Sheffield CCG,31/01/2022,C&M-PMS LONG COVID ES,PRC DELEGATED CO-COMMISSIONING,SOTHALL MEDICAL CENTRE,39426669,416.01,S20 1HQ
Department of Health,NHS Sheffield CCG,31/01/2022,C&M-PMS Out of Hours Opt Outs,PRC DELEGATED CO-COMMISSIONING,SOTHALL MEDICAL CENTRE,39426669,42.51,S20 1HQ
Department of Health,NHS Sheffield CCG,31/01/2022,C&M-PMS PCN DES Participation,PRC DELEGATED CO-COMMISSIONING,SOTHALL MEDICAL CENTRE,39426669,1370.05,S20 1HQ
Department of Health,NHS Sheffield CCG,31/01/2022,C&M-PMS PCO Other,PRC DELEGATED CO-COMMISSIONING,SOTHALL MEDICAL CENTRE,39426669,626.1,S20 1HQ
Department of Health,NHS Sheffield CCG,31/01/2022,C&M-PMS Prem Notional Rent,PRC DELEGATED CO-COMMISSIONING,SOTHALL MEDICAL CENTRE,39426669,5237.5,S20 1HQ
Department of Health,NHS Sheffield CCG,31/01/2022,C&M-PMS Prem Rates,PRC DELEGATED CO-COMMISSIONING,SOTHALL MEDICAL CENTRE,39426669,617,S20 1HQ
Department of Health,NHS Sheffield CCG,31/01/2022,C&M-PMS QOF Aspiration,PRC DELEGATED CO-COMMISSIONING,SOTHALL MEDICAL CENTRE,39426669,9478.91,S20 1HQ
Department of Health,NHS Sheffield CCG,31/01/2022,C&M-PMS WEIGHT MANAGEMENT SERVICE,PRC DELEGATED CO-COMMISSIONING,SOTHALL MEDICAL CENTRE,39426669,103.5,S20 1HQ
Department of Health,NHS Sheffield CCG,31/01/2022,C&M-PMS Contract Value,PRC DELEGATED CO-COMMISSIONING,SOUTHEY GREEN MEDICAL CENTRE,39426673,26049.77,S5 7QB
Department of Health,NHS Sheffield CCG,31/01/2022,C&M-PMS LONG COVID ES,PRC DELEGATED CO-COMMISSIONING,SOUTHEY GREEN MEDICAL CENTRE,39426673,119.17,S5 7QB
Department of Health,NHS Sheffield CCG,31/01/2022,C&M-PMS Out of Hours Opt Outs,PRC DELEGATED CO-COMMISSIONING,SOUTHEY GREEN MEDICAL CENTRE,39426673,42.12,S5 7QB
Department of Health,NHS Sheffield CCG,31/01/2022,C&M-PMS PCN DES Participation,PRC DELEGATED CO-COMMISSIONING,SOUTHEY GREEN MEDICAL CENTRE,39426673,470.48,S5 7QB
Department of Health,NHS Sheffield CCG,31/01/2022,C&M-PMS Prem Notional Rent,PRC DELEGATED CO-COMMISSIONING,SOUTHEY GREEN MEDICAL CENTRE,39426673,3362.5,S5 7QB
Department of Health,NHS Sheffield CCG,31/01/2022,C&M-PMS QOF Aspiration,PRC DELEGATED CO-COMMISSIONING,SOUTHEY GREEN MEDICAL CENTRE,39426673,2952.99,S5 7QB
Department of Health,NHS Sheffield CCG,31/01/2022,C&M-PMS Contract Value,PRC DELEGATED CO-COMMISSIONING,GREEN CROSS GROUP PRACTICE,39426676,65408.63,S5 0AE
Department of Health,NHS Sheffield CCG,31/01/2022,C&M-PMS LONG COVID ES,PRC DELEGATED CO-COMMISSIONING,GREEN CROSS GROUP PRACTICE,39426676,322.32,S5 0AE
Department of Health,NHS Sheffield CCG,31/01/2022,C&M-PMS PCN DES Participation,PRC DELEGATED CO-COMMISSIONING,GREEN CROSS GROUP PRACTICE,39426676,798.5,S5 0AE
Department of Health,NHS Sheffield CCG,31/01/2022,C&M-PMS PCO Locum Adop/Pat/Mat,PRC DELEGATED CO-COMMISSIONING,GREEN CROSS GROUP PRACTICE,39426676,15847.3,S5 0AE
Department of Health,NHS Sheffield CCG,31/01/2022,C&M-PMS PCO Other,PRC DELEGATED CO-COMMISSIONING,GREEN CROSS GROUP PRACTICE,39426676,547.3,S5 0AE
Department of Health,NHS Sheffield CCG,31/01/2022,C&M-PMS Prem Notional Rent,PRC DELEGATED CO-COMMISSIONING,GREEN CROSS GROUP PRACTICE,39426676,5558.33,S5 0AE
Department of Health,NHS Sheffield CCG,31/01/2022,C&M-PMS QOF Aspiration,PRC DELEGATED CO-COMMISSIONING,GREEN CROSS GROUP PRACTICE,39426676,6643.07,S5 0AE
Department of Health,NHS Sheffield CCG,31/01/2022,C&M- PCN DES Nursing Associate,PRC DELEGATED CO-COMMISSIONING,DYKES HALL MEDICAL CENTRE,39426679,4699.53,S6 4GQ
Department of Health,NHS Sheffield CCG,31/01/2022,C&M-PCN DES PHARMACY TECHNICIANS,PRC DELEGATED CO-COMMISSIONING,DYKES HALL MEDICAL CENTRE,39426679,3035.67,S6 4GQ
Department of Health,NHS Sheffield CCG,31/01/2022,C&M-PCN DES Trainee Nursing Associate,PRC DELEGATED CO-COMMISSIONING,DYKES HALL MEDICAL CENTRE,39426679,1807.78,S6 4GQ
Department of Health,NHS Sheffield CCG,31/01/2022,C&M-PCN-PMS DES Leadership Payment,PRC DELEGATED CO-COMMISSIONING,DYKES HALL MEDICAL CENTRE,39426679,4050.67,S6 4GQ
Department of Health,NHS Sheffield CCG,31/01/2022,C&M-PMS Contract Value,PRC DELEGATED CO-COMMISSIONING,DYKES HALL MEDICAL CENTRE,39426679,74345.31,S6 4GQ
Department of Health,NHS Sheffield CCG,31/01/2022,C&M-PMS DES Extended Hours Access,PRC DELEGATED CO-COMMISSIONING,DYKES HALL MEDICAL CENTRE,39426679,4281.12,S6 4GQ
Department of Health,NHS Sheffield CCG,31/01/2022,C&M-PMS DES Learn Dsblty Hlth Chk,PRC DELEGATED CO-COMMISSIONING,DYKES HALL MEDICAL CENTRE,39426679,700,S6 4GQ
Department of Health,NHS Sheffield CCG,31/01/2022,C&M-PMS LONG COVID ES,PRC DELEGATED CO-COMMISSIONING,DYKES HALL MEDICAL CENTRE,39426679,389.34,S6 4GQ
Department of Health,NHS Sheffield CCG,31/01/2022,C&M-PMS Out of Hours Opt Outs,PRC DELEGATED CO-COMMISSIONING,DYKES HALL MEDICAL CENTRE,39426679,72.32,S6 4GQ
Department of Health,NHS Sheffield CCG,31/01/2022,C&M-PMS PCN DES Clin Pharmacist,PRC DELEGATED CO-COMMISSIONING,DYKES HALL MEDICAL CENTRE,39426679,15672.44,S6 4GQ
Department of Health,NHS Sheffield CCG,31/01/2022,C&M-PMS PCN DES Clinical Director,PRC DELEGATED CO-COMMISSIONING,DYKES HALL MEDICAL CENTRE,39426679,2188.13,S6 4GQ
Department of Health,NHS Sheffield CCG,31/01/2022,C&M-PMS PCN DES PCN support,LOCAL ENHANCED SERVICES,DYKES HALL MEDICAL CENTRE,39426679,4459.5,S6 4GQ
Department of Health,NHS Sheffield CCG,31/01/2022,C&M-PMS PCN DES Participation,PRC DELEGATED CO-COMMISSIONING,DYKES HALL MEDICAL CENTRE,39426679,1345.01,S6 4GQ
Department of Health,NHS Sheffield CCG,31/01/2022,C&M-PMS PCN DES Physiotherapist,PRC DELEGATED CO-COMMISSIONING,DYKES HALL MEDICAL CENTRE,39426679,6494.84,S6 4GQ
Department of Health,NHS Sheffield CCG,31/01/2022,C&M-PMS PCN DES Soc Prescribing,PRC DELEGATED CO-COMMISSIONING,DYKES HALL MEDICAL CENTRE,39426679,2949,S6 4GQ
Department of Health,NHS Sheffield CCG,31/01/2022,C&M-PMS Prem Notional Rent,PRC DELEGATED CO-COMMISSIONING,DYKES HALL MEDICAL CENTRE,39426679,5527.08,S6 4GQ
Department of Health,NHS Sheffield CCG,31/01/2022,C&M-PMS Prem Rates,PRC DELEGATED CO-COMMISSIONING,DYKES HALL MEDICAL CENTRE,39426679,910,S6 4GQ
Department of Health,NHS Sheffield CCG,31/01/2022,C&M-PMS QOF Aspiration,PRC DELEGATED CO-COMMISSIONING,DYKES HALL MEDICAL CENTRE,39426679,9390.15,S6 4GQ
Department of Health,NHS Sheffield CCG,31/01/2022,C&M-PMS Contract Value,PRC DELEGATED CO-COMMISSIONING,DYKES HALL MEDICAL CENTRE,39426682,-1918.94,S6 4GQ
Department of Health,NHS Sheffield CCG,31/01/2022,C&M-PMS GP Statutory Levy,PRC DELEGATED CO-COMMISSIONING,DYKES HALL MEDICAL CENTRE,39426682,-322.35,S6 4GQ
Department of Health,NHS Sheffield CCG,31/01/2022,C&M-PMS Out of Hours Opt Outs,PRC DELEGATED CO-COMMISSIONING,DYKES HALL MEDICAL CENTRE,39426682,-3499.83,S6 4GQ
Department of Health,NHS Sheffield CCG,31/01/2022,ME-PMS GP Pension ERs-PMS,PRC DELEGATED CO-COMMISSIONING,DYKES HALL MEDICAL CENTRE,39426682,-7537.53,S6 4GQ
Department of Health,NHS Sheffield CCG,31/01/2022,C&M-PMS Contract Value,PRC DELEGATED CO-COMMISSIONING,EAST BANK MEDICAL CENTRE,39426683,53203.36,S2 2AG
Department of Health,NHS Sheffield CCG,31/01/2022,C&M-PMS DES Learn Dsblty Hlth Chk,PRC DELEGATED CO-COMMISSIONING,EAST BANK MEDICAL CENTRE,39426683,840,S2 2AG
Department of Health,NHS Sheffield CCG,31/01/2022,C&M-PMS LONG COVID ES,PRC DELEGATED CO-COMMISSIONING,EAST BANK MEDICAL CENTRE,39426683,252.65,S2 2AG
Department of Health,NHS Sheffield CCG,31/01/2022,C&M-PMS PCN DES Participation,PRC DELEGATED CO-COMMISSIONING,EAST BANK MEDICAL CENTRE,39426683,945.64,S2 2AG
Department of Health,NHS Sheffield CCG,31/01/2022,C&M-PMS Prem Notional Rent,PRC DELEGATED CO-COMMISSIONING,EAST BANK MEDICAL CENTRE,39426683,10583.33,S2 2AG
Department of Health,NHS Sheffield CCG,31/01/2022,C&M-PMS Prem Rates,PRC DELEGATED CO-COMMISSIONING,EAST BANK MEDICAL CENTRE,39426683,2065,S2 2AG
Department of Health,NHS Sheffield CCG,31/01/2022,C&M-PMS QOF Aspiration,PRC DELEGATED CO-COMMISSIONING,EAST BANK MEDICAL CENTRE,39426683,5744.23,S2 2AG
Department of Health,NHS Sheffield CCG,31/01/2022,C&M-PMS WEIGHT MANAGEMENT SERVICE,PRC DELEGATED CO-COMMISSIONING,EAST BANK MEDICAL CENTRE,39426683,23,S2 2AG
Department of Health,NHS Sheffield CCG,31/01/2022,C&M-PMS Contract Value,PRC DELEGATED CO-COMMISSIONING,DR MEHROTRA & PARTNER,39426687,26303.18,S9 5DH
Department of Health,NHS Sheffield CCG,31/01/2022,C&M-PMS LONG COVID ES,PRC DELEGATED CO-COMMISSIONING,DR MEHROTRA & PARTNER,39426687,125.56,S9 5DH
Department of Health,NHS Sheffield CCG,31/01/2022,C&M-PMS PCN DES Participation,PRC DELEGATED CO-COMMISSIONING,DR MEHROTRA & PARTNER,39426687,457.08,S9 5DH
Department of Health,NHS Sheffield CCG,31/01/2022,C&M-PMS Prem Notional Rent,PRC DELEGATED CO-COMMISSIONING,DR MEHROTRA & PARTNER,39426687,5157.29,S9 5DH
Department of Health,NHS Sheffield CCG,31/01/2022,C&M-PMS QOF Aspiration,PRC DELEGATED CO-COMMISSIONING,DR MEHROTRA & PARTNER,39426687,2925.04,S9 5DH
Department of Health,NHS Sheffield CCG,31/01/2022,C&M-PMS WEIGHT MANAGEMENT SERVICE,PRC DELEGATED CO-COMMISSIONING,DR MEHROTRA & PARTNER,39426687,195.5,S9 5DH
Department of Health,NHS Sheffield CCG,31/01/2022,C&M-PMS Contract Value,PRC DELEGATED CO-COMMISSIONING,DEEPCAR MEDICAL CENTRE,39426690,43351.63,S36 2RA
Department of Health,NHS Sheffield CCG,31/01/2022,C&M-PMS DES Learn Dsblty Hlth Chk,PRC DELEGATED CO-COMMISSIONING,DEEPCAR MEDICAL CENTRE,39426690,1400,S36 2RA
Department of Health,NHS Sheffield CCG,31/01/2022,C&M-PMS LONG COVID ES,PRC DELEGATED CO-COMMISSIONING,DEEPCAR MEDICAL CENTRE,39426690,217.98,S36 2RA
Department of Health,NHS Sheffield CCG,31/01/2022,C&M-PMS Out of Hours Opt Outs,PRC DELEGATED CO-COMMISSIONING,DEEPCAR MEDICAL CENTRE,39426690,24.05,S36 2RA
Department of Health,NHS Sheffield CCG,31/01/2022,C&M-PMS PCN DES Participation,PRC DELEGATED CO-COMMISSIONING,DEEPCAR MEDICAL CENTRE,39426690,784.44,S36 2RA
Department of Health,NHS Sheffield CCG,31/01/2022,C&M-PMS Prem Healthcentre Rent,PRC DELEGATED CO-COMMISSIONING,DEEPCAR MEDICAL CENTRE,39426690,31188.15,S36 2RA
Department of Health,NHS Sheffield CCG,31/01/2022,C&M-PMS QOF Aspiration,PRC DELEGATED CO-COMMISSIONING,DEEPCAR MEDICAL CENTRE,39426690,4646.77,S36 2RA
Department of Health,NHS Sheffield CCG,31/01/2022,C&M-PMS Contract Value,PRC DELEGATED CO-COMMISSIONING,FALKLAND HOUSE,39426693,28137.51,S11 7PL
Department of Health,NHS Sheffield CCG,31/01/2022,C&M-PMS DES Learn Dsblty Hlth Chk,PRC DELEGATED CO-COMMISSIONING,FALKLAND HOUSE,39426693,1120,S11 7PL
Department of Health,NHS Sheffield CCG,31/01/2022,C&M-PMS LONG COVID ES,PRC DELEGATED CO-COMMISSIONING,FALKLAND HOUSE,39426693,164.77,S11 7PL
Department of Health,NHS Sheffield CCG,31/01/2022,C&M-PMS PCN DES Participation,PRC DELEGATED CO-COMMISSIONING,FALKLAND HOUSE,39426693,501.49,S11 7PL
Department of Health,NHS Sheffield CCG,31/01/2022,C&M-PMS PCO Other,PRC DELEGATED CO-COMMISSIONING,FALKLAND HOUSE,39426693,278.9,S11 7PL
Department of Health,NHS Sheffield CCG,31/01/2022,C&M-PMS Prem Notional Rent,PRC DELEGATED CO-COMMISSIONING,FALKLAND HOUSE,39426693,1904.17,S11 7PL
Department of Health,NHS Sheffield CCG,31/01/2022,C&M-PMS Prem Rates,PRC DELEGATED CO-COMMISSIONING,FALKLAND HOUSE,39426693,786,S11 7PL
Department of Health,NHS Sheffield CCG,31/01/2022,C&M-PMS QOF Aspiration,PRC DELEGATED CO-COMMISSIONING,FALKLAND HOUSE,39426693,3362.7,S11 7PL
Department of Health,NHS Sheffield CCG,31/01/2022,C&M-PMS Contract Value,PRC DELEGATED CO-COMMISSIONING,DR MILNER & PARTNERS,39426697,81176.13,S6 4JQ
Department of Health,NHS Sheffield CCG,31/01/2022,C&M-PMS DES Learn Dsblty Hlth Chk,PRC DELEGATED CO-COMMISSIONING,DR MILNER & PARTNERS,39426697,2100,S6 4JQ
Department of Health,NHS Sheffield CCG,31/01/2022,C&M-PMS LONG COVID ES,PRC DELEGATED CO-COMMISSIONING,DR MILNER & PARTNERS,39426697,442.11,S6 4JQ
Department of Health,NHS Sheffield CCG,31/01/2022,C&M-PMS Out of Hours Opt Outs,PRC DELEGATED CO-COMMISSIONING,DR MILNER & PARTNERS,39426697,35.09,S6 4JQ
Department of Health,NHS Sheffield CCG,31/01/2022,C&M-PMS PCN DES Participation,PRC DELEGATED CO-COMMISSIONING,DR MILNER & PARTNERS,39426697,1456.05,S6 4JQ
Department of Health,NHS Sheffield CCG,31/01/2022,C&M-PMS PCO Locum Sickness,PRC DELEGATED CO-COMMISSIONING,DR MILNER & PARTNERS,39426697,3867.5,S6 4JQ
Department of Health,NHS Sheffield CCG,31/01/2022,C&M-PMS Prem Actual Rent,PRC DELEGATED CO-COMMISSIONING,DR MILNER & PARTNERS,39426697,11382,S6 4JQ
Department of Health,NHS Sheffield CCG,31/01/2022,C&M-PMS Prem Notional Rent,PRC DELEGATED CO-COMMISSIONING,DR MILNER & PARTNERS,39426697,15996.59,S6 4JQ
Department of Health,NHS Sheffield CCG,31/01/2022,C&M-PMS Prem Rates,PRC DELEGATED CO-COMMISSIONING,DR MILNER & PARTNERS,39426697,1944,S6 4JQ
Department of Health,NHS Sheffield CCG,31/01/2022,C&M-PMS Prem Water Rates,PRC DELEGATED CO-COMMISSIONING,DR MILNER & PARTNERS,39426697,682.22,S6 4JQ
Department of Health,NHS Sheffield CCG,31/01/2022,C&M-PMS QOF Aspiration,PRC DELEGATED CO-COMMISSIONING,DR MILNER & PARTNERS,39426697,7550.33,S6 4JQ
Department of Health,NHS Sheffield CCG,31/01/2022,C&M-PMS Contract Value,PRC DELEGATED CO-COMMISSIONING,DR MILNER & PARTNERS,39426700,-1174.09,S6 4JQ
Department of Health,NHS Sheffield CCG,31/01/2022,C&M-PMS GP Statutory Levy,PRC DELEGATED CO-COMMISSIONING,DR MILNER & PARTNERS,39426700,-375.55,S6 4JQ
Department of Health,NHS Sheffield CCG,31/01/2022,C&M-PMS Out of Hours Opt Outs,PRC DELEGATED CO-COMMISSIONING,DR MILNER & PARTNERS,39426700,-3827.58,S6 4JQ
Department of Health,NHS Sheffield CCG,31/01/2022,C&M-PMS Prem Notional Rent,PRC DELEGATED CO-COMMISSIONING,DR MILNER & PARTNERS,39426700,-11382,S6 4JQ
Department of Health,NHS Sheffield CCG,31/01/2022,ME-PMS GP Pension ERs-PMS,PRC DELEGATED CO-COMMISSIONING,DR MILNER & PARTNERS,39426700,-5935.15,S6 4JQ
Department of Health,NHS Sheffield CCG,31/01/2022,C&M-PMS Contract Value,PRC DELEGATED CO-COMMISSIONING,DOVERCOURT SURGERY,39426702,80923.47,S2 5FX
Department of Health,NHS Sheffield CCG,31/01/2022,C&M-PMS DES Learn Dsblty Hlth Chk,PRC DELEGATED CO-COMMISSIONING,DOVERCOURT SURGERY,39426702,3220,S2 5FX
Department of Health,NHS Sheffield CCG,31/01/2022,C&M-PMS LONG COVID ES,PRC DELEGATED CO-COMMISSIONING,DOVERCOURT SURGERY,39426702,362.38,S2 5FX
Department of Health,NHS Sheffield CCG,31/01/2022,C&M-PMS Out of Hours Opt Outs,PRC DELEGATED CO-COMMISSIONING,DOVERCOURT SURGERY,39426702,11.75,S2 5FX
Department of Health,NHS Sheffield CCG,31/01/2022,C&M-PMS PCN DES Participation,PRC DELEGATED CO-COMMISSIONING,DOVERCOURT SURGERY,39426702,1436.25,S2 5FX
Department of Health,NHS Sheffield CCG,31/01/2022,C&M-PMS PCO Other,PRC DELEGATED CO-COMMISSIONING,DOVERCOURT SURGERY,39426702,552,S2 5FX
Department of Health,NHS Sheffield CCG,31/01/2022,C&M-PMS Prem Actual Rent,PRC DELEGATED CO-COMMISSIONING,DOVERCOURT SURGERY,39426702,14108.33,S2 5FX
Department of Health,NHS Sheffield CCG,31/01/2022,C&M-PMS Prem Notional Rent,PRC DELEGATED CO-COMMISSIONING,DOVERCOURT SURGERY,39426702,2158.33,S2 5FX
Department of Health,NHS Sheffield CCG,31/01/2022,C&M-PMS Prem Water Rates,PRC DELEGATED CO-COMMISSIONING,DOVERCOURT SURGERY,39426702,79.42,S2 5FX
Department of Health,NHS Sheffield CCG,31/01/2022,C&M-PMS QOF Aspiration,PRC DELEGATED CO-COMMISSIONING,DOVERCOURT SURGERY,39426702,8804.83,S2 5FX
Department of Health,NHS Sheffield CCG,31/01/2022,C&M-PMS Contract Value,PRC DELEGATED CO-COMMISSIONING,FIRTH PARK SURGERY,39426705,80907.98,S5 6HH
Department of Health,NHS Sheffield CCG,31/01/2022,C&M-PMS LONG COVID ES,PRC DELEGATED CO-COMMISSIONING,FIRTH PARK SURGERY,39426705,413.67,S5 6HH
Department of Health,NHS Sheffield CCG,31/01/2022,C&M-PMS Out of Hours Opt Outs,PRC DELEGATED CO-COMMISSIONING,FIRTH PARK SURGERY,39426705,53.1,S5 6HH
Department of Health,NHS Sheffield CCG,31/01/2022,C&M-PMS PCN DES Participation,PRC DELEGATED CO-COMMISSIONING,FIRTH PARK SURGERY,39426705,1461.7,S5 6HH
Department of Health,NHS Sheffield CCG,31/01/2022,C&M-PMS Prem Notional Rent,PRC DELEGATED CO-COMMISSIONING,FIRTH PARK SURGERY,39426705,4666.67,S5 6HH
Department of Health,NHS Sheffield CCG,31/01/2022,C&M-PMS Prem Rates,PRC DELEGATED CO-COMMISSIONING,FIRTH PARK SURGERY,39426705,1508,S5 6HH
Department of Health,NHS Sheffield CCG,31/01/2022,C&M-PMS QOF Aspiration,PRC DELEGATED CO-COMMISSIONING,FIRTH PARK SURGERY,39426705,8220.05,S5 6HH
Department of Health,NHS Sheffield CCG,31/01/2022,C&M-PMS WEIGHT MANAGEMENT SERVICE,PRC DELEGATED CO-COMMISSIONING,FIRTH PARK SURGERY,39426705,11.5,S5 6HH
Department of Health,NHS Sheffield CCG,31/01/2022,C&M-PCN-PMS DES Leadership Payment,PRC DELEGATED CO-COMMISSIONING,UNIVERSITY HEALTH SERVICE,39426710,3369.83,S3 7QP
Department of Health,NHS Sheffield CCG,31/01/2022,C&M-PMS Contract Value,PRC DELEGATED CO-COMMISSIONING,UNIVERSITY HEALTH SERVICE,39426710,222297.66,S3 7QP
Department of Health,NHS Sheffield CCG,31/01/2022,C&M-PMS DES Extended Hours Access,PRC DELEGATED CO-COMMISSIONING,UNIVERSITY HEALTH SERVICE,39426710,4876.32,S3 7QP
Department of Health,NHS Sheffield CCG,31/01/2022,C&M-PMS LONG COVID ES,PRC DELEGATED CO-COMMISSIONING,UNIVERSITY HEALTH SERVICE,39426710,1675.11,S3 7QP
Department of Health,NHS Sheffield CCG,31/01/2022,C&M-PMS Out of Hours Opt Outs,PRC DELEGATED CO-COMMISSIONING,UNIVERSITY HEALTH SERVICE,39426710,1072.83,S3 7QP
Department of Health,NHS Sheffield CCG,31/01/2022,C&M-PMS PCN DES Clinical Director,PRC DELEGATED CO-COMMISSIONING,UNIVERSITY HEALTH SERVICE,39426710,2492.34,S3 7QP
Department of Health,NHS Sheffield CCG,31/01/2022,C&M-PMS PCN DES PCN support,LOCAL ENHANCED SERVICES,UNIVERSITY HEALTH SERVICE,39426710,5079.5,S3 7QP
Department of Health,NHS Sheffield CCG,31/01/2022,C&M-PMS PCN DES Participation,PRC DELEGATED CO-COMMISSIONING,UNIVERSITY HEALTH SERVICE,39426710,3676.64,S3 7QP
Department of Health,NHS Sheffield CCG,31/01/2022,C&M-PMS PCO Locum Sickness,PRC DELEGATED CO-COMMISSIONING,UNIVERSITY HEALTH SERVICE,39426710,9682.25,S3 7QP
Department of Health,NHS Sheffield CCG,31/01/2022,C&M-PMS Prem Notional Rent,PRC DELEGATED CO-COMMISSIONING,UNIVERSITY HEALTH SERVICE,39426710,15833.33,S3 7QP
Department of Health,NHS Sheffield CCG,31/01/2022,C&M-PMS Prem Water Rates,PRC DELEGATED CO-COMMISSIONING,UNIVERSITY HEALTH SERVICE,39426710,1180.92,S3 7QP
Department of Health,NHS Sheffield CCG,31/01/2022,C&M-PMS QOF Aspiration,PRC DELEGATED CO-COMMISSIONING,UNIVERSITY HEALTH SERVICE,39426710,8048.38,S3 7QP
Department of Health,NHS Sheffield CCG,31/01/2022,C&M-PMS WEIGHT MANAGEMENT SERVICE,PRC DELEGATED CO-COMMISSIONING,UNIVERSITY HEALTH SERVICE,39426710,57.5,S3 7QP
Department of Health,NHS Sheffield CCG,31/01/2022,ME-PMS GP Pension ERs Adjs - PMS,PRC DELEGATED CO-COMMISSIONING,UNIVERSITY HEALTH SERVICE,39426710,363.12,S3 7QP
Department of Health,NHS Sheffield CCG,31/01/2022,ME-PMS GP Pension ERs-PMS,PRC DELEGATED CO-COMMISSIONING,UNIVERSITY HEALTH SERVICE,39426710,3187.03,S3 7QP
Department of Health,NHS Sheffield CCG,31/01/2022,C&M-PMS Contract Value,PRC DELEGATED CO-COMMISSIONING,UNIVERSITY HEALTH SERVICE,39426713,-24074.97,S3 7QP
Department of Health,NHS Sheffield CCG,31/01/2022,C&M-PMS GP Statutory Levy,PRC DELEGATED CO-COMMISSIONING,UNIVERSITY HEALTH SERVICE,39426713,-1380.72,S3 7QP
Department of Health,NHS Sheffield CCG,31/01/2022,C&M-PMS Out of Hours Opt Outs,PRC DELEGATED CO-COMMISSIONING,UNIVERSITY HEALTH SERVICE,39426713,-10482.86,S3 7QP
Department of Health,NHS Sheffield CCG,31/01/2022,C&M-PMS Contract Value,PRC DELEGATED CO-COMMISSIONING,UPWELL STREET SURGERY,39426714,38728.2,S4 8AN
Department of Health,NHS Sheffield CCG,31/01/2022,C&M-PMS LONG COVID ES,PRC DELEGATED CO-COMMISSIONING,UPWELL STREET SURGERY,39426714,191.23,S4 8AN
Department of Health,NHS Sheffield CCG,31/01/2022,C&M-PMS PCN DES Participation,PRC DELEGATED CO-COMMISSIONING,UPWELL STREET SURGERY,39426714,680.46,S4 8AN
Department of Health,NHS Sheffield CCG,31/01/2022,C&M-PMS PCO Other,PRC DELEGATED CO-COMMISSIONING,UPWELL STREET SURGERY,39426714,315.4,S4 8AN
Department of Health,NHS Sheffield CCG,31/01/2022,C&M-PMS Prem Notional Rent,PRC DELEGATED CO-COMMISSIONING,UPWELL STREET SURGERY,39426714,8552.5,S4 8AN
Department of Health,NHS Sheffield CCG,31/01/2022,C&M-PMS Prem Rates,PRC DELEGATED CO-COMMISSIONING,UPWELL STREET SURGERY,39426714,998,S4 8AN
Department of Health,NHS Sheffield CCG,31/01/2022,C&M-PMS QOF Aspiration,PRC DELEGATED CO-COMMISSIONING,UPWELL STREET SURGERY,39426714,4098.59,S4 8AN
Department of Health,NHS Sheffield CCG,31/01/2022,C&M-PCN-PMS DES Leadership Payment,PRC DELEGATED CO-COMMISSIONING,VALLEY MEDICAL CENTRE,39426718,2316.17,S36 1BX
Department of Health,NHS Sheffield CCG,31/01/2022,C&M-PMS Contract Value,PRC DELEGATED CO-COMMISSIONING,VALLEY MEDICAL CENTRE,39426718,85063.98,S36 1BX
Department of Health,NHS Sheffield CCG,31/01/2022,C&M-PMS DES Extended Hours Access,PRC DELEGATED CO-COMMISSIONING,VALLEY MEDICAL CENTRE,39426718,2477.4,S36 1BX
Department of Health,NHS Sheffield CCG,31/01/2022,C&M-PMS LONG COVID ES,PRC DELEGATED CO-COMMISSIONING,VALLEY MEDICAL CENTRE,39426718,396.48,S36 1BX
Department of Health,NHS Sheffield CCG,31/01/2022,C&M-PMS Out of Hours Opt Outs,PRC DELEGATED CO-COMMISSIONING,VALLEY MEDICAL CENTRE,39426718,8.51,S36 1BX
Department of Health,NHS Sheffield CCG,31/01/2022,C&M-PMS PCN DES Clin Pharmacist,PRC DELEGATED CO-COMMISSIONING,VALLEY MEDICAL CENTRE,39426718,4776.5,S36 1BX
Department of Health,NHS Sheffield CCG,31/01/2022,C&M-PMS PCN DES Clinical Director,PRC DELEGATED CO-COMMISSIONING,VALLEY MEDICAL CENTRE,39426718,1266.23,S36 1BX
Department of Health,NHS Sheffield CCG,31/01/2022,C&M-PMS PCN DES PCN support,LOCAL ENHANCED SERVICES,VALLEY MEDICAL CENTRE,39426718,2580.62,S36 1BX
Department of Health,NHS Sheffield CCG,31/01/2022,C&M-PMS PCN DES Participation,PRC DELEGATED CO-COMMISSIONING,VALLEY MEDICAL CENTRE,39426718,1524.87,S36 1BX
Department of Health,NHS Sheffield CCG,31/01/2022,C&M-PMS PCN DES Physiotherapist,PRC DELEGATED CO-COMMISSIONING,VALLEY MEDICAL CENTRE,39426718,2073.61,S36 1BX
Department of Health,NHS Sheffield CCG,31/01/2022,C&M-PMS PCN DES Soc Prescribing,PRC DELEGATED CO-COMMISSIONING,VALLEY MEDICAL CENTRE,39426718,2458.8,S36 1BX
Department of Health,NHS Sheffield CCG,31/01/2022,C&M-PMS Prem Rates,PRC DELEGATED CO-COMMISSIONING,VALLEY MEDICAL CENTRE,39426718,657,S36 1BX
Department of Health,NHS Sheffield CCG,31/01/2022,C&M-PMS QOF Aspiration,PRC DELEGATED CO-COMMISSIONING,VALLEY MEDICAL CENTRE,39426718,9844.79,S36 1BX
Department of Health,NHS Sheffield CCG,31/01/2022,C&M-PMS WEIGHT MANAGEMENT SERVICE,PRC DELEGATED CO-COMMISSIONING,VALLEY MEDICAL CENTRE,39426718,184,S36 1BX
Department of Health,NHS Sheffield CCG,31/01/2022,C&M-PMS Contract Value,PRC DELEGATED CO-COMMISSIONING,VALLEY MEDICAL CENTRE,39426720,-616.89,S36 1BX
Department of Health,NHS Sheffield CCG,31/01/2022,C&M-PMS GP Statutory Levy,PRC DELEGATED CO-COMMISSIONING,VALLEY MEDICAL CENTRE,39426720,-334.64,S36 1BX
Department of Health,NHS Sheffield CCG,31/01/2022,C&M-PMS Out of Hours Opt Outs,PRC DELEGATED CO-COMMISSIONING,VALLEY MEDICAL CENTRE,39426720,-4005.38,S36 1BX
Department of Health,NHS Sheffield CCG,31/01/2022,ME-PMS GP Pension ERs Adjs - PMS,PRC DELEGATED CO-COMMISSIONING,VALLEY MEDICAL CENTRE,39426720,-665.51,S36 1BX
Department of Health,NHS Sheffield CCG,31/01/2022,ME-PMS GP Pension ERs-PMS,PRC DELEGATED CO-COMMISSIONING,VALLEY MEDICAL CENTRE,39426720,-9937.37,S36 1BX
Department of Health,NHS Sheffield CCG,31/01/2022,Computer Software/License,PRIMARY CARE IT,ACCURX LTD,39432065,30949.76,N1 5AA
Department of Health,NHS Sheffield CCG,31/01/2022,C&M-PMS Contract Value,PRC DELEGATED CO-COMMISSIONING,BARNSLEY ROAD SURGERY,39441101,21464.94,S5 0QJ
Department of Health,NHS Sheffield CCG,31/01/2022,C&M-PMS DES Learn Dsblty Hlth Chk,PRC DELEGATED CO-COMMISSIONING,BARNSLEY ROAD SURGERY,39441101,560,S5 0QJ
Department of Health,NHS Sheffield CCG,31/01/2022,C&M-PMS LONG COVID ES,PRC DELEGATED CO-COMMISSIONING,BARNSLEY ROAD SURGERY,39441101,102.03,S5 0QJ
Department of Health,NHS Sheffield CCG,31/01/2022,C&M-PMS PCN DES Participation,PRC DELEGATED CO-COMMISSIONING,BARNSLEY ROAD SURGERY,39441101,387.62,S5 0QJ
Department of Health,NHS Sheffield CCG,31/01/2022,C&M-PMS PCO Other,PRC DELEGATED CO-COMMISSIONING,BARNSLEY ROAD SURGERY,39441101,192,S5 0QJ
Department of Health,NHS Sheffield CCG,31/01/2022,C&M-PMS Prem Notional Rent,PRC DELEGATED CO-COMMISSIONING,BARNSLEY ROAD SURGERY,39441101,2831.25,S5 0QJ
Department of Health,NHS Sheffield CCG,31/01/2022,C&M-PMS Prem Rates,PRC DELEGATED CO-COMMISSIONING,BARNSLEY ROAD SURGERY,39441101,674,S5 0QJ
Department of Health,NHS Sheffield CCG,31/01/2022,C&M-PMS QOF Aspiration,PRC DELEGATED CO-COMMISSIONING,BARNSLEY ROAD SURGERY,39441101,2443.92,S5 0QJ
Department of Health,NHS Sheffield CCG,31/01/2022,C&M-PMS WEIGHT MANAGEMENT SERVICE,PRC DELEGATED CO-COMMISSIONING,BARNSLEY ROAD SURGERY,39441101,103.5,S5 0QJ
Department of Health,NHS Sheffield CCG,31/01/2022,Cont Care- Adult 100% Fully Funded,CHC ADULT FULLY FUNDED,SOUTH YORKSHIRE HOUSING ASSOCIATION LTD,39444543,25500,S1 4HF
Department of Health,NHS Sheffield CCG,31/01/2022,Cont Care- Adult 100% Fully Funded,CHC ADULT FULLY FUNDED,SOUTH YORKSHIRE HOUSING ASSOCIATION LTD,39444546,46763.59,S1 4HF
Department of Health,NHS Sheffield CCG,31/01/2022,Clinical&Medical-Independent Sector,MENTAL HEALTH CONTRACTS,SUSASH GB LTD T/A EAGLE HOUSE,39444548,30091.75,S11 8NP
Department of Health,NHS Sheffield CCG,31/01/2022,Clinical&Medical-Independent Sector,MENTAL HEALTH CONTRACTS,SOUTH YORKSHIRE HOUSING ASSOCIATION LTD,39444550,34434.83,S1 4HF
Department of Health,NHS Sheffield CCG,31/01/2022,Hcare Srv Rec Fdtn Trust-Contract Baseline,ACUTE COMMISSIONING,BARNSLEY HOSPITAL NHS FOUNDATION TRUST,39444552,113425.15,S75 2EP
Department of Health,NHS Sheffield CCG,31/01/2022,Hcare Srv Rec Fdtn Trust-Contract Baseline,ACUTE COMMISSIONING,CHESTERFIELD ROYAL HOSPITAL NHS FOUNDATION TRUST,39444555,375326.75,S44 5BL
Department of Health,NHS Sheffield CCG,31/01/2022,Hcare Srv Rec Fdtn Trust-Contract Baseline,ACUTE COMMISSIONING,DONCASTER AND BASSETLAW HOSPITALS NHS FOUNDATION TRUST,39444556,47889.62,WF3 1WE
Department of Health,NHS Sheffield CCG,31/01/2022,Hcare Srv Rec Fdtn Trust-Contract Baseline,ACUTE CHILDRENS SERVICES,SHEFFIELD CHILDRENS NHS FOUNDATION TRUST,39444559,3774111,S10 2TH
Department of Health,NHS Sheffield CCG,31/01/2022,Hcare Srv Rec Fdtn Trust-Contract Baseline,ACUTE CHILDRENS SERVICES,SHEFFIELD CHILDRENS NHS FOUNDATION TRUST,39444560,1583732.05,S10 2TH
Department of Health,NHS Sheffield CCG,31/01/2022,Hcare Srv Rec Fdtn Trust-Contract Baseline,MENTAL HEALTH CONTRACTS,SHEFFIELD HEALTH & SOCIAL CARE NHS FOUNDATION TRUST,39444561,8262271,S10 3TH
Department of Health,NHS Sheffield CCG,31/01/2022,Hcare Srv Rec Fdtn Trust-Contract Baseline,MENTAL HEALTH CONTRACTS,SHEFFIELD HEALTH & SOCIAL CARE NHS FOUNDATION TRUST,39444562,-55782.85,S10 3TH
Department of Health,NHS Sheffield CCG,31/01/2022,Hcare Srv Rec Fdtn Trust-Contract Baseline,ACUTE COMMISSIONING,SHEFFIELD TEACHING HOSPITALS NHS FOUNDATION TRUST,39444563,38214347.04,S5 7AU
Department of Health,NHS Sheffield CCG,31/01/2022,Hcare Srv Rec Fdtn Trust-Contract Baseline,ACUTE COMMISSIONING,SHEFFIELD TEACHING HOSPITALS NHS FOUNDATION TRUST,39444564,4373782.32,S5 7AU
Department of Health,NHS Sheffield CCG,31/01/2022,Hcare Srv Rec NHS Trust-Contract Baseline,ACUTE COMMISSIONING,LEEDS TEACHING HOSPITALS NHS TRUST,39444565,48657.77,LS9 7TF
Department of Health,NHS Sheffield CCG,31/01/2022,Hcare Srv Rec Fdtn Trust-Contract Baseline,ACUTE COMMISSIONING,ROTHERHAM NHS FOUNDATION TRUST,39444566,537486.34,S60 2UD
Department of Health,NHS Sheffield CCG,31/01/2022,Clinical&Medical-Serv Recd-F Trsts,BEREAVEMENT SERVICE,ROTHERHAM NHS FOUNDATION TRUST,39444568,59467.46,S60 2UD
Department of Health,NHS Sheffield CCG,31/01/2022,Hcare Srv Rec NHS Trust-Contract Baseline,MENTAL HEALTH CONTRACTS,YORKSHIRE AMBULANCE SERVICE NHS TRUST,39444570,25795.8,WF2 0XQ
Department of Health,NHS Sheffield CCG,31/01/2022,Hcare Srv Rec NHS Trust-Contract Baseline,AMBULANCE SERVICES,YORKSHIRE AMBULANCE SERVICE NHS TRUST,39444571,1954214.42,WF2 0XQ
Department of Health,NHS Sheffield CCG,31/01/2022,Hcare Srv Rec NHS Trust-Contract Baseline,PATIENT TRANSPORT,YORKSHIRE AMBULANCE SERVICE NHS TRUST,39444573,307088.05,WF2 0XQ
Department of Health,NHS Sheffield CCG,31/01/2022,Hcare Srv Rec NHS Trust-Contract Baseline,NHS 111,YORKSHIRE AMBULANCE SERVICE NHS TRUST,39444576,150839.29,WF2 0XQ
Department of Health,NHS Sheffield CCG,31/01/2022,Clinical&Medical-Serv Recd-F Trsts,BEREAVEMENT SERVICE,HUMBER TEACHING NHS FOUNDATION TRUST,39444577,51511.01,WF3 1WE
Department of Health,NHS Sheffield CCG,31/01/2022,Cont Care-Physical Disab (65+),CHC ADULT FULLY FUNDED,BC SHEFFIELD LTD,39448287,42784.37,S9 2TJ
Department of Health,NHS Sheffield CCG,31/01/2022,Clinical&Medical-Independent Sector,Mental Health Services - S117 Mental Health,MOORVILLE RESIDENTIAL,39448296,28332.76,S10 5FA
Department of Health,NHS Sheffield CCG,31/01/2022,Cont Care-Learning Disab(<65),CHC ADULT FULLY FUNDED,MOORVILLE RESIDENTIAL,39448296,9171.66,S10 5FA
Department of Health,NHS Sheffield CCG,31/01/2022,Cont Care-Learning Disab(<65),CHC ADULT JOINT FUNDED,MOORVILLE RESIDENTIAL,39448296,4333.18,S10 5FA
Department of Health,NHS Sheffield CCG,31/01/2022,Cont Care-Mental Health (<65),CHC ADULT JOINT FUNDED,MOORVILLE RESIDENTIAL,39448296,506.23,S10 5FA
Department of Health,NHS Sheffield CCG,31/01/2022,Seconded-Basic Sal-Staff fm oth org,BEREAVEMENT SERVICE,SHEFFIELD TEACHING HOSPITALS NHS FOUNDATION TRUST,39449200,20163,S5 7AU
Department of Health,NHS Sheffield CCG,31/01/2022,Seconded-Employer's NHI Costs,BEREAVEMENT SERVICE,SHEFFIELD TEACHING HOSPITALS NHS FOUNDATION TRUST,39449200,2271,S5 7AU
Department of Health,NHS Sheffield CCG,31/01/2022,Seconded-Employer's Pension Costs,BEREAVEMENT SERVICE,SHEFFIELD TEACHING HOSPITALS NHS FOUNDATION TRUST,39449200,2875,S5 7AU
Department of Health,NHS Sheffield CCG,31/01/2022,C&M-GMS LES Translation Fees,INTERPRETING SERVICES,LANGUAGELINE SOLUTIONS,39449985,29309.64,E14 5NR
Department of Health,NHS Sheffield CCG,31/01/2022,Clinical&Medical-Independent Sector,MENTAL HEALTH SERVICES - OTHER,PRIMARY CARE SHEFFIELD LTD,39451555,42935.74,S12 3GH
Department of Health,NHS Sheffield CCG,31/01/2022,Cont Care-Physical Disab (<65),CHC ADULT FULLY FUNDED,JUVENTA 4 CARE LTD,39470088,32157.18,S2 1AS
Department of Health,NHS Sheffield CCG,31/01/2022,C&M-APMS DES Extended Hours Access,GP FORWARD VIEW,PRIMARY CARE SHEFFIELD LTD,39470343,309441.67,S12 3GH
Department of Health,NHS Sheffield CCG,31/01/2022,Computer Software/License,BEREAVEMENT SERVICE,ASEPTIKA LTD,39470364,38676,PE27 4AA
Department of Health,NHS Sheffield CCG,31/01/2022,Clinical&Medical-Serv Recd-F Trsts,BEREAVEMENT SERVICE,BARNSLEY HOSPITAL NHS FOUNDATION TRUST,39470388,128500,S75 2EP
Department of Health,NHS Sheffield CCG,31/01/2022,Clinical&Medical-Independent Sector,ACUTE COMMISSIONING,BMI HEALTHCARE LTD,39470407,51688.33,SK3 0XN
Department of Health,NHS Sheffield CCG,31/01/2022,Rent,ESTATES AND FACILITIES,NHS PROPERTY SERVICES LTD,39470489,107487.83,EC2V 7NG
Department of Health,NHS Sheffield CCG,31/01/2022,Rent,RECHARGES NHS PROPERTY SERVICES LTD,NHS PROPERTY SERVICES LTD,39470489,35829.28,EC2V 7NG
Department of Health,NHS Sheffield CCG,31/01/2022,Service Charge,ESTATES AND FACILITIES,NHS PROPERTY SERVICES LTD,39470489,34688.43,EC2V 7NG
Department of Health,NHS Sheffield CCG,31/01/2022,Service Charge,RECHARGES NHS PROPERTY SERVICES LTD,NHS PROPERTY SERVICES LTD,39470489,11562.8,EC2V 7NG
Department of Health,NHS Sheffield CCG,31/01/2022,Service Charge,ESTATES AND FACILITIES,NHS PROPERTY SERVICES LTD,39470496,59648.74,EC2V 7NG
Department of Health,NHS Sheffield CCG,31/01/2022,Service Charge,RECHARGES NHS PROPERTY SERVICES LTD,NHS PROPERTY SERVICES LTD,39470496,19882.91,EC2V 7NG
Department of Health,NHS Sheffield CCG,31/01/2022,Clinical&Medical-Voluntary Sector,ACUTE COMMISSIONING,BRITISH PREGNANCY ADVISORY SERVICE,39470505,30744.34,CV37 9BF
Department of Health,NHS Sheffield CCG,31/01/2022,Clinical&Medical-Serv Recd-F Trsts,BEREAVEMENT SERVICE,ROTHERHAM NHS FOUNDATION TRUST,39470518,2720000,S60 2UD
Department of Health,NHS Sheffield CCG,31/01/2022,Cont Care-Funded Nursing Care Allow,FUNDED NURSING CARE,COUNTRY COURT CARE LTD,39475238,25701.2,S5 6UU
Department of Health,NHS Sheffield CCG,31/01/2022,Cont Care-Funded Nursing Care Allow,FUNDED NURSING CARE,YOUR CARE PROVIDER,39475254,28274,S73 0HQ
Department of Health,NHS Sheffield CCG,31/01/2022,Cont Care-Funded Nursing Care Allow,FUNDED NURSING CARE,ROSEBERRY CARE CENTRES,39475267,32596.66,S5 6AB
Department of Health,NHS Sheffield CCG,31/01/2022,Cont Care-Funded Nursing Care Allow,FUNDED NURSING CARE,BONDCARE,39475275,30176.8,NW4 4EF
Department of Health,NHS Sheffield CCG,31/01/2022,Cont Care-Physical Disab (65+),CHC ADULT FULLY FUNDED,SHEFFIELD CITY COUNCIL,39480689,1039472.36,S1 1UJ
Department of Health,NHS Sheffield CCG,31/01/2022,Cont Care- Children,CHC CHILDREN,SHEFFIELD CITY COUNCIL,39480690,128432.09,S1 1UJ
Department of Health,NHS Sheffield CCG,31/01/2022,Cont Care-Physical Disab (<65),CHC ADULT FULLY FUNDED,SOUTH YORKSHIRE HOUSING ASSOCIATION LTD,39490293,53131.62,S35 1RQ
Department of Health,NHS Sheffield CCG,31/01/2022,Cont Care-Physical Disab (<65),CHC ADULT FULLY FUNDED,SOUTH YORKSHIRE HOUSING ASSOCIATION LTD,39490295,51218.56,S35 1RQ
Department of Health,NHS Sheffield CCG,31/01/2022,Cont Care-Physical Disab (<65),CHC ADULT FULLY FUNDED,FAIRWINDS HEALTH CARE LTD,39490303,31642.98,S61 1AJ
Department of Health,NHS Sheffield CCG,31/01/2022,Cont Care-Physical Disab (<65),CHC ADULT FULLY FUNDED,LONGLEY HEALTH CARE LTD,39490313,71969.76,S5 7JZ
Department of Health,NHS Sheffield CCG,31/01/2022,Cont Care-Physical Disab (<65),CHC ADULT FULLY FUNDED,LONGLEY HEALTH CARE LTD,39490315,74491.09,S5 7JZ
Department of Health,NHS Sheffield CCG,31/01/2022,Cont Care-Physical Disab (<65),CHC ADULT FULLY FUNDED,YOUR CARE PROVIDER,39490325,28673.21,S73 0HQ
Department of Health,NHS Sheffield CCG,31/01/2022,Cont Care-Physical Disab (<65),CHC ADULT FULLY FUNDED,SCARSDALE GRANGE NURSING HOME,39490330,39610.92,S8 9EQ
Department of Health,NHS Sheffield CCG,31/01/2022,Cont Care-Physical Disab (<65),CHC ADULT FULLY FUNDED,SCARSDALE GRANGE NURSING HOME,39490332,42206.73,S8 9EQ
Department of Health,NHS Sheffield CCG,31/01/2022,Cont Care-Physical Disab (<65),CHC ADULT FULLY FUNDED,SEVEN HILLS NURSING HOME,39490334,39037.65,S11 9AA
Department of Health,NHS Sheffield CCG,31/01/2022,Cont Care-Physical Disab (<65),CHC ADULT FULLY FUNDED,WILLOWBECK HEALTH CARE LTD,39490345,105958.86,S4 8AR
Department of Health,NHS Sheffield CCG,31/01/2022,Cont Care-Physical Disab (<65),CHC ADULT FULLY FUNDED,WILLOWBECK HEALTH CARE LTD,39490346,61580.27,S4 8AR
Department of Health,NHS Sheffield CCG,31/01/2022,Cont Care-Physical Disab (<65),CHC ADULT FULLY FUNDED,HORIZON CARE HOMES LTD,39490347,34692.75,S25 3QA
Department of Health,NHS Sheffield CCG,31/01/2022,Cont Care-Physical Disab (<65),CHC ADULT FULLY FUNDED,BONDCARE,39490370,45604.63,NW4 4EF
Department of Health,NHS Sheffield CCG,31/01/2022,Cont Care-Physical Disab (<65),CHC ADULT FULLY FUNDED,HORIZON CARE HOMES LTD,39490374,38319.92,S25 3QA
Department of Health,NHS Sheffield CCG,31/01/2022,Cont Care-Physical Disab (<65),CHC ADULT FULLY FUNDED,SUSASH GB LTD T/A EAGLE HOUSE,39490385,32408.13,S11 8NP
Department of Health,NHS Sheffield CCG,31/01/2022,Cont Care-Physical Disab (<65),CHC ADULT FULLY FUNDED,HORIZON CARE HOMES LTD,39490387,29980.65,S25 3QA
Department of Health,NHS Sheffield CCG,31/01/2022,Cont Care-Physical Disab (<65),CHC ADULT FULLY FUNDED,HORIZON CARE HOMES LTD,39490389,96270.73,S25 3QA
Department of Health,NHS Sheffield CCG,31/01/2022,Cont Care-Physical Disab (<65),CHC ADULT FULLY FUNDED,INLET LTD,39490395,82168.45,S48NB
Department of Health,NHS Sheffield CCG,31/01/2022,Computer Hardware Purch,PRIMARY CARE IT,DELL CORPORATION LTD,39495491,53975,RG12 1LF
Department of Health,NHS Sheffield CCG,31/01/2022,Computer Hardware Purch,PRIMARY CARE IT,DELL CORPORATION LTD,39495491,10795,RG12 1LF
Department of Health,NHS Sheffield CCG,31/01/2022,C&M-GMS LES Equitable Funding,LOCAL ENHANCED SERVICES,MEADOWHEAD GROUP PRACTICE,39498180,25240,S8 7RL
Department of Health,NHS Sheffield CCG,31/01/2022,C&M-GMS LES Equitable Funding,LOCAL ENHANCED SERVICES,PORTER BROOK MEDICAL CENTRE,39498191,25482,S11 8HN
Department of Health,NHS Sheffield CCG,31/01/2022,C&M-GMS LES Equitable Funding,LOCAL ENHANCED SERVICES,UNIVERSITY HEALTH SERVICE,39498210,29008,S3 7QP
Department of Health,NHS Sheffield CCG,31/01/2022,Cont Care- Prior Year Payments,Children's Continuing Care,SHEFFIELD CITY COUNCIL,39498219,172480,S1 1UJ
Department of Health,NHS Sheffield CCG,31/01/2022,Cont Care- Prior Year Payments,Children's Continuing Care,SHEFFIELD CITY COUNCIL,39498220,73812,S1 1UJ
Department of Health,NHS Sheffield CCG,31/01/2022,Cont Care- Prior Year Payments,Children's Continuing Care,SHEFFIELD CITY COUNCIL,39498221,38887,S1 1UJ
Department of Health,NHS Sheffield CCG,31/01/2022,Cont Care- Prior Year Payments,Children's Continuing Care,SHEFFIELD CITY COUNCIL,39498222,109507,S1 1UJ
Department of Health,NHS Sheffield CCG,31/01/2022,C&M-APMS LES Translation Fees,LOCAL ENHANCED SERVICES,CLOVER GROUP PRACTICE,39498223,70750,S9 4QH
Department of Health,NHS Sheffield CCG,31/01/2022,Charges from CSU,BUSINESS INFORMATICS,NHS NORTH OF ENGLAND CSU,39502619,26554.67,WF3 1WE
Department of Health,NHS Sheffield CCG,31/01/2022,Clinical&Medical-Voluntary Sector,CHILD AND ADOLESCENT MENTAL HEALTH,SHEFFIELD FUTURES,39530548,21333.34,S1 4GE
Department of Health,NHS Sheffield CCG,31/01/2022,Computer Software/License,IM&T,NHS BARNSLEY CCG,39544614,25449,WF3 1WE
Department of Health,NHS Sheffield CCG,31/01/2022,C&M- PCN DES CARE COORDINATOR,PRC DELEGATED CO-COMMISSIONING,PRIMARY CARE SHEFFIELD LTD,39545600,1986.94,S9 4EU
Department of Health,NHS Sheffield CCG,31/01/2022,C&M-GMS C&M-APMS PCN DES Physician Assoc,PRC DELEGATED CO-COMMISSIONING,PRIMARY CARE SHEFFIELD LTD,39545600,8407.3,S9 4EU
Department of Health,NHS Sheffield CCG,31/01/2022,C&M-GMS PCN DES Clin Pharmacist,PRC DELEGATED CO-COMMISSIONING,PRIMARY CARE SHEFFIELD LTD,39545600,11083.35,S9 4EU
Department of Health,NHS Sheffield CCG,31/01/2022,C&M-GMS PCN DES Home/RR paramedic,PRC DELEGATED CO-COMMISSIONING,PRIMARY CARE SHEFFIELD LTD,39545600,921.88,S9 4EU
Department of Health,NHS Sheffield CCG,31/01/2022,C&M-GMS PCN DES Physiotherapist,PRC DELEGATED CO-COMMISSIONING,PRIMARY CARE SHEFFIELD LTD,39545600,2105.19,S9 4EU
Department of Health,NHS Sheffield CCG,31/01/2022,C&M-GMS PCN DES Soc Prescribing,PRC DELEGATED CO-COMMISSIONING,PRIMARY CARE SHEFFIELD LTD,39545600,4223.07,S9 4EU
Department of Health,NHS Sheffield CCG,31/01/2022,C&M- PCN DES CARE COORDINATOR,PRC DELEGATED CO-COMMISSIONING,PRIMARY CARE SHEFFIELD LTD,39545731,1662.42,S9 4EU
Department of Health,NHS Sheffield CCG,31/01/2022,C&M-GMS PCN DES Clin Pharmacist,PRC DELEGATED CO-COMMISSIONING,PRIMARY CARE SHEFFIELD LTD,39545731,13433.56,S9 4EU
Department of Health,NHS Sheffield CCG,31/01/2022,C&M-GMS PCN DES Home/RR paramedic,PRC DELEGATED CO-COMMISSIONING,PRIMARY CARE SHEFFIELD LTD,39545731,4609.42,S9 4EU
Department of Health,NHS Sheffield CCG,31/01/2022,C&M-GMS PCN DES Physiotherapist,PRC DELEGATED CO-COMMISSIONING,PRIMARY CARE SHEFFIELD LTD,39545731,2821.98,S9 4EU
Department of Health,NHS Sheffield CCG,31/01/2022,C&M-GMS PCN DES Soc Prescribing,PRC DELEGATED CO-COMMISSIONING,PRIMARY CARE SHEFFIELD LTD,39545731,2699.91,S9 4EU
Department of Health,NHS Sheffield CCG,31/01/2022,C&M-PCN DES Adult Mental Health Practitioner,PRC DELEGATED CO-COMMISSIONING,PRIMARY CARE SHEFFIELD LTD,39545731,2264.25,S9 4EU
Department of Health,NHS Sheffield CCG,31/01/2022,C&M-PCN DES Trainee Nursing Associate,PRC DELEGATED CO-COMMISSIONING,PRIMARY CARE SHEFFIELD LTD,39545731,2042.32,S9 4EU
Department of Health,NHS Sheffield CCG,31/01/2022,Seconded-Basic Sal-Staff fm oth org,BEREAVEMENT SERVICE,SHEFFIELD TEACHING HOSPITALS NHS FOUNDATION TRUST,39547371,22371.21,S5 7AU
Department of Health,NHS Sheffield CCG,31/01/2022,Seconded-Employer's NHI Costs,BEREAVEMENT SERVICE,SHEFFIELD TEACHING HOSPITALS NHS FOUNDATION TRUST,39547371,2685.4,S5 7AU
Department of Health,NHS Sheffield CCG,31/01/2022,Seconded-Employer's Pension Costs,BEREAVEMENT SERVICE,SHEFFIELD TEACHING HOSPITALS NHS FOUNDATION TRUST,39547371,3782.67,S5 7AU
Department of Health,NHS Sheffield CCG,31/01/2022,Seconded-Basic Sal-Staff fm oth org,BEREAVEMENT SERVICE,LEEDS TEACHING HOSPITALS NHS TRUST,39547603,32132.01,LS9 7TF
Department of Health,NHS Sheffield CCG,31/01/2022,Seconded-Employer's NHI Costs,BEREAVEMENT SERVICE,LEEDS TEACHING HOSPITALS NHS TRUST,39547603,3619.93,LS9 7TF
Department of Health,NHS Sheffield CCG,31/01/2022,Seconded-Employer's Pension Costs,BEREAVEMENT SERVICE,LEEDS TEACHING HOSPITALS NHS TRUST,39547603,4619.7,LS9 7TF
Department of Health,NHS Sheffield CCG,31/01/2022,Computer Hardware Purch,PRIMARY CARE IT,DELL CORPORATION LTD,39551551,22444,RG12 1LF
Department of Health,NHS Sheffield CCG,31/01/2022,Computer Hardware Purch,PRIMARY CARE IT,DELL CORPORATION LTD,39551551,4488.8,RG12 1LF
Department of Health,NHS Sheffield CCG,31/01/2022,Clinical&Medical-Independent Sector,ACUTE COMMISSIONING,CLAREMONT HOSPITAL,39564517,70529,S10 5UB
Department of Health,NHS Sheffield CCG,31/01/2022,Clinical&Medical-Serv Recd-F Trsts,BEREAVEMENT SERVICE,ROTHERHAM NHS FOUNDATION TRUST,39564529,57528,S60 2UD
Department of Health,NHS Sheffield CCG,31/01/2022,Clinical&Medical-Serv Recd-F Trsts,BEREAVEMENT SERVICE,ROTHERHAM NHS FOUNDATION TRUST,39564544,257039,S60 2UD
Department of Health,NHS Sheffield CCG,31/01/2022,Clinical&Medical-Serv Recd-F Trsts,BEREAVEMENT SERVICE,DONCASTER AND BASSETLAW HOSPITALS NHS FOUNDATION TRUST,39564572,208565,WF3 1WE
Department of Health,NHS Sheffield CCG,31/01/2022,C&M-GMS Prem Other,PRC DELEGATED CO-COMMISSIONING,NHS ENGLAND,39564579,4823.68,WF3 1WE
Department of Health,NHS Sheffield CCG,31/01/2022,Contract- Refuse & Clinical Waste,PRC DELEGATED CO-COMMISSIONING,NHS ENGLAND,39564579,108926.42,WF3 1WE
Department of Health,NHS Sheffield CCG,31/01/2022,Clinical&Medical-Independent Sector,BEREAVEMENT SERVICE,PRIMARY CARE DONCASTER LTD,39564674,297404,DN4 8QN
Department of Health,NHS Sheffield CCG,31/01/2022,Clinical&Medical-Independent Sector,BEREAVEMENT SERVICE,PRIMARY CARE DONCASTER LTD,39564689,323975,DN4 8QN
Department of Health,NHS Sheffield CCG,31/01/2022,Clinical&Medical-Serv Recd-F Trsts,BEREAVEMENT SERVICE,SHEFFIELD TEACHING HOSPITALS NHS FOUNDATION TRUST,39564704,776274,S5 7AU
Department of Health,NHS Sheffield CCG,31/01/2022,Clinical&Medical-Othe Public Sector,COMMUNITY SERVICES,SHEFFIELD CITY COUNCIL,39564784,150416.7,S1 1UJ
Department of Health,NHS Sheffield CCG,31/01/2022,Clinical&Medical-Othe Public Sector,MENTAL HEALTH SERVICES - COLLABORATIVE COMMISSIONING,SHEFFIELD CITY COUNCIL,39564784,83669.09,S1 1UJ
Department of Health,NHS Sheffield CCG,31/01/2022,Clinical&Medical-Othe Public Sector,REABLEMENT,SHEFFIELD CITY COUNCIL,39564784,21808.67,S1 1UJ
Department of Health,NHS Sheffield CCG,31/01/2022,Clinical&Medical-Othe Public Sector,SAFEGUARDING,SHEFFIELD CITY COUNCIL,39564784,16596.33,S1 1UJ
Department of Health,NHS Sheffield CCG,31/01/2022,Cont Care-Physical Disab (65+),CHC ADULT FULLY FUNDED,SHEFFIELD CITY COUNCIL,39564784,62941.09,S1 1UJ
Department of Health,NHS Sheffield CCG,31/01/2022,Soc Care-Joint H&C Teams/Working,INTERMEDIATE CARE,SHEFFIELD CITY COUNCIL,39564784,151447.58,S1 1UJ
Department of Health,NHS Sheffield CCG,31/01/2022,Soc Care-Other Soc Care,COMMISSIONING - NON ACUTE,SHEFFIELD CITY COUNCIL,39564784,1635250,S1 1UJ
Department of Health,NHS Sheffield CCG,31/01/2022,Soc Care-Support Prim Care,COMMUNITY SERVICES,SHEFFIELD CITY COUNCIL,39564784,64166.67,S1 1UJ
Department of Health,NHS Sheffield CCG,31/01/2022,Voids and Subsidies,RECHARGES NHS PROPERTY SERVICES LTD,DARNALL WELL BEING,39601527,36910.68,S9 4QH
Department of Health,NHS Sheffield CCG,31/01/2022,Participation Fees,CLINICAL LEADS,DONCASTER AND BASSETLAW HOSPITALS NHS FOUNDATION TRUST,39614469,876862,WF3 1WE
Department of Health,NHS Sheffield CCG,31/01/2022,Clinical&Medical-Independent Sector,ACUTE COMMISSIONING,SPAMEDICA LTD,39614470,73958.61,BL1 1HU
Department of Health,NHS Sheffield CCG,31/01/2022,C&M- PCN DES CARE COORDINATOR,PRC DELEGATED CO-COMMISSIONING,PRIMARY CARE SHEFFIELD LTD,39625963,1654.8,S9 4EU
Department of Health,NHS Sheffield CCG,31/01/2022,C&M-GMS C&M-APMS PCN DES Physician Assoc,PRC DELEGATED CO-COMMISSIONING,PRIMARY CARE SHEFFIELD LTD,39625963,4063.06,S9 4EU
Department of Health,NHS Sheffield CCG,31/01/2022,C&M-GMS PCN DES Clin Pharmacist,PRC DELEGATED CO-COMMISSIONING,PRIMARY CARE SHEFFIELD LTD,39625963,14040.44,S9 4EU
Department of Health,NHS Sheffield CCG,31/01/2022,C&M-GMS PCN DES Physiotherapist,PRC DELEGATED CO-COMMISSIONING,PRIMARY CARE SHEFFIELD LTD,39625963,9553,S9 4EU
Department of Health,NHS Sheffield CCG,31/01/2022,C&M-GMS PCN DES Soc Prescribing,PRC DELEGATED CO-COMMISSIONING,PRIMARY CARE SHEFFIELD LTD,39625963,7017,S9 4EU
Department of Health,NHS Sheffield CCG,31/01/2022,C&M-PCN DES HEALTH AND WELLBEING COACH,PRC DELEGATED CO-COMMISSIONING,PRIMARY CARE SHEFFIELD LTD,39625963,1618.01,S9 4EU
Department of Health,NHS Sheffield CCG,31/01/2022,C&M-PCN DES PHARMACY TECHNICIANS,PRC DELEGATED CO-COMMISSIONING,PRIMARY CARE SHEFFIELD LTD,39625963,2835.74,S9 4EU
Department of Health,NHS Sheffield CCG,31/01/2022,C&M- PCN DES CARE COORDINATOR,PRC DELEGATED CO-COMMISSIONING,PRIMARY CARE SHEFFIELD LTD,39625968,1999.14,S9 4EU
Department of Health,NHS Sheffield CCG,31/01/2022,C&M-GMS C&M-APMS PCN DES Physician Assoc,PRC DELEGATED CO-COMMISSIONING,PRIMARY CARE SHEFFIELD LTD,39625968,4094.57,S9 4EU
Department of Health,NHS Sheffield CCG,31/01/2022,C&M-GMS PCN DES Clin Pharmacist,PRC DELEGATED CO-COMMISSIONING,PRIMARY CARE SHEFFIELD LTD,39625968,14040.44,S9 4EU
Department of Health,NHS Sheffield CCG,31/01/2022,C&M-GMS PCN DES Physiotherapist,PRC DELEGATED CO-COMMISSIONING,PRIMARY CARE SHEFFIELD LTD,39625968,9553,S9 4EU
Department of Health,NHS Sheffield CCG,31/01/2022,C&M-GMS PCN DES Soc Prescribing,PRC DELEGATED CO-COMMISSIONING,PRIMARY CARE SHEFFIELD LTD,39625968,7875,S9 4EU
Department of Health,NHS Sheffield CCG,31/01/2022,C&M-PCN DES HEALTH AND WELLBEING COACH,PRC DELEGATED CO-COMMISSIONING,PRIMARY CARE SHEFFIELD LTD,39625968,1618.01,S9 4EU
Department of Health,NHS Sheffield CCG,31/01/2022,C&M-PCN DES PHARMACY TECHNICIANS,PRC DELEGATED CO-COMMISSIONING,PRIMARY CARE SHEFFIELD LTD,39625968,2835.74,S9 4EU
Department of Health,NHS Sheffield CCG,31/01/2022,C&M- PCN DES CARE COORDINATOR,PRC DELEGATED CO-COMMISSIONING,PRIMARY CARE SHEFFIELD LTD,39625970,1654.8,S9 4EU
Department of Health,NHS Sheffield CCG,31/01/2022,C&M-GMS C&M-APMS PCN DES Physician Assoc,PRC DELEGATED CO-COMMISSIONING,PRIMARY CARE SHEFFIELD LTD,39625970,4063.06,S9 4EU
Department of Health,NHS Sheffield CCG,31/01/2022,C&M-GMS PCN DES Clin Pharmacist,PRC DELEGATED CO-COMMISSIONING,PRIMARY CARE SHEFFIELD LTD,39625970,14040.44,S9 4EU
Department of Health,NHS Sheffield CCG,31/01/2022,C&M-GMS PCN DES Physiotherapist,PRC DELEGATED CO-COMMISSIONING,PRIMARY CARE SHEFFIELD LTD,39625970,9553,S9 4EU
Department of Health,NHS Sheffield CCG,31/01/2022,C&M-GMS PCN DES Soc Prescribing,PRC DELEGATED CO-COMMISSIONING,PRIMARY CARE SHEFFIELD LTD,39625970,5715,S9 4EU
Department of Health,NHS Sheffield CCG,31/01/2022,C&M-PCN DES HEALTH AND WELLBEING COACH,PRC DELEGATED CO-COMMISSIONING,PRIMARY CARE SHEFFIELD LTD,39625970,1618.01,S9 4EU
Department of Health,NHS Sheffield CCG,31/01/2022,C&M-PCN DES PHARMACY TECHNICIANS,PRC DELEGATED CO-COMMISSIONING,PRIMARY CARE SHEFFIELD LTD,39625970,2835.74,S9 4EU
Department of Health,NHS Sheffield CCG,31/01/2022,Clinical&Medical-Serv Recd-F Trsts,BEREAVEMENT SERVICE,SHEFFIELD TEACHING HOSPITALS NHS FOUNDATION TRUST,39625974,28419.72,S5 7AU
Department of Health,NHS Sheffield CCG,31/01/2022,C&M-OES Childrens Schemes,LOCAL ENHANCED SERVICES,PRIMARY EYECARE SERVICES LTD,39625976,1675,M4 6LN
Department of Health,NHS Sheffield CCG,31/01/2022,C&M-OES Glaucoma,LOCAL ENHANCED SERVICES,PRIMARY EYECARE SERVICES LTD,39625976,1110,M4 6LN
Department of Health,NHS Sheffield CCG,31/01/2022,C&M-OES Intra-ocular Ocular Hypertn,LOCAL ENHANCED SERVICES,PRIMARY EYECARE SERVICES LTD,39625976,200,M4 6LN
Department of Health,NHS Sheffield CCG,31/01/2022,C&M-OES PEARS,LOCAL ENHANCED SERVICES,PRIMARY EYECARE SERVICES LTD,39625976,23311.5,M4 6LN
Department of Health,NHS Sheffield CCG,31/01/2022,C&M-GMS Cost of Drugs -Prescribing,LOCAL ENHANCED SERVICES,BASLOW ROAD & SHOREHAM STREET SURGERIES,39645705,51750.46,S17 4DR
Department of Health,NHS Sheffield CCG,31/01/2022,C&M-GMS Prof Fees Prescribing,PRC DELEGATED CO-COMMISSIONING,BASLOW ROAD & SHOREHAM STREET SURGERIES,39645705,7930.06,S17 4DR
Department of Health,NHS Sheffield CCG,31/01/2022,C&M-GMS DES Learn Dsblty Hlth Chk,PRC DELEGATED CO-COMMISSIONING,OUGHTIBRIDGE SURGERY,39645710,140,S35 0FW
Department of Health,NHS Sheffield CCG,31/01/2022,C&M-GMS DES Minor Surgery,PRC DELEGATED CO-COMMISSIONING,OUGHTIBRIDGE SURGERY,39645710,160,S35 0FW
Department of Health,NHS Sheffield CCG,31/01/2022,C&M-GMS Global Sum,PRC DELEGATED CO-COMMISSIONING,OUGHTIBRIDGE SURGERY,39645710,47539.39,S35 0FW
Department of Health,NHS Sheffield CCG,31/01/2022,C&M-GMS LONG COVID ES,PRC DELEGATED CO-COMMISSIONING,OUGHTIBRIDGE SURGERY,39645710,236.57,S35 0FW
Department of Health,NHS Sheffield CCG,31/01/2022,C&M-GMS PCN DES Participation,PRC DELEGATED CO-COMMISSIONING,OUGHTIBRIDGE SURGERY,39645710,886,S35 0FW
Department of Health,NHS Sheffield CCG,31/01/2022,C&M-GMS Prem Notional Rent,PRC DELEGATED CO-COMMISSIONING,OUGHTIBRIDGE SURGERY,39645710,4064.58,S35 0FW
Department of Health,NHS Sheffield CCG,31/01/2022,C&M-GMS Prem Rates,PRC DELEGATED CO-COMMISSIONING,OUGHTIBRIDGE SURGERY,39645710,511,S35 0FW
Department of Health,NHS Sheffield CCG,31/01/2022,C&M-GMS QOF Aspiration,PRC DELEGATED CO-COMMISSIONING,OUGHTIBRIDGE SURGERY,39645710,4819.4,S35 0FW
Department of Health,NHS Sheffield CCG,31/01/2022,C&M-GMS WEIGHT MANAGEMENT SERVICE,PRC DELEGATED CO-COMMISSIONING,OUGHTIBRIDGE SURGERY,39645710,46,S35 0FW
Department of Health,NHS Sheffield CCG,31/01/2022,ME-GMS GP Pension ERs Adjustments,PRC DELEGATED CO-COMMISSIONING,OUGHTIBRIDGE SURGERY,39645710,4601.6,S35 0FW
Department of Health,NHS Sheffield CCG,31/01/2022,C&M-GMS Cost of Drugs -Dispensing,LOCAL ENHANCED SERVICES,OUGHTIBRIDGE SURGERY,39645719,31973.18,S35 0FW
Department of Health,NHS Sheffield CCG,31/01/2022,C&M-GMS Prof Fees Dispensing,PRC DELEGATED CO-COMMISSIONING,OUGHTIBRIDGE SURGERY,39645719,5221.39,S35 0FW
Department of Health,NHS Sheffield CCG,31/01/2022,C&M-GMS Global Sum,PRC DELEGATED CO-COMMISSIONING,SHARROW LANE MEDICAL CENTRE,39645723,26723.44,S11 8AN
Department of Health,NHS Sheffield CCG,31/01/2022,C&M-GMS LONG COVID ES,PRC DELEGATED CO-COMMISSIONING,SHARROW LANE MEDICAL CENTRE,39645723,169.59,S11 8AN
Department of Health,NHS Sheffield CCG,31/01/2022,C&M-GMS PCN DES Participation,PRC DELEGATED CO-COMMISSIONING,SHARROW LANE MEDICAL CENTRE,39645723,500.68,S11 8AN
Department of Health,NHS Sheffield CCG,31/01/2022,C&M-GMS Prem Notional Rent,PRC DELEGATED CO-COMMISSIONING,SHARROW LANE MEDICAL CENTRE,39645723,2741.67,S11 8AN
Department of Health,NHS Sheffield CCG,31/01/2022,C&M-GMS Prem Rates,PRC DELEGATED CO-COMMISSIONING,SHARROW LANE MEDICAL CENTRE,39645723,434,S11 8AN
Department of Health,NHS Sheffield CCG,31/01/2022,C&M-GMS QOF Aspiration,PRC DELEGATED CO-COMMISSIONING,SHARROW LANE MEDICAL CENTRE,39645723,2983.54,S11 8AN
Department of Health,NHS Sheffield CCG,31/01/2022,C&M-GMS DES Minor Surgery,PRC DELEGATED CO-COMMISSIONING,BROOMHILL SURGERY,39645730,40,S10 5BU
Department of Health,NHS Sheffield CCG,31/01/2022,C&M-GMS Global Sum,PRC DELEGATED CO-COMMISSIONING,BROOMHILL SURGERY,39645730,68680.81,S10 5BU
Department of Health,NHS Sheffield CCG,31/01/2022,C&M-GMS LONG COVID ES,PRC DELEGATED CO-COMMISSIONING,BROOMHILL SURGERY,39645730,402.82,S10 5BU
Department of Health,NHS Sheffield CCG,31/01/2022,C&M-GMS PCN DES Participation,PRC DELEGATED CO-COMMISSIONING,BROOMHILL SURGERY,39645730,1322.15,S10 5BU
Department of Health,NHS Sheffield CCG,31/01/2022,C&M-GMS Prem Cost Rent,PRC DELEGATED CO-COMMISSIONING,BROOMHILL SURGERY,39645730,3309.67,S10 5BU
Department of Health,NHS Sheffield CCG,31/01/2022,C&M-GMS Prem Notional Rent,PRC DELEGATED CO-COMMISSIONING,BROOMHILL SURGERY,39645730,2612.5,S10 5BU
Department of Health,NHS Sheffield CCG,31/01/2022,C&M-GMS Prem Rates,PRC DELEGATED CO-COMMISSIONING,BROOMHILL SURGERY,39645730,19211.5,S10 5BU
Department of Health,NHS Sheffield CCG,31/01/2022,C&M-GMS QOF Aspiration,PRC DELEGATED CO-COMMISSIONING,BROOMHILL SURGERY,39645730,7198.65,S10 5BU
Department of Health,NHS Sheffield CCG,31/01/2022,C&M-GMS DES Learn Dsblty Hlth Chk,PRC DELEGATED CO-COMMISSIONING,BUCHANAN ROAD SURGERY,39645736,420,S5 8AL
Department of Health,NHS Sheffield CCG,31/01/2022,C&M-GMS Global Sum,PRC DELEGATED CO-COMMISSIONING,BUCHANAN ROAD SURGERY,39645736,37523.3,S5 8AL
Department of Health,NHS Sheffield CCG,31/01/2022,C&M-GMS LONG COVID ES,PRC DELEGATED CO-COMMISSIONING,BUCHANAN ROAD SURGERY,39645736,192.26,S5 8AL
Department of Health,NHS Sheffield CCG,31/01/2022,C&M-GMS PCN DES Participation,PRC DELEGATED CO-COMMISSIONING,BUCHANAN ROAD SURGERY,39645736,727.12,S5 8AL
Department of Health,NHS Sheffield CCG,31/01/2022,C&M-GMS Prem Notional Rent,PRC DELEGATED CO-COMMISSIONING,BUCHANAN ROAD SURGERY,39645736,2595.83,S5 8AL
Department of Health,NHS Sheffield CCG,31/01/2022,C&M-GMS Prem Rates,PRC DELEGATED CO-COMMISSIONING,BUCHANAN ROAD SURGERY,39645736,898,S5 8AL
Department of Health,NHS Sheffield CCG,31/01/2022,C&M-GMS QOF Aspiration,PRC DELEGATED CO-COMMISSIONING,BUCHANAN ROAD SURGERY,39645736,4716.42,S5 8AL
Department of Health,NHS Sheffield CCG,31/01/2022,C&M-GMS WEIGHT MANAGEMENT SERVICE,PRC DELEGATED CO-COMMISSIONING,BUCHANAN ROAD SURGERY,39645736,172.5,S5 8AL
Department of Health,NHS Sheffield CCG,31/01/2022,C&M-GMS DES Learn Dsblty Hlth Chk,PRC DELEGATED CO-COMMISSIONING,CHARNOCK HEALTH PRIMARY CARE CENTRE,39645746,280,S12 3GH
Department of Health,NHS Sheffield CCG,31/01/2022,C&M-GMS DES Minor Surgery,PRC DELEGATED CO-COMMISSIONING,CHARNOCK HEALTH PRIMARY CARE CENTRE,39645746,240,S12 3GH
Department of Health,NHS Sheffield CCG,31/01/2022,C&M-GMS Global Sum,PRC DELEGATED CO-COMMISSIONING,CHARNOCK HEALTH PRIMARY CARE CENTRE,39645746,46980.86,S12 3GH
Department of Health,NHS Sheffield CCG,31/01/2022,C&M-GMS LONG COVID ES,PRC DELEGATED CO-COMMISSIONING,CHARNOCK HEALTH PRIMARY CARE CENTRE,39645746,230.23,S12 3GH
Department of Health,NHS Sheffield CCG,31/01/2022,C&M-GMS PCN DES Participation,PRC DELEGATED CO-COMMISSIONING,CHARNOCK HEALTH PRIMARY CARE CENTRE,39645746,884.41,S12 3GH
Department of Health,NHS Sheffield CCG,31/01/2022,C&M-GMS PCO Other,PRC DELEGATED CO-COMMISSIONING,CHARNOCK HEALTH PRIMARY CARE CENTRE,39645746,369.2,S12 3GH
Department of Health,NHS Sheffield CCG,31/01/2022,C&M-GMS Prem Actual Rent,PRC DELEGATED CO-COMMISSIONING,CHARNOCK HEALTH PRIMARY CARE CENTRE,39645746,20400,S12 3GH
Department of Health,NHS Sheffield CCG,31/01/2022,C&M-GMS Prem Notional Rent,PRC DELEGATED CO-COMMISSIONING,CHARNOCK HEALTH PRIMARY CARE CENTRE,39645746,340,S12 3GH
Department of Health,NHS Sheffield CCG,31/01/2022,C&M-GMS Prem Rates,PRC DELEGATED CO-COMMISSIONING,CHARNOCK HEALTH PRIMARY CARE CENTRE,39645746,1160,S12 3GH
Department of Health,NHS Sheffield CCG,31/01/2022,C&M-GMS QOF Aspiration,PRC DELEGATED CO-COMMISSIONING,CHARNOCK HEALTH PRIMARY CARE CENTRE,39645746,5385.73,S12 3GH
Department of Health,NHS Sheffield CCG,31/01/2022,C&M-GMS DES Learn Dsblty Hlth Chk,PRC DELEGATED CO-COMMISSIONING,STONECROFT MEDICAL CENTRE,39645752,280,S12 2LJ
Department of Health,NHS Sheffield CCG,31/01/2022,C&M-GMS DES Minor Surgery,PRC DELEGATED CO-COMMISSIONING,STONECROFT MEDICAL CENTRE,39645752,560,S12 2LJ
Department of Health,NHS Sheffield CCG,31/01/2022,C&M-GMS Global Sum,PRC DELEGATED CO-COMMISSIONING,STONECROFT MEDICAL CENTRE,39645752,36643.02,S12 2LJ
Department of Health,NHS Sheffield CCG,31/01/2022,C&M-GMS LONG COVID ES,PRC DELEGATED CO-COMMISSIONING,STONECROFT MEDICAL CENTRE,39645752,173.13,S12 2LJ
Department of Health,NHS Sheffield CCG,31/01/2022,C&M-GMS PCN DES Participation,PRC DELEGATED CO-COMMISSIONING,STONECROFT MEDICAL CENTRE,39645752,680.92,S12 2LJ
Department of Health,NHS Sheffield CCG,31/01/2022,C&M-GMS PCO Other,PRC DELEGATED CO-COMMISSIONING,STONECROFT MEDICAL CENTRE,39645752,290.3,S12 2LJ
Department of Health,NHS Sheffield CCG,31/01/2022,C&M-GMS Prem Notional Rent,PRC DELEGATED CO-COMMISSIONING,STONECROFT MEDICAL CENTRE,39645752,2808.33,S12 2LJ
Department of Health,NHS Sheffield CCG,31/01/2022,C&M-GMS Prem Rates,PRC DELEGATED CO-COMMISSIONING,STONECROFT MEDICAL CENTRE,39645752,1235,S12 2LJ
Department of Health,NHS Sheffield CCG,31/01/2022,C&M-GMS QOF Aspiration,PRC DELEGATED CO-COMMISSIONING,STONECROFT MEDICAL CENTRE,39645752,4286.72,S12 2LJ
Department of Health,NHS Sheffield CCG,31/01/2022,C&M-GMS DES Learn Dsblty Hlth Chk,PRC DELEGATED CO-COMMISSIONING,CARTERKNOWLE & DORE MEDICAL PRACTICE,39645760,2520,S7 2DW
Department of Health,NHS Sheffield CCG,31/01/2022,C&M-GMS DES Minor Surgery,PRC DELEGATED CO-COMMISSIONING,CARTERKNOWLE & DORE MEDICAL PRACTICE,39645760,600,S7 2DW
Department of Health,NHS Sheffield CCG,31/01/2022,C&M-GMS Global Sum,PRC DELEGATED CO-COMMISSIONING,CARTERKNOWLE & DORE MEDICAL PRACTICE,39645760,95066.77,S7 2DW
Department of Health,NHS Sheffield CCG,31/01/2022,C&M-GMS LONG COVID ES,PRC DELEGATED CO-COMMISSIONING,CARTERKNOWLE & DORE MEDICAL PRACTICE,39645760,522.49,S7 2DW
Department of Health,NHS Sheffield CCG,31/01/2022,C&M-GMS PCN DES Participation,PRC DELEGATED CO-COMMISSIONING,CARTERKNOWLE & DORE MEDICAL PRACTICE,39645760,1765.5,S7 2DW
Department of Health,NHS Sheffield CCG,31/01/2022,C&M-GMS PCO Other,PRC DELEGATED CO-COMMISSIONING,CARTERKNOWLE & DORE MEDICAL PRACTICE,39645760,773.4,S7 2DW
Department of Health,NHS Sheffield CCG,31/01/2022,C&M-GMS Prem Notional Rent,PRC DELEGATED CO-COMMISSIONING,CARTERKNOWLE & DORE MEDICAL PRACTICE,39645760,7855,S7 2DW
Department of Health,NHS Sheffield CCG,31/01/2022,C&M-GMS QOF Aspiration,PRC DELEGATED CO-COMMISSIONING,CARTERKNOWLE & DORE MEDICAL PRACTICE,39645760,11516.91,S7 2DW
Department of Health,NHS Sheffield CCG,31/01/2022,C&M-GMS DES Learn Dsblty Hlth Chk,PRC DELEGATED CO-COMMISSIONING,SHIREGREEN MEDICAL CENTRE,39645766,140,S5 0RG
Department of Health,NHS Sheffield CCG,31/01/2022,C&M-GMS Global Sum,PRC DELEGATED CO-COMMISSIONING,SHIREGREEN MEDICAL CENTRE,39645766,60132,S5 0RG
Department of Health,NHS Sheffield CCG,31/01/2022,C&M-GMS LONG COVID ES,PRC DELEGATED CO-COMMISSIONING,SHIREGREEN MEDICAL CENTRE,39645766,317.7,S5 0RG
Department of Health,NHS Sheffield CCG,31/01/2022,C&M-GMS PCN DES Participation,PRC DELEGATED CO-COMMISSIONING,SHIREGREEN MEDICAL CENTRE,39645766,1161.13,S5 0RG
Department of Health,NHS Sheffield CCG,31/01/2022,C&M-GMS PCO Other,PRC DELEGATED CO-COMMISSIONING,SHIREGREEN MEDICAL CENTRE,39645766,3920.8,S5 0RG
Department of Health,NHS Sheffield CCG,31/01/2022,C&M-GMS Prem Cost Rent,PRC DELEGATED CO-COMMISSIONING,SHIREGREEN MEDICAL CENTRE,39645766,1792.33,S5 0RG
Department of Health,NHS Sheffield CCG,31/01/2022,C&M-GMS Prem Notional Rent,PRC DELEGATED CO-COMMISSIONING,SHIREGREEN MEDICAL CENTRE,39645766,5375,S5 0RG
Department of Health,NHS Sheffield CCG,31/01/2022,C&M-GMS Prem Rates,PRC DELEGATED CO-COMMISSIONING,SHIREGREEN MEDICAL CENTRE,39645766,1868,S5 0RG
Department of Health,NHS Sheffield CCG,31/01/2022,C&M-GMS QOF Aspiration,PRC DELEGATED CO-COMMISSIONING,SHIREGREEN MEDICAL CENTRE,39645766,7267.46,S5 0RG
Department of Health,NHS Sheffield CCG,31/01/2022,C&M-GMS WEIGHT MANAGEMENT SERVICE,PRC DELEGATED CO-COMMISSIONING,SHIREGREEN MEDICAL CENTRE,39645766,23,S5 0RG
Department of Health,NHS Sheffield CCG,31/01/2022,C&M-GMS Global Sum,PRC DELEGATED CO-COMMISSIONING,STANNINGTON MEDICAL CENTRE,39645779,27050.11,S6 6BX
Department of Health,NHS Sheffield CCG,31/01/2022,C&M-GMS PCO Other,PRC DELEGATED CO-COMMISSIONING,STANNINGTON MEDICAL CENTRE,39645779,242,S6 6BX
Department of Health,NHS Sheffield CCG,31/01/2022,C&M-GMS Prem Notional Rent,PRC DELEGATED CO-COMMISSIONING,STANNINGTON MEDICAL CENTRE,39645779,2625,S6 6BX
Department of Health,NHS Sheffield CCG,31/01/2022,C&M-GMS Prem Rates,PRC DELEGATED CO-COMMISSIONING,STANNINGTON MEDICAL CENTRE,39645779,668.6,S6 6BX
Department of Health,NHS Sheffield CCG,31/01/2022,C&M-GMS Prem Water Rates,PRC DELEGATED CO-COMMISSIONING,STANNINGTON MEDICAL CENTRE,39645779,166.92,S6 6BX
Department of Health,NHS Sheffield CCG,31/01/2022,C&M-GMS QOF Aspiration,PRC DELEGATED CO-COMMISSIONING,STANNINGTON MEDICAL CENTRE,39645779,3194.14,S6 6BX
Department of Health,NHS Sheffield CCG,31/01/2022,C&M-GMS DES Learn Dsblty Hlth Chk,PRC DELEGATED CO-COMMISSIONING,DUKE MEDICAL CENTRE,39645782,280,S2 2TD
Department of Health,NHS Sheffield CCG,31/01/2022,C&M-GMS DES Minor Surgery,PRC DELEGATED CO-COMMISSIONING,DUKE MEDICAL CENTRE,39645782,520,S2 2TD
Department of Health,NHS Sheffield CCG,31/01/2022,C&M-GMS Global Sum,PRC DELEGATED CO-COMMISSIONING,DUKE MEDICAL CENTRE,39645782,67465.33,S2 2TD
Department of Health,NHS Sheffield CCG,31/01/2022,C&M-GMS LONG COVID ES,PRC DELEGATED CO-COMMISSIONING,DUKE MEDICAL CENTRE,39645782,308.63,S2 2TD
Department of Health,NHS Sheffield CCG,31/01/2022,C&M-GMS PCN DES Participation,PRC DELEGATED CO-COMMISSIONING,DUKE MEDICAL CENTRE,39645782,1180.97,S2 2TD
Department of Health,NHS Sheffield CCG,31/01/2022,C&M-GMS PCO Other,PRC DELEGATED CO-COMMISSIONING,DUKE MEDICAL CENTRE,39645782,477.6,S2 2TD
Department of Health,NHS Sheffield CCG,31/01/2022,C&M-GMS Prem Notional Rent,PRC DELEGATED CO-COMMISSIONING,DUKE MEDICAL CENTRE,39645782,5721.67,S2 2TD
Department of Health,NHS Sheffield CCG,31/01/2022,C&M-GMS Prem Rates,PRC DELEGATED CO-COMMISSIONING,DUKE MEDICAL CENTRE,39645782,22330.25,S2 2TD
Department of Health,NHS Sheffield CCG,31/01/2022,C&M-GMS QOF Aspiration,PRC DELEGATED CO-COMMISSIONING,DUKE MEDICAL CENTRE,39645782,6200.05,S2 2TD
Department of Health,NHS Sheffield CCG,31/01/2022,C&M-GMS Cost of Drugs -Prescribing,LOCAL ENHANCED SERVICES,ECCLESFIELD GROUP PRACTICE,39645790,21999.23,S35 9XQ
Department of Health,NHS Sheffield CCG,31/01/2022,C&M-GMS Prof Fees Prescribing,PRC DELEGATED CO-COMMISSIONING,ECCLESFIELD GROUP PRACTICE,39645790,3652.2,S35 9XQ
Department of Health,NHS Sheffield CCG,31/01/2022,C&M-GMS DES Extended Hours Access,PRC DELEGATED CO-COMMISSIONING,ECCLESFIELD GROUP PRACTICE,39645792,5114.88,S35 9XQ
Department of Health,NHS Sheffield CCG,31/01/2022,C&M-GMS DES Learn Dsblty Hlth Chk,PRC DELEGATED CO-COMMISSIONING,ECCLESFIELD GROUP PRACTICE,39645792,980,S35 9XQ
Department of Health,NHS Sheffield CCG,31/01/2022,C&M-GMS DES Minor Surgery,PRC DELEGATED CO-COMMISSIONING,ECCLESFIELD GROUP PRACTICE,39645792,240,S35 9XQ
Department of Health,NHS Sheffield CCG,31/01/2022,C&M-GMS Global Sum,PRC DELEGATED CO-COMMISSIONING,ECCLESFIELD GROUP PRACTICE,39645792,74415.1,S35 9XQ
Department of Health,NHS Sheffield CCG,31/01/2022,C&M-GMS LONG COVID ES,PRC DELEGATED CO-COMMISSIONING,ECCLESFIELD GROUP PRACTICE,39645792,355.01,S35 9XQ
Department of Health,NHS Sheffield CCG,31/01/2022,C&M-GMS PCN DES Clin Pharmacist,PRC DELEGATED CO-COMMISSIONING,ECCLESFIELD GROUP PRACTICE,39645792,16244.71,S35 9XQ
Department of Health,NHS Sheffield CCG,31/01/2022,C&M-GMS PCN DES Clinical Director,PRC DELEGATED CO-COMMISSIONING,ECCLESFIELD GROUP PRACTICE,39645792,2614.27,S35 9XQ
Department of Health,NHS Sheffield CCG,31/01/2022,C&M-GMS PCN DES PCN support,LOCAL ENHANCED SERVICES,ECCLESFIELD GROUP PRACTICE,39645792,5328,S35 9XQ
Department of Health,NHS Sheffield CCG,31/01/2022,C&M-GMS PCN DES Participation,PRC DELEGATED CO-COMMISSIONING,ECCLESFIELD GROUP PRACTICE,39645792,1441.13,S35 9XQ
Department of Health,NHS Sheffield CCG,31/01/2022,C&M-GMS PCN DES Physiotherapist,PRC DELEGATED CO-COMMISSIONING,ECCLESFIELD GROUP PRACTICE,39645792,4716.25,S35 9XQ
Department of Health,NHS Sheffield CCG,31/01/2022,C&M-GMS PCN DES Soc Prescribing,PRC DELEGATED CO-COMMISSIONING,ECCLESFIELD GROUP PRACTICE,39645792,8074.69,S35 9XQ
Department of Health,NHS Sheffield CCG,31/01/2022,C&M-GMS PCO Other,PRC DELEGATED CO-COMMISSIONING,ECCLESFIELD GROUP PRACTICE,39645792,542,S35 9XQ
Department of Health,NHS Sheffield CCG,31/01/2022,C&M-GMS Prem Notional Rent,PRC DELEGATED CO-COMMISSIONING,ECCLESFIELD GROUP PRACTICE,39645792,7041.67,S35 9XQ
Department of Health,NHS Sheffield CCG,31/01/2022,C&M-GMS Prem Rates,PRC DELEGATED CO-COMMISSIONING,ECCLESFIELD GROUP PRACTICE,39645792,1063,S35 9XQ
Department of Health,NHS Sheffield CCG,31/01/2022,C&M-GMS QOF Aspiration,PRC DELEGATED CO-COMMISSIONING,ECCLESFIELD GROUP PRACTICE,39645792,9899.3,S35 9XQ
Department of Health,NHS Sheffield CCG,31/01/2022,C&M-GMS WEIGHT MANAGEMENT SERVICE,PRC DELEGATED CO-COMMISSIONING,ECCLESFIELD GROUP PRACTICE,39645792,80.5,S35 9XQ
Department of Health,NHS Sheffield CCG,31/01/2022,C&M-PCN-GMS DES Leadership Payment,PRC DELEGATED CO-COMMISSIONING,ECCLESFIELD GROUP PRACTICE,39645792,5182.33,S35 9XQ
Department of Health,NHS Sheffield CCG,31/01/2022,C&M-GMS DES Learn Dsblty Hlth Chk,PRC DELEGATED CO-COMMISSIONING,ELM LANE SURGERY,39645805,280,S5 7TW
Department of Health,NHS Sheffield CCG,31/01/2022,C&M-GMS DES Minor Surgery,PRC DELEGATED CO-COMMISSIONING,ELM LANE SURGERY,39645805,40,S5 7TW
Department of Health,NHS Sheffield CCG,31/01/2022,C&M-GMS Global Sum,PRC DELEGATED CO-COMMISSIONING,ELM LANE SURGERY,39645805,46577.97,S5 7TW
Department of Health,NHS Sheffield CCG,31/01/2022,C&M-GMS LONG COVID ES,PRC DELEGATED CO-COMMISSIONING,ELM LANE SURGERY,39645805,222.68,S5 7TW
Department of Health,NHS Sheffield CCG,31/01/2022,C&M-GMS PCN DES Participation,PRC DELEGATED CO-COMMISSIONING,ELM LANE SURGERY,39645805,865.86,S5 7TW
Department of Health,NHS Sheffield CCG,31/01/2022,C&M-GMS PCO Other,PRC DELEGATED CO-COMMISSIONING,ELM LANE SURGERY,39645805,358.8,S5 7TW
Department of Health,NHS Sheffield CCG,31/01/2022,C&M-GMS Prem Notional Rent,PRC DELEGATED CO-COMMISSIONING,ELM LANE SURGERY,39645805,5343,S5 7TW
Department of Health,NHS Sheffield CCG,31/01/2022,C&M-GMS Prem Rates,PRC DELEGATED CO-COMMISSIONING,ELM LANE SURGERY,39645805,959,S5 7TW
Department of Health,NHS Sheffield CCG,31/01/2022,C&M-GMS QOF Aspiration,PRC DELEGATED CO-COMMISSIONING,ELM LANE SURGERY,39645805,5528.96,S5 7TW
Department of Health,NHS Sheffield CCG,31/01/2022,C&M-GMS Global Sum,PRC DELEGATED CO-COMMISSIONING,MEDICAL CENTRE CRYSTAL PEAKS,39645808,51650.97,S20 7HZ
Department of Health,NHS Sheffield CCG,31/01/2022,C&M-GMS LONG COVID ES,PRC DELEGATED CO-COMMISSIONING,MEDICAL CENTRE CRYSTAL PEAKS,39645808,274.79,S20 7HZ
Department of Health,NHS Sheffield CCG,31/01/2022,C&M-GMS PCN DES Participation,PRC DELEGATED CO-COMMISSIONING,MEDICAL CENTRE CRYSTAL PEAKS,39645808,978.29,S20 7HZ
Department of Health,NHS Sheffield CCG,31/01/2022,C&M-GMS PCO Other,PRC DELEGATED CO-COMMISSIONING,MEDICAL CENTRE CRYSTAL PEAKS,39645808,430.8,S20 7HZ
Department of Health,NHS Sheffield CCG,31/01/2022,C&M-GMS Prem Actual Rent,PRC DELEGATED CO-COMMISSIONING,MEDICAL CENTRE CRYSTAL PEAKS,39645808,17610,S20 7HZ
Department of Health,NHS Sheffield CCG,31/01/2022,C&M-GMS Prem Notional Rent,PRC DELEGATED CO-COMMISSIONING,MEDICAL CENTRE CRYSTAL PEAKS,39645808,270,S20 7HZ
Department of Health,NHS Sheffield CCG,31/01/2022,C&M-GMS Prem Rates,PRC DELEGATED CO-COMMISSIONING,MEDICAL CENTRE CRYSTAL PEAKS,39645808,1073,S20 7HZ
Department of Health,NHS Sheffield CCG,31/01/2022,C&M-GMS QOF Aspiration,PRC DELEGATED CO-COMMISSIONING,MEDICAL CENTRE CRYSTAL PEAKS,39645808,7126.23,S20 7HZ
Department of Health,NHS Sheffield CCG,31/01/2022,C&M-GMS WEIGHT MANAGEMENT SERVICE,PRC DELEGATED CO-COMMISSIONING,MEDICAL CENTRE CRYSTAL PEAKS,39645808,92,S20 7HZ
Department of Health,NHS Sheffield CCG,31/01/2022,ME-GMS GP Prior Year AVCs,PRC DELEGATED CO-COMMISSIONING,MEDICAL CENTRE CRYSTAL PEAKS,39645808,18.92,S20 7HZ
Department of Health,NHS Sheffield CCG,31/01/2022,ME-GMS GP Pension ERs,PRC DELEGATED CO-COMMISSIONING,MEDICAL CENTRE CRYSTAL PEAKS,39645811,-5723.45,S20 7HZ
Department of Health,NHS Sheffield CCG,31/01/2022,ME-GMS GP Pension ERs Adjustments,PRC DELEGATED CO-COMMISSIONING,MEDICAL CENTRE CRYSTAL PEAKS,39645811,-647.1,S20 7HZ
Department of Health,NHS Sheffield CCG,31/01/2022,C&M-GMS DES Learn Dsblty Hlth Chk,PRC DELEGATED CO-COMMISSIONING,FAR LANE MEDICAL CENTRE,39645821,1960,S6 4FA
Department of Health,NHS Sheffield CCG,31/01/2022,C&M-GMS Global Sum,PRC DELEGATED CO-COMMISSIONING,FAR LANE MEDICAL CENTRE,39645821,59887.87,S6 4FA
Department of Health,NHS Sheffield CCG,31/01/2022,C&M-GMS LONG COVID ES,PRC DELEGATED CO-COMMISSIONING,FAR LANE MEDICAL CENTRE,39645821,294.7,S6 4FA
Department of Health,NHS Sheffield CCG,31/01/2022,C&M-GMS PCN DES Participation,PRC DELEGATED CO-COMMISSIONING,FAR LANE MEDICAL CENTRE,39645821,1139.22,S6 4FA
Department of Health,NHS Sheffield CCG,31/01/2022,C&M-GMS PCO Other,PRC DELEGATED CO-COMMISSIONING,FAR LANE MEDICAL CENTRE,39645821,458.3,S6 4FA
Department of Health,NHS Sheffield CCG,31/01/2022,C&M-GMS Prem Notional Rent,PRC DELEGATED CO-COMMISSIONING,FAR LANE MEDICAL CENTRE,39645821,3504.17,S6 4FA
Department of Health,NHS Sheffield CCG,31/01/2022,C&M-GMS Prem Rates,PRC DELEGATED CO-COMMISSIONING,FAR LANE MEDICAL CENTRE,39645821,1105,S6 4FA
Department of Health,NHS Sheffield CCG,31/01/2022,C&M-GMS QOF Aspiration,PRC DELEGATED CO-COMMISSIONING,FAR LANE MEDICAL CENTRE,39645821,6827.86,S6 4FA
Department of Health,NHS Sheffield CCG,31/01/2022,ME-GMS GP Pension ERs Adjustments,PRC DELEGATED CO-COMMISSIONING,FAR LANE MEDICAL CENTRE,39645821,23727.06,S6 4FA
Department of Health,NHS Sheffield CCG,31/01/2022,C&M-GMS Global Sum,PRC DELEGATED CO-COMMISSIONING,DEVONSHIRE GREEN MEDICAL CENTRE,39645826,53474.78,S3 7SF
Department of Health,NHS Sheffield CCG,31/01/2022,C&M-GMS LONG COVID ES,PRC DELEGATED CO-COMMISSIONING,DEVONSHIRE GREEN MEDICAL CENTRE,39645826,295.19,S3 7SF
Department of Health,NHS Sheffield CCG,31/01/2022,C&M-GMS PCN DES Participation,PRC DELEGATED CO-COMMISSIONING,DEVONSHIRE GREEN MEDICAL CENTRE,39645826,936.47,S3 7SF
Department of Health,NHS Sheffield CCG,31/01/2022,C&M-GMS Prem Notional Rent,PRC DELEGATED CO-COMMISSIONING,DEVONSHIRE GREEN MEDICAL CENTRE,39645826,5987.5,S3 7SF
Department of Health,NHS Sheffield CCG,31/01/2022,C&M-GMS Prem Rates,PRC DELEGATED CO-COMMISSIONING,DEVONSHIRE GREEN MEDICAL CENTRE,39645826,778,S3 7SF
Department of Health,NHS Sheffield CCG,31/01/2022,C&M-GMS QOF Aspiration,PRC DELEGATED CO-COMMISSIONING,DEVONSHIRE GREEN MEDICAL CENTRE,39645826,5473.95,S3 7SF
Department of Health,NHS Sheffield CCG,31/01/2022,C&M-GMS DES Learn Dsblty Hlth Chk,PRC DELEGATED CO-COMMISSIONING,TRAMWAYS MEDICAL CENTRE,39645834,140,S6 4JQ
Department of Health,NHS Sheffield CCG,31/01/2022,C&M-GMS DES Minor Surgery,PRC DELEGATED CO-COMMISSIONING,TRAMWAYS MEDICAL CENTRE,39645834,2215,S6 4JQ
Department of Health,NHS Sheffield CCG,31/01/2022,C&M-GMS Global Sum,PRC DELEGATED CO-COMMISSIONING,TRAMWAYS MEDICAL CENTRE,39645834,66845.15,S6 4JQ
Department of Health,NHS Sheffield CCG,31/01/2022,C&M-GMS LONG COVID ES,PRC DELEGATED CO-COMMISSIONING,TRAMWAYS MEDICAL CENTRE,39645834,344.49,S6 4JQ
Department of Health,NHS Sheffield CCG,31/01/2022,C&M-GMS PCN DES Participation,PRC DELEGATED CO-COMMISSIONING,TRAMWAYS MEDICAL CENTRE,39645834,1255.37,S6 4JQ
Department of Health,NHS Sheffield CCG,31/01/2022,C&M-GMS PCO Other,PRC DELEGATED CO-COMMISSIONING,TRAMWAYS MEDICAL CENTRE,39645834,527.2,S6 4JQ
Department of Health,NHS Sheffield CCG,31/01/2022,C&M-GMS Prem Cost Rent,PRC DELEGATED CO-COMMISSIONING,TRAMWAYS MEDICAL CENTRE,39645834,4012.75,S6 4JQ
Department of Health,NHS Sheffield CCG,31/01/2022,C&M-GMS Prem Rates,PRC DELEGATED CO-COMMISSIONING,TRAMWAYS MEDICAL CENTRE,39645834,823,S6 4JQ
Department of Health,NHS Sheffield CCG,31/01/2022,C&M-GMS QOF Aspiration,PRC DELEGATED CO-COMMISSIONING,TRAMWAYS MEDICAL CENTRE,39645834,6868.53,S6 4JQ
Department of Health,NHS Sheffield CCG,31/01/2022,C&M-GMS Global Sum,PRC DELEGATED CO-COMMISSIONING,MATHEWS PRACTICE,39645844,57312.43,S2 4UJ
Department of Health,NHS Sheffield CCG,31/01/2022,C&M-GMS LONG COVID ES,PRC DELEGATED CO-COMMISSIONING,MATHEWS PRACTICE,39645844,308.59,S2 4UJ
Department of Health,NHS Sheffield CCG,31/01/2022,C&M-GMS PCN DES Participation,PRC DELEGATED CO-COMMISSIONING,MATHEWS PRACTICE,39645844,1147.05,S2 4UJ
Department of Health,NHS Sheffield CCG,31/01/2022,C&M-GMS Prem Rates,PRC DELEGATED CO-COMMISSIONING,MATHEWS PRACTICE,39645844,1466,S2 4UJ
Department of Health,NHS Sheffield CCG,31/01/2022,C&M-GMS QOF Aspiration,PRC DELEGATED CO-COMMISSIONING,MATHEWS PRACTICE,39645844,6845.8,S2 4UJ
Department of Health,NHS Sheffield CCG,31/01/2022,C&M-GMS DES Learn Dsblty Hlth Chk,PRC DELEGATED CO-COMMISSIONING,UPPERTHORPE MEDICAL CENTRE,39645850,700,S6 3FT
Department of Health,NHS Sheffield CCG,31/01/2022,C&M-GMS DES Minor Surgery,PRC DELEGATED CO-COMMISSIONING,UPPERTHORPE MEDICAL CENTRE,39645850,245,S6 3FT
Department of Health,NHS Sheffield CCG,31/01/2022,C&M-GMS Global Sum,PRC DELEGATED CO-COMMISSIONING,UPPERTHORPE MEDICAL CENTRE,39645850,94863.54,S6 3FT
Department of Health,NHS Sheffield CCG,31/01/2022,C&M-GMS LONG COVID ES,PRC DELEGATED CO-COMMISSIONING,UPPERTHORPE MEDICAL CENTRE,39645850,508.93,S6 3FT
Department of Health,NHS Sheffield CCG,31/01/2022,C&M-GMS PCN DES Participation,PRC DELEGATED CO-COMMISSIONING,UPPERTHORPE MEDICAL CENTRE,39645850,1770.85,S6 3FT
Department of Health,NHS Sheffield CCG,31/01/2022,C&M-GMS Prem Actual Rent,PRC DELEGATED CO-COMMISSIONING,UPPERTHORPE MEDICAL CENTRE,39645850,419.5,S6 3FT
Department of Health,NHS Sheffield CCG,31/01/2022,C&M-GMS Prem Notional Rent,PRC DELEGATED CO-COMMISSIONING,UPPERTHORPE MEDICAL CENTRE,39645850,2128.33,S6 3FT
Department of Health,NHS Sheffield CCG,31/01/2022,C&M-GMS Prem Rates,PRC DELEGATED CO-COMMISSIONING,UPPERTHORPE MEDICAL CENTRE,39645850,2121,S6 3FT
Department of Health,NHS Sheffield CCG,31/01/2022,C&M-GMS Prem Water Rates,PRC DELEGATED CO-COMMISSIONING,UPPERTHORPE MEDICAL CENTRE,39645850,104.1,S6 3FT
Department of Health,NHS Sheffield CCG,31/01/2022,C&M-GMS QOF Aspiration,PRC DELEGATED CO-COMMISSIONING,UPPERTHORPE MEDICAL CENTRE,39645850,10749.32,S6 3FT
Department of Health,NHS Sheffield CCG,31/01/2022,C&M-GMS WEIGHT MANAGEMENT SERVICE,PRC DELEGATED CO-COMMISSIONING,UPPERTHORPE MEDICAL CENTRE,39645850,80.5,S6 3FT
Department of Health,NHS Sheffield CCG,31/01/2022,C&M-GMS Cost of Drugs -Prescribing,LOCAL ENHANCED SERVICES,WALKLEY HOUSE MEDICAL CENTRE,39645863,24179.02,S6 3TN
Department of Health,NHS Sheffield CCG,31/01/2022,C&M-GMS Prof Fees Prescribing,PRC DELEGATED CO-COMMISSIONING,WALKLEY HOUSE MEDICAL CENTRE,39645863,4110.75,S6 3TN
Department of Health,NHS Sheffield CCG,31/01/2022,C&M-GMS Global Sum,PRC DELEGATED CO-COMMISSIONING,WALKLEY HOUSE MEDICAL CENTRE,39645865,94444.15,S6 3TN
Department of Health,NHS Sheffield CCG,31/01/2022,C&M-GMS LONG COVID ES,PRC DELEGATED CO-COMMISSIONING,WALKLEY HOUSE MEDICAL CENTRE,39645865,506.25,S6 3TN
Department of Health,NHS Sheffield CCG,31/01/2022,C&M-GMS PCN DES Participation,PRC DELEGATED CO-COMMISSIONING,WALKLEY HOUSE MEDICAL CENTRE,39645865,1785.69,S6 3TN
Department of Health,NHS Sheffield CCG,31/01/2022,C&M-GMS Prem Notional Rent,PRC DELEGATED CO-COMMISSIONING,WALKLEY HOUSE MEDICAL CENTRE,39645865,5806.96,S6 3TN
Department of Health,NHS Sheffield CCG,31/01/2022,C&M-GMS Prem Rates,PRC DELEGATED CO-COMMISSIONING,WALKLEY HOUSE MEDICAL CENTRE,39645865,1297,S6 3TN
Department of Health,NHS Sheffield CCG,31/01/2022,C&M-GMS QOF Aspiration,PRC DELEGATED CO-COMMISSIONING,WALKLEY HOUSE MEDICAL CENTRE,39645865,9792.91,S6 3TN
Department of Health,NHS Sheffield CCG,31/01/2022,C&M-GMS DES Learn Dsblty Hlth Chk,PRC DELEGATED CO-COMMISSIONING,WHITE HOUSE SURGERY SHEFFIELD,39645871,560,S2 1SL
Department of Health,NHS Sheffield CCG,31/01/2022,C&M-GMS Global Sum,PRC DELEGATED CO-COMMISSIONING,WHITE HOUSE SURGERY SHEFFIELD,39645871,58875.09,S2 1SL
Department of Health,NHS Sheffield CCG,31/01/2022,C&M-GMS LONG COVID ES,PRC DELEGATED CO-COMMISSIONING,WHITE HOUSE SURGERY SHEFFIELD,39645871,283.44,S2 1SL
Department of Health,NHS Sheffield CCG,31/01/2022,C&M-GMS PCN DES Participation,PRC DELEGATED CO-COMMISSIONING,WHITE HOUSE SURGERY SHEFFIELD,39645871,1090.83,S2 1SL
Department of Health,NHS Sheffield CCG,31/01/2022,C&M-GMS Prem Notional Rent,PRC DELEGATED CO-COMMISSIONING,WHITE HOUSE SURGERY SHEFFIELD,39645871,9412.5,S2 1SL
Department of Health,NHS Sheffield CCG,31/01/2022,C&M-GMS Prem Rates,PRC DELEGATED CO-COMMISSIONING,WHITE HOUSE SURGERY SHEFFIELD,39645871,1632,S2 1SL
Department of Health,NHS Sheffield CCG,31/01/2022,C&M-GMS QOF Aspiration,PRC DELEGATED CO-COMMISSIONING,WHITE HOUSE SURGERY SHEFFIELD,39645871,6765.85,S2 1SL
Department of Health,NHS Sheffield CCG,31/01/2022,C&M-GMS WEIGHT MANAGEMENT SERVICE,PRC DELEGATED CO-COMMISSIONING,WHITE HOUSE SURGERY SHEFFIELD,39645871,46,S2 1SL
Department of Health,NHS Sheffield CCG,31/01/2022,C&M-GMS DES Learn Dsblty Hlth Chk,PRC DELEGATED CO-COMMISSIONING,HANDSWORTH MEDICAL PRACTICE SHEFFIELD,39645885,280,S13 9BZ
Department of Health,NHS Sheffield CCG,31/01/2022,C&M-GMS DES Minor Surgery,PRC DELEGATED CO-COMMISSIONING,HANDSWORTH MEDICAL PRACTICE SHEFFIELD,39645885,40,S13 9BZ
Department of Health,NHS Sheffield CCG,31/01/2022,C&M-GMS Global Sum,PRC DELEGATED CO-COMMISSIONING,HANDSWORTH MEDICAL PRACTICE SHEFFIELD,39645885,84894.95,S13 9BZ
Department of Health,NHS Sheffield CCG,31/01/2022,C&M-GMS LONG COVID ES,PRC DELEGATED CO-COMMISSIONING,HANDSWORTH MEDICAL PRACTICE SHEFFIELD,39645885,431.27,S13 9BZ
Department of Health,NHS Sheffield CCG,31/01/2022,C&M-GMS PCN DES Participation,PRC DELEGATED CO-COMMISSIONING,HANDSWORTH MEDICAL PRACTICE SHEFFIELD,39645885,1619.69,S13 9BZ
Department of Health,NHS Sheffield CCG,31/01/2022,C&M-GMS Prem Notional Rent,PRC DELEGATED CO-COMMISSIONING,HANDSWORTH MEDICAL PRACTICE SHEFFIELD,39645885,3321.66,S13 9BZ
Department of Health,NHS Sheffield CCG,31/01/2022,C&M-GMS Prem Water Rates,PRC DELEGATED CO-COMMISSIONING,HANDSWORTH MEDICAL PRACTICE SHEFFIELD,39645885,149.78,S13 9BZ
Department of Health,NHS Sheffield CCG,31/01/2022,C&M-GMS QOF Aspiration,PRC DELEGATED CO-COMMISSIONING,HANDSWORTH MEDICAL PRACTICE SHEFFIELD,39645885,8749.2,S13 9BZ
Department of Health,NHS Sheffield CCG,31/01/2022,C&M-GMS Global Sum,PRC DELEGATED CO-COMMISSIONING,HOLLIES MEDICAL CENTRE,39645893,69135.5,S11 9AL
Department of Health,NHS Sheffield CCG,31/01/2022,C&M-GMS LONG COVID ES,PRC DELEGATED CO-COMMISSIONING,HOLLIES MEDICAL CENTRE,39645893,410.66,S11 9AL
Department of Health,NHS Sheffield CCG,31/01/2022,C&M-GMS PCN DES Participation,PRC DELEGATED CO-COMMISSIONING,HOLLIES MEDICAL CENTRE,39645893,1270.72,S11 9AL
Department of Health,NHS Sheffield CCG,31/01/2022,C&M-GMS PCO Other,PRC DELEGATED CO-COMMISSIONING,HOLLIES MEDICAL CENTRE,39645893,618.9,S11 9AL
Department of Health,NHS Sheffield CCG,31/01/2022,C&M-GMS Prem Notional Rent,PRC DELEGATED CO-COMMISSIONING,HOLLIES MEDICAL CENTRE,39645893,3358.33,S11 9AL
Department of Health,NHS Sheffield CCG,31/01/2022,C&M-GMS Prem Rates,PRC DELEGATED CO-COMMISSIONING,HOLLIES MEDICAL CENTRE,39645893,1272,S11 9AL
Department of Health,NHS Sheffield CCG,31/01/2022,C&M-GMS QOF Aspiration,PRC DELEGATED CO-COMMISSIONING,HOLLIES MEDICAL CENTRE,39645893,8186.06,S11 9AL
Department of Health,NHS Sheffield CCG,31/01/2022,C&M-GMS Cost of Drugs -Prescribing,LOCAL ENHANCED SERVICES,GRENOSIDE SURGERY,39645897,27943.28,S35 8NX
Department of Health,NHS Sheffield CCG,31/01/2022,C&M-GMS Prof Fees Prescribing,PRC DELEGATED CO-COMMISSIONING,GRENOSIDE SURGERY,39645897,4285.38,S35 8NX
Department of Health,NHS Sheffield CCG,31/01/2022,C&M-GMS DES Learn Dsblty Hlth Chk,PRC DELEGATED CO-COMMISSIONING,HEELEY GREEN SURGERY,39645907,140,S2 3AJ
Department of Health,NHS Sheffield CCG,31/01/2022,C&M-GMS Global Sum,PRC DELEGATED CO-COMMISSIONING,HEELEY GREEN SURGERY,39645907,43704.19,S2 3AJ
Department of Health,NHS Sheffield CCG,31/01/2022,C&M-GMS LONG COVID ES,PRC DELEGATED CO-COMMISSIONING,HEELEY GREEN SURGERY,39645907,241.6,S2 3AJ
Department of Health,NHS Sheffield CCG,31/01/2022,C&M-GMS PCN DES Participation,PRC DELEGATED CO-COMMISSIONING,HEELEY GREEN SURGERY,39645907,848.8,S2 3AJ
Department of Health,NHS Sheffield CCG,31/01/2022,C&M-GMS Prem Notional Rent,PRC DELEGATED CO-COMMISSIONING,HEELEY GREEN SURGERY,39645907,3254.17,S2 3AJ
Department of Health,NHS Sheffield CCG,31/01/2022,C&M-GMS QOF Aspiration,PRC DELEGATED CO-COMMISSIONING,HEELEY GREEN SURGERY,39645907,4674.69,S2 3AJ
Department of Health,NHS Sheffield CCG,31/01/2022,C&M-GMS WEIGHT MANAGEMENT SERVICE,PRC DELEGATED CO-COMMISSIONING,HEELEY GREEN SURGERY,39645907,23,S2 3AJ
Department of Health,NHS Sheffield CCG,31/01/2022,C&M-PMS Cost of Drugs -Prescribing,LOCAL ENHANCED SERVICES,MEADOWHEAD GROUP PRACTICE,39645913,22800.46,S8 7RL
Department of Health,NHS Sheffield CCG,31/01/2022,C&M-PMS Prof fees Prescribing,PRC DELEGATED CO-COMMISSIONING,MEADOWHEAD GROUP PRACTICE,39645913,3022.62,S8 7RL
Department of Health,NHS Sheffield CCG,31/01/2022,C&M-GMS DES Learn Dsblty Hlth Chk,PRC DELEGATED CO-COMMISSIONING,MILL ROAD SURGERY SHEFFIELD,39645919,140,S35 9XQ
Department of Health,NHS Sheffield CCG,31/01/2022,C&M-GMS Global Sum,PRC DELEGATED CO-COMMISSIONING,MILL ROAD SURGERY SHEFFIELD,39645919,45455.54,S35 9XQ
Department of Health,NHS Sheffield CCG,31/01/2022,C&M-GMS LONG COVID ES,PRC DELEGATED CO-COMMISSIONING,MILL ROAD SURGERY SHEFFIELD,39645919,216.91,S35 9XQ
Department of Health,NHS Sheffield CCG,31/01/2022,C&M-GMS PCN DES Participation,PRC DELEGATED CO-COMMISSIONING,MILL ROAD SURGERY SHEFFIELD,39645919,838.81,S35 9XQ
Department of Health,NHS Sheffield CCG,31/01/2022,C&M-GMS PCO Other,PRC DELEGATED CO-COMMISSIONING,MILL ROAD SURGERY SHEFFIELD,39645919,350.7,S35 9XQ
Department of Health,NHS Sheffield CCG,31/01/2022,C&M-GMS Prem Notional Rent,PRC DELEGATED CO-COMMISSIONING,MILL ROAD SURGERY SHEFFIELD,39645919,4593.33,S35 9XQ
Department of Health,NHS Sheffield CCG,31/01/2022,C&M-GMS Prem Rates,PRC DELEGATED CO-COMMISSIONING,MILL ROAD SURGERY SHEFFIELD,39645919,674,S35 9XQ
Department of Health,NHS Sheffield CCG,31/01/2022,C&M-GMS QOF Aspiration,PRC DELEGATED CO-COMMISSIONING,MILL ROAD SURGERY SHEFFIELD,39645919,5365.62,S35 9XQ
Department of Health,NHS Sheffield CCG,31/01/2022,ME-GMS GP Pension ERs Adjustments,PRC DELEGATED CO-COMMISSIONING,MILL ROAD SURGERY SHEFFIELD,39645919,3115.65,S35 9XQ
Department of Health,NHS Sheffield CCG,31/01/2022,C&M-GMS DES Learn Dsblty Hlth Chk,PRC DELEGATED CO-COMMISSIONING,NORWOOD MEDICAL CENTRE SHEFFIELD,39645930,1680,S5 7HD
Department of Health,NHS Sheffield CCG,31/01/2022,C&M-GMS Global Sum,PRC DELEGATED CO-COMMISSIONING,NORWOOD MEDICAL CENTRE SHEFFIELD,39645930,69971.73,S5 7HD
Department of Health,NHS Sheffield CCG,31/01/2022,C&M-GMS LONG COVID ES,PRC DELEGATED CO-COMMISSIONING,NORWOOD MEDICAL CENTRE SHEFFIELD,39645930,336.58,S5 7HD
Department of Health,NHS Sheffield CCG,31/01/2022,C&M-GMS PCN DES Participation,PRC DELEGATED CO-COMMISSIONING,NORWOOD MEDICAL CENTRE SHEFFIELD,39645930,1332.45,S5 7HD
Department of Health,NHS Sheffield CCG,31/01/2022,C&M-GMS PCO Other,PRC DELEGATED CO-COMMISSIONING,NORWOOD MEDICAL CENTRE SHEFFIELD,39645930,515.9,S5 7HD
Department of Health,NHS Sheffield CCG,31/01/2022,C&M-GMS Prem Notional Rent,PRC DELEGATED CO-COMMISSIONING,NORWOOD MEDICAL CENTRE SHEFFIELD,39645930,5187.5,S5 7HD
Department of Health,NHS Sheffield CCG,31/01/2022,C&M-GMS QOF Aspiration,PRC DELEGATED CO-COMMISSIONING,NORWOOD MEDICAL CENTRE SHEFFIELD,39645930,8469.31,S5 7HD
Department of Health,NHS Sheffield CCG,31/01/2022,C&M-GMS WEIGHT MANAGEMENT SERVICE,PRC DELEGATED CO-COMMISSIONING,NORWOOD MEDICAL CENTRE SHEFFIELD,39645930,11.5,S5 7HD
Department of Health,NHS Sheffield CCG,31/01/2022,C&M-GMS Global Sum,PRC DELEGATED CO-COMMISSIONING,FAR LANE MEDICAL CENTRE,39655433,-46002.06,S6 4FA
Department of Health,NHS Sheffield CCG,31/01/2022,C&M-GMS DES Minor Surgery,PRC DELEGATED CO-COMMISSIONING,BASLOW ROAD & SHOREHAM STREET SURGERIES,39657373,1080,S17 4DR
Department of Health,NHS Sheffield CCG,31/01/2022,C&M-GMS Global Sum,PRC DELEGATED CO-COMMISSIONING,BASLOW ROAD & SHOREHAM STREET SURGERIES,39657373,103886.98,S17 4DR
Department of Health,NHS Sheffield CCG,31/01/2022,C&M-GMS LONG COVID ES,PRC DELEGATED CO-COMMISSIONING,BASLOW ROAD & SHOREHAM STREET SURGERIES,39657373,509.14,S17 4DR
Department of Health,NHS Sheffield CCG,31/01/2022,C&M-GMS PCN DES Participation,PRC DELEGATED CO-COMMISSIONING,BASLOW ROAD & SHOREHAM STREET SURGERIES,39657373,1957.06,S17 4DR
Department of Health,NHS Sheffield CCG,31/01/2022,C&M-GMS PCO Locum Sickness,PRC DELEGATED CO-COMMISSIONING,BASLOW ROAD & SHOREHAM STREET SURGERIES,39657373,14862.16,S17 4DR
Department of Health,NHS Sheffield CCG,31/01/2022,C&M-GMS PCO Other,PRC DELEGATED CO-COMMISSIONING,BASLOW ROAD & SHOREHAM STREET SURGERIES,39657373,760.5,S17 4DR
Department of Health,NHS Sheffield CCG,31/01/2022,C&M-GMS Prem Healthcentre Rent,PRC DELEGATED CO-COMMISSIONING,BASLOW ROAD & SHOREHAM STREET SURGERIES,39657373,15641.73,S17 4DR
Department of Health,NHS Sheffield CCG,31/01/2022,C&M-GMS Prem Notional Rent,PRC DELEGATED CO-COMMISSIONING,BASLOW ROAD & SHOREHAM STREET SURGERIES,39657373,8222.71,S17 4DR
Department of Health,NHS Sheffield CCG,31/01/2022,C&M-GMS Prem Rates,PRC DELEGATED CO-COMMISSIONING,BASLOW ROAD & SHOREHAM STREET SURGERIES,39657373,2185,S17 4DR
Department of Health,NHS Sheffield CCG,31/01/2022,C&M-GMS Prem Water Rates,PRC DELEGATED CO-COMMISSIONING,BASLOW ROAD & SHOREHAM STREET SURGERIES,39657373,452.32,S17 4DR
Department of Health,NHS Sheffield CCG,31/01/2022,C&M-GMS QOF Aspiration,PRC DELEGATED CO-COMMISSIONING,BASLOW ROAD & SHOREHAM STREET SURGERIES,39657373,10432.69,S17 4DR
Department of Health,NHS Sheffield CCG,31/01/2022,C&M-GMS WEIGHT MANAGEMENT SERVICE,PRC DELEGATED CO-COMMISSIONING,BASLOW ROAD & SHOREHAM STREET SURGERIES,39657373,471.5,S17 4DR
Department of Health,NHS Sheffield CCG,31/01/2022,C&M-GMS Global Sum,PRC DELEGATED CO-COMMISSIONING,BEAUCHIEF MEDICAL PRACTICE,39657374,53667.73,S8 0BJ
Department of Health,NHS Sheffield CCG,31/01/2022,C&M-GMS LONG COVID ES,PRC DELEGATED CO-COMMISSIONING,BEAUCHIEF MEDICAL PRACTICE,39657374,294,S8 0BJ
Department of Health,NHS Sheffield CCG,31/01/2022,C&M-GMS PCN DES Participation,PRC DELEGATED CO-COMMISSIONING,BEAUCHIEF MEDICAL PRACTICE,39657374,450.19,S8 0BJ
Department of Health,NHS Sheffield CCG,31/01/2022,C&M-GMS PCO Locum Adop/Pat/Mat,PRC DELEGATED CO-COMMISSIONING,BEAUCHIEF MEDICAL PRACTICE,39657374,9293.1,S8 0BJ
Department of Health,NHS Sheffield CCG,31/01/2022,C&M-GMS PCO Other,PRC DELEGATED CO-COMMISSIONING,BEAUCHIEF MEDICAL PRACTICE,39657374,499.2,S8 0BJ
Department of Health,NHS Sheffield CCG,31/01/2022,C&M-GMS Prem Notional Rent,PRC DELEGATED CO-COMMISSIONING,BEAUCHIEF MEDICAL PRACTICE,39657374,3770.84,S8 0BJ
Department of Health,NHS Sheffield CCG,31/01/2022,C&M-GMS Prem Rates,PRC DELEGATED CO-COMMISSIONING,BEAUCHIEF MEDICAL PRACTICE,39657374,1409,S8 0BJ
Department of Health,NHS Sheffield CCG,31/01/2022,C&M-GMS QOF Aspiration,PRC DELEGATED CO-COMMISSIONING,BEAUCHIEF MEDICAL PRACTICE,39657374,5567.74,S8 0BJ
Department of Health,NHS Sheffield CCG,31/01/2022,C&M-GMS WEIGHT MANAGEMENT SERVICE,PRC DELEGATED CO-COMMISSIONING,BEAUCHIEF MEDICAL PRACTICE,39657374,34.5,S8 0BJ
Department of Health,NHS Sheffield CCG,31/01/2022,C&M-GMS DES Learn Dsblty Hlth Chk,PRC DELEGATED CO-COMMISSIONING,CROOKES PRACTICE,39657375,280,S10 1GN
Department of Health,NHS Sheffield CCG,31/01/2022,C&M-GMS DES Minor Surgery,PRC DELEGATED CO-COMMISSIONING,CROOKES PRACTICE,39657375,85,S10 1GN
Department of Health,NHS Sheffield CCG,31/01/2022,C&M-GMS Global Sum,PRC DELEGATED CO-COMMISSIONING,CROOKES PRACTICE,39657375,56958.51,S10 1GN
Department of Health,NHS Sheffield CCG,31/01/2022,C&M-GMS LONG COVID ES,PRC DELEGATED CO-COMMISSIONING,CROOKES PRACTICE,39657375,348.04,S10 1GN
Department of Health,NHS Sheffield CCG,31/01/2022,C&M-GMS PCN DES Participation,PRC DELEGATED CO-COMMISSIONING,CROOKES PRACTICE,39657375,1077.54,S10 1GN
Department of Health,NHS Sheffield CCG,31/01/2022,C&M-GMS PCO Locum Adop/Pat/Mat,PRC DELEGATED CO-COMMISSIONING,CROOKES PRACTICE,39657375,3121.64,S10 1GN
Department of Health,NHS Sheffield CCG,31/01/2022,C&M-GMS PCO Other,PRC DELEGATED CO-COMMISSIONING,CROOKES PRACTICE,39657375,532.1,S10 1GN
Department of Health,NHS Sheffield CCG,31/01/2022,C&M-GMS Prem Notional Rent,PRC DELEGATED CO-COMMISSIONING,CROOKES PRACTICE,39657375,4006.59,S10 1GN
Department of Health,NHS Sheffield CCG,31/01/2022,C&M-GMS Prem Rates,PRC DELEGATED CO-COMMISSIONING,CROOKES PRACTICE,39657375,1534,S10 1GN
Department of Health,NHS Sheffield CCG,31/01/2022,C&M-GMS QOF Aspiration,PRC DELEGATED CO-COMMISSIONING,CROOKES PRACTICE,39657375,5404.47,S10 1GN
Department of Health,NHS Sheffield CCG,31/01/2022,C&M-GMS WEIGHT MANAGEMENT SERVICE,PRC DELEGATED CO-COMMISSIONING,CROOKES PRACTICE,39657375,11.5,S10 1GN
Department of Health,NHS Sheffield CCG,31/01/2022,C&M-GMS Global Sum,PRC DELEGATED CO-COMMISSIONING,GRENOSIDE SURGERY,39657377,66353.06,S35 8NX
Department of Health,NHS Sheffield CCG,31/01/2022,C&M-GMS LONG COVID ES,PRC DELEGATED CO-COMMISSIONING,GRENOSIDE SURGERY,39657377,319.72,S35 8NX
Department of Health,NHS Sheffield CCG,31/01/2022,C&M-GMS PCN DES Participation,PRC DELEGATED CO-COMMISSIONING,GRENOSIDE SURGERY,39657377,1250.62,S35 8NX
Department of Health,NHS Sheffield CCG,31/01/2022,C&M-GMS PCO Other,PRC DELEGATED CO-COMMISSIONING,GRENOSIDE SURGERY,39657377,492.7,S35 8NX
Department of Health,NHS Sheffield CCG,31/01/2022,C&M-GMS Prem Notional Rent,PRC DELEGATED CO-COMMISSIONING,GRENOSIDE SURGERY,39657377,8375,S35 8NX
Department of Health,NHS Sheffield CCG,31/01/2022,C&M-GMS Prem Rates,PRC DELEGATED CO-COMMISSIONING,GRENOSIDE SURGERY,39657377,1622,S35 8NX
Department of Health,NHS Sheffield CCG,31/01/2022,C&M-GMS QOF Aspiration,PRC DELEGATED CO-COMMISSIONING,GRENOSIDE SURGERY,39657377,6590.45,S35 8NX
Department of Health,NHS Sheffield CCG,31/01/2022,C&M-GMS WEIGHT MANAGEMENT SERVICE,PRC DELEGATED CO-COMMISSIONING,GRENOSIDE SURGERY,39657377,23,S35 8NX
Department of Health,NHS Sheffield CCG,31/01/2022,C&M-GMS DES Learn Dsblty Hlth Chk,PRC DELEGATED CO-COMMISSIONING,GREYSTONES MEDICAL CENTRE,39657378,560,S11 7BJ
Department of Health,NHS Sheffield CCG,31/01/2022,C&M-GMS Global Sum,PRC DELEGATED CO-COMMISSIONING,GREYSTONES MEDICAL CENTRE,39657378,21394.57,S11 7BJ
Department of Health,NHS Sheffield CCG,31/01/2022,C&M-GMS LONG COVID ES,PRC DELEGATED CO-COMMISSIONING,GREYSTONES MEDICAL CENTRE,39657378,153.39,S11 7BJ
Department of Health,NHS Sheffield CCG,31/01/2022,C&M-GMS PCN DES Participation,PRC DELEGATED CO-COMMISSIONING,GREYSTONES MEDICAL CENTRE,39657378,403.29,S11 7BJ
Department of Health,NHS Sheffield CCG,31/01/2022,C&M-GMS PCO Other,PRC DELEGATED CO-COMMISSIONING,GREYSTONES MEDICAL CENTRE,39657378,263,S11 7BJ
Department of Health,NHS Sheffield CCG,31/01/2022,C&M-GMS Prem Notional Rent,PRC DELEGATED CO-COMMISSIONING,GREYSTONES MEDICAL CENTRE,39657378,2885.42,S11 7BJ
Department of Health,NHS Sheffield CCG,31/01/2022,C&M-GMS Prem Rates,PRC DELEGATED CO-COMMISSIONING,GREYSTONES MEDICAL CENTRE,39657378,426,S11 7BJ
Department of Health,NHS Sheffield CCG,31/01/2022,C&M-GMS QOF Aspiration,PRC DELEGATED CO-COMMISSIONING,GREYSTONES MEDICAL CENTRE,39657378,2481.16,S11 7BJ
Department of Health,NHS Sheffield CCG,31/01/2022,C&M-GMS WEIGHT MANAGEMENT SERVICE,PRC DELEGATED CO-COMMISSIONING,GREYSTONES MEDICAL CENTRE,39657378,11.5,S11 7BJ
Department of Health,NHS Sheffield CCG,31/01/2022,C&M-GMS DES Learn Dsblty Hlth Chk,PRC DELEGATED CO-COMMISSIONING,NORFOLK PARK HEALTH CENTRE,39657379,280,S2 3TA
Department of Health,NHS Sheffield CCG,31/01/2022,C&M-GMS Global Sum,PRC DELEGATED CO-COMMISSIONING,NORFOLK PARK HEALTH CENTRE,39657379,44428.13,S2 3TA
Department of Health,NHS Sheffield CCG,31/01/2022,C&M-GMS LONG COVID ES,PRC DELEGATED CO-COMMISSIONING,NORFOLK PARK HEALTH CENTRE,39657379,208.46,S2 3TA
Department of Health,NHS Sheffield CCG,31/01/2022,C&M-GMS PCN DES Participation,PRC DELEGATED CO-COMMISSIONING,NORFOLK PARK HEALTH CENTRE,39657379,820.08,S2 3TA
Department of Health,NHS Sheffield CCG,31/01/2022,C&M-GMS Prem Healthcentre Rent,PRC DELEGATED CO-COMMISSIONING,NORFOLK PARK HEALTH CENTRE,39657379,25961.04,S2 3TA
Department of Health,NHS Sheffield CCG,31/01/2022,C&M-GMS QOF Aspiration,PRC DELEGATED CO-COMMISSIONING,NORFOLK PARK HEALTH CENTRE,39657379,4434.09,S2 3TA
Department of Health,NHS Sheffield CCG,31/01/2022,C&M-GMS WEIGHT MANAGEMENT SERVICE,PRC DELEGATED CO-COMMISSIONING,NORFOLK PARK HEALTH CENTRE,39657379,103.5,S2 3TA
Department of Health,NHS Sheffield CCG,31/01/2022,Cont Care-Mental Health (<65),CHC ADULT FULLY FUNDED,RIVERSIDE RESIDENTIAL SERVICES LTD,39663343,41959.43,DN2 5BE
Department of Health,NHS Sheffield CCG,31/01/2022,Course Fees,BEREAVEMENT SERVICE,CONEXUS HEALTHCARE LTD,39663347,36000,WF2 7JE
Department of Health,NHS Sheffield CCG,31/01/2022,Clinical&Medical-Serv Recd-F Trsts,BEREAVEMENT SERVICE,SHEFFIELD HEALTH & SOCIAL CARE NHS FOUNDATION TRUST,39686870,31222.4,S10 3TH
Department of Health,NHS Sheffield CCG,31/01/2022,Other Research Exp,Nursing and Quality Programme,UNIVERSITY OF SHEFFIELD,39695234,48484.52,S10 2TN
Department of Health,NHS Sheffield CCG,31/01/2022,Clinical&Medical-Serv Recd-F Trsts,BEREAVEMENT SERVICE,ROTHERHAM NHS FOUNDATION TRUST,39695237,45185,S60 2UD
Department of Health,NHS Sheffield CCG,31/01/2022,Participation Fees,BEREAVEMENT SERVICE,YORKSHIRE & HUMBER AHSN LTD,39695269,49250.4,WF4 3BA
Department of Health,NHS Sheffield CCG,31/01/2022,Clinical&Medical-Serv Recd-F Trsts,BEREAVEMENT SERVICE,ROTHERHAM NHS FOUNDATION TRUST,39695272,532272,S60 2UD
Department of Health,NHS Sheffield CCG,31/01/2022,Cont Care-Learning Disab(<65),CHC ADULT FULLY FUNDED,CRISTAL CARE LTD,39695273,82855.52,DN12 3BT
Department of Health,NHS Sheffield CCG,31/01/2022,Clinical&Medical-Othe Public Sector,BEREAVEMENT SERVICE,BARNSLEY METROPOLITAN BOROUGH COUNCIL,39695276,60000,S70 2TA
Department of Health,NHS Sheffield CCG,31/01/2022,Clinical&Medical-Serv Recd-F Trsts,BEREAVEMENT SERVICE,SHEFFIELD TEACHING HOSPITALS NHS FOUNDATION TRUST,39695278,-776274,S5 7AU
Department of Health,NHS Sheffield CCG,31/01/2022,Clinical&Medical-Serv Recd-F Trsts,BEREAVEMENT SERVICE,SHEFFIELD TEACHING HOSPITALS NHS FOUNDATION TRUST,39695280,337135,S5 7AU
Department of Health,NHS Sheffield CCG,31/01/2022,Clinical&Medical-Serv Recd-F Trsts,BEREAVEMENT SERVICE,SHEFFIELD TEACHING HOSPITALS NHS FOUNDATION TRUST,39695281,831365,S5 7AU
Department of Health,NHS Sheffield CCG,31/01/2022,Clinical&Medical-Serv Recd-F Trsts,BEREAVEMENT SERVICE,COUNTY DURHAM & DARLINGTON NHS FOUNDATION TRUST,39695283,53000,DH1 5TW
Department of Health,NHS Sheffield CCG,31/01/2022,Clinical&Medical-Serv Recd-F Trsts,BEREAVEMENT SERVICE,DONCASTER AND BASSETLAW HOSPITALS NHS FOUNDATION TRUST,39695284,115056,WF3 1WE
Department of Health,NHS Sheffield CCG,31/01/2022,Cont Care-Learning Disab(<65),CHC ADULT FULLY FUNDED,RUSKIN MILL TRUST LTD,39699798,30872,GL6 0LA
Department of Health,NHS Sheffield CCG,31/01/2022,Clinical&Medical-Independent Sector,Mental Health Services - S117 Mental Health,MOORVILLE RESIDENTIAL,39699913,25590.88,S10 5FA
Department of Health,NHS Sheffield CCG,31/01/2022,Cont Care-Learning Disab(<65),CHC ADULT FULLY FUNDED,MOORVILLE RESIDENTIAL,39699913,8284.08,S10 5FA
Department of Health,NHS Sheffield CCG,31/01/2022,Cont Care-Learning Disab(<65),CHC ADULT JOINT FUNDED,MOORVILLE RESIDENTIAL,39699913,4371.08,S10 5FA
Department of Health,NHS Sheffield CCG,31/01/2022,Clinical&Medical-Independent Sector,MENTAL HEALTH SERVICES - NOT CONTRACTED ACTIVITY,PSYCHIATRY UK LLP,39702742,28642.15,PL33 9ET
